Workbook

Sheet peinture
X1: Original | BB1: 0 | BC1: 0 | BD1: 0 | BV1: 20 | BW1: 21 | BX1: 22 | BY1: 23 | BZ1: 24 | CA1: 25 | CB1: 26 | CF1: Ecarts
X2: 8.027744748 | Y2: 8.764565993 | Z2: 9.501387237 | AA2: 10.23820848 | AB2: 10.97502973 | AC2: 11.71185097 | AD2: 12.44867222 | AE2: 13.18549346 | AF2: 13.9223147 | AG2: 14.65913595 | AH2: 15.39595719 | AI2: 16.13277844 | AJ2: 16.86959968 | AK2: 17.60642093 | AL2: 18.34324217 | AM2: 19.08006342 | AN2: 19.81688466 | AO2: 20.55370591 | AP2: 21.29052715 | AQ2: 22.02734839 | AR2: 22.76416964 | AS2: 23.50099088 | AT2: 24.23781213 | AU2: 24.97463337 | AV2: 25.71145462 | AW2: 26.44827586 | BB2: 0 | BC2: 9 | BD2: 9 | BE2: 9 | BF2: 11 | BG2: 11 | BH2: 11 | BI2: 11 | BJ2: 11 | BK2: 14 | BL2: 14 | BM2: 16 | BN2: 16 | BO2: 16 | BP2: 19 | BQ2: 19 | BR2: 19 | BS2: 20 | BT2: 20 | BU2: 21 | BV2: 21 | BW2: 24 | BX2: 24 | BY2: 24 | BZ2: 25 | CA2: 25 | CB2: 25 | CC2: 19 | CD2: 24 | CF2: =IF(BC2=0,20,1)*(BC2-X2)^2 -> 0.9452802744 | CG2: =IF(BD2=0,20,1)*(BD2-Y2)^2 -> 0.05542917172 | CH2: =IF(BE2=0,20,1)*(BE2-Z2)^2 -> 0.2513891618 | CI2: =IF(BF2=0,20,1)*(BF2-AA2)^2 -> 0.5803263169 | CJ2: =IF(BG2=0,20,1)*(BG2-AB2)^2 -> 0.0006235145579 | CK2: =IF(BH2=0,20,1)*(BH2-AC2)^2 -> 0.506731805 | CL2: =IF(BI2=0,20,1)*(BI2-AD2)^2 -> 2.098651188 | CM2: =IF(BJ2=0,20,1)*(BJ2-AE2)^2 -> 4.776381664 | CN2: =IF(BK2=0,20,1)*(BK2-AF2)^2 -> 0.006035005103 | CO2: =IF(BL2=0,20,1)*(BL2-AG2)^2 -> 0.4344601996 | CP2: =IF(BM2=0,20,1)*(BM2-AH2)^2 -> 0.3648677117 | CQ2: =IF(BN2=0,20,1)*(BN2-AI2)^2 -> 0.0176301137 | CR2: =IF(BO2=0,20,1)*(BO2-AJ2)^2 -> 0.7562036085 | CS2: =IF(BP2=0,20,1)*(BP2-AK2)^2 -> 1.942062631 | CT2: =IF(BQ2=0,20,1)*(BQ2-AL2)^2 -> 0.4313308446 | CU2: =IF(BR2=0,20,1)*(BR2-AM2)^2 -> 0.006410150672 | CV2: =IF(BS2=0,20,1)*(BS2-AN2)^2 -> 0.03353122733 | CW2: =IF(BT2=0,20,1)*(BT2-AO2)^2 -> 0.30659023 | CX2: =IF(BU2=0,20,1)*(BU2-AP2)^2 -> 0.08440602501 | CY2: =IF(BV2=0,20,1)*(BV2-AQ2)^2 -> 1.055444724 | CZ2: =IF(BW2=0,20,1)*(BW2-AR2)^2 -> 1.52727668 | DA2: =IF(BX2=0,20,1)*(BX2-AS2)^2 -> 0.249010098 | DB2: =IF(BY2=0,20,1)*(BY2-AT2)^2 -> 0.05655460842 | DC2: =IF(BZ2=0,20,1)*(BZ2-AU2)^2 -> 0.0006434657669 | DD2: =IF(CA2=0,20,1)*(CA2-AV2)^2 -> 0.5061676728 | DE2: =IF(CB2=0,20,1)*(CB2-AW2)^2 -> 2.097502973
X3: 7.843110054 | Y3: 8.577355001 | Z3: 9.311599947 | AA3: 10.04584489 | AB3: 10.78008984 | AC3: 11.51433479 | AD3: 12.24857973 | AE3: 12.98282468 | AF3: 13.71706963 | AG3: 14.45131457 | AH3: 15.18555952 | AI3: 15.91980447 | AJ3: 16.65404941 | AK3: 17.38829436 | AL3: 18.12253931 | AM3: 18.85678425 | AN3: 19.5910292 | AO3: 20.32527414 | AP3: 21.05951909 | AQ3: 21.79376404 | AR3: 22.52800898 | AS3: 23.26225393 | AT3: 23.99649888 | AU3: 24.73074382 | AV3: 25.46498877 | AW3: 26.19923372 | BB3: 0 | BC3: 9 | BD3: 9 | BE3: 9 | BF3: 11 | BG3: 11 | BH3: 13 | BI3: 13 | BJ3: 13 | BK3: 14 | BL3: 14 | BM3: 16 | BN3: 16 | BO3: 16 | BP3: 19 | BQ3: 19 | BR3: 19 | BS3: 20 | BT3: 20 | BU3: 21 | BV3: 21 | BW3: 24 | BX3: 24 | BY3: 24 | BZ3: 25 | CA3: 25 | CB3: 25 | CC3: 19 | CD3: 3 | CF3: =IF(BC3=0,20,1)*(BC3-X3)^2 -> 1.338394347 | CG3: 0.1786287955 | CH3: 0.09709452707 | CI3: 0.910411967 | CJ3: 0.04836047841 | CK3: 2.207201126 | CL3: 0.5646324175 | CM3: 0.0002949916304 | CN3: 0.08004959647 | CO3: 0.2036848434 | CP3: 0.6633132969 | CQ3: 0.00643132374 | CR3: 0.4277806334 | CS3: 2.597595075 | CT3: 0.7699372712 | CU3: 0.0205107506 | CV3: 0.1672571169 | CW3: 0.1058032691 | CX3: 0.003542522197 | CY3: 0.6300613473 | CZ3: 2.166757551 | DA3: 0.5442692631 | DB3: 1.225786227e-05 | DC3: 0.07249888859 | DD3: 0.2162145562 | DE3: 1.438161507
X4: 7.65847536 | Y4: 8.390144008 | Z4: 9.121812657 | AA4: 9.853481305 | AB4: 10.58514995 | AC4: 11.3168186 | AD4: 12.04848725 | AE4: 12.7801559 | AF4: 13.51182455 | AG4: 14.2434932 | AH4: 14.97516184 | AI4: 15.70683049 | AJ4: 16.43849914 | AK4: 17.17016779 | AL4: 17.90183644 | AM4: 18.63350509 | AN4: 19.36517373 | AO4: 20.09684238 | AP4: 20.82851103 | AQ4: 21.56017968 | AR4: 22.29184833 | AS4: 23.02351698 | AT4: 23.75518563 | AU4: 24.48685427 | AV4: 25.21852292 | AW4: 25.95019157 | BB4: 3 | BC4: 9 | BD4: 9 | BE4: 9 | BF4: 11 | BG4: 11 | BH4: 13 | BI4: 13 | BJ4: 13 | BK4: 14 | BL4: 14 | BM4: 16 | BN4: 16 | BO4: 16 | BP4: 19 | BQ4: 19 | BR4: 19 | BS4: 20 | BT4: 20 | BU4: 21 | BV4: 21 | BW4: 24 | BX4: 24 | BY4: 24 | BZ4: 25 | CA4: 25 | CB4: 25 | CC4: 25 | CD4: 20 | CF4: 1.79968836 | CG4: 0.3719243304 | CH4: 0.01483832338 | CI4: 1.314505117 | CJ4: 0.1721005609 | CK4: 2.833099618 | CL4: 0.9053765122 | CM4: 0.04833142872 | CN4: 0.2383152724 | CO4: 0.05928893646 | CP4: 1.050293245 | CQ4: 0.08594835995 | CR4: 0.1922814969 | CS4: 3.348285918 | CT4: 1.205963209 | CU4: 0.1343185216 | CV4: 0.4030043868 | CW4: 0.009378447224 | CX4: 0.0294084662 | CY4: 0.3138012742 | CZ4: 2.917782132 | DA4: 0.9535190939 | DB4: 0.05993407792 | DC4: 0.2633185361 | DD4: 0.04775226763 | DE4: 0.9028640214
X5: 7.473840666 | Y5: 8.202933016 | Z5: 8.932025367 | AA5: 9.661117717 | AB5: 10.39021007 | AC5: 11.11930242 | AD5: 11.84839477 | AE5: 12.57748712 | AF5: 13.30657947 | AG5: 14.03567182 | AH5: 14.76476417 | AI5: 15.49385652 | AJ5: 16.22294887 | AK5: 16.95204122 | AL5: 17.68113357 | AM5: 18.41022592 | AN5: 19.13931827 | AO5: 19.86841062 | AP5: 20.59750297 | AQ5: 21.32659532 | AR5: 22.05568767 | AS5: 22.78478002 | AT5: 23.51387237 | AU5: 24.24296472 | AV5: 24.97205707 | AW5: 25.70114943 | BB5: 4 | BC5: 8 | BD5: 8 | BE5: 8 | BF5: 8 | BG5: 8 | BH5: 13 | BI5: 13 | BJ5: 13 | BK5: 14 | BL5: 14 | BM5: 14 | BN5: 17 | BO5: 17 | BP5: 17 | BQ5: 18 | BR5: 18 | BS5: 18 | BT5: 21 | BU5: 21 | BV5: 21 | BW5: 23 | BX5: 23 | BY5: 23 | BZ5: 25 | CA5: 25 | CB5: 25 | CC5: 25 | CD5: 20 | CF5: 0.2768436449 | CG5: 0.04118180908 | CH5: 0.868671284 | CI5: 2.75931207 | CJ5: 5.713104166 | CK5: 3.537023396 | CL5: 1.32619461 | CM5: 0.178517135 | CN5: 0.480832033 | CO5: 0.00127247869 | CP5: 0.5848642352 | CQ5: 2.268468182 | CR5: 0.603808458 | CS5: 0.002300044505 | CT5: 0.1016757995 | CU5: 0.1682853067 | CV5: 1.298046125 | CW5: 1.28049452 | CX5: 0.162003857 | CY5: 0.106664505 | CZ5: 0.8917257702 | DA5: 0.04631963816 | DB5: 0.2640648169 | DC5: 0.5731024083 | DD5: 0.0007808070625 | DE5: 0.4916105166
X6: 7.289205972 | Y6: 8.015722024 | Z6: 8.742238076 | AA6: 9.468754129 | AB6: 10.19527018 | AC6: 10.92178623 | AD6: 11.64830229 | AE6: 12.37481834 | AF6: 13.10133439 | AG6: 13.82785044 | AH6: 14.55436649 | AI6: 15.28088255 | AJ6: 16.0073986 | AK6: 16.73391465 | AL6: 17.4604307 | AM6: 18.18694676 | AN6: 18.91346281 | AO6: 19.63997886 | AP6: 20.36649491 | AQ6: 21.09301097 | AR6: 21.81952702 | AS6: 22.54604307 | AT6: 23.27255912 | AU6: 23.99907518 | AV6: 24.72559123 | AW6: 25.45210728 | BB6: 5 | BC6: 8 | BD6: 8 | BE6: 8 | BF6: 8 | BG6: 8 | BH6: 11 | BI6: 11 | BJ6: 11 | BK6: 14 | BL6: 14 | BM6: 14 | BN6: 17 | BO6: 17 | BP6: 17 | BQ6: 17 | BR6: 17 | BS6: 20 | BT6: 20 | BU6: 20 | BV6: 21 | BW6: 23 | BX6: 23 | BY6: 23 | BZ6: 25 | CA6: 25 | CB6: 25 | CC6: 25 | CD6: 11 | CF6: 0.5052281506 | CG6: 0.0002471820401 | CH6: 0.550917362 | CI6: 2.157238691 | CJ6: 4.819211168 | CK6: 0.006117393298 | CL6: 0.4202958536 | CM6: 1.890125462 | CN6: 0.8075998781 | CO6: 0.02963547011 | CP6: 0.3073222107 | CQ6: 2.955364816 | CR6: 0.9852575402 | CS6: 0.07080141249 | CT6: 0.2119964334 | CU6: 1.408842603 | CV6: 1.180563068 | CW6: 0.1296152204 | CX6: 0.1343185216 | CY6: 0.008651039756 | CZ6: 1.393516461 | DA6: 0.2060768939 | DB6: 0.07428847539 | DC6: 1.001850505 | DD6: 0.07530017449 | DE6: 0.2044009924
X7: 7.104571278 | Y7: 7.828511032 | Z7: 8.552450786 | AA7: 9.27639054 | AB7: 10.00033029 | AC7: 10.72427005 | AD7: 11.4482098 | AE7: 12.17214956 | AF7: 12.89608931 | AG7: 13.62002907 | AH7: 14.34396882 | AI7: 15.06790857 | AJ7: 15.79184833 | AK7: 16.51578808 | AL7: 17.23972784 | AM7: 17.96366759 | AN7: 18.68760735 | AO7: 19.4115471 | AP7: 20.13548685 | AQ7: 20.85942661 | AR7: 21.58336636 | AS7: 22.30730612 | AT7: 23.03124587 | AU7: 23.75518563 | AV7: 24.47912538 | AW7: 25.20306513 | BB7: 6 | BC7: 8 | BD7: 8 | BE7: 8 | BF7: 8 | BG7: 8 | BH7: 10 | BI7: 12 | BJ7: 12 | BK7: 12 | BL7: 14 | BM7: 14 | BN7: 17 | BO7: 17 | BP7: 17 | BQ7: 17 | BR7: 17 | BS7: 20 | BT7: 20 | BU7: 20 | BV7: 20 | BW7: 23 | BX7: 23 | BY7: 23 | BZ7: 25 | CA7: 25 | CB7: 25 | CC7: 25 | CD7: 11 | CF7: 0.8017925969 | CG7: 0.0294084662 | CH7: 0.3052018711 | CI7: 1.629172812 | CJ7: 4.001321288 | CK7: 0.5245671037 | CL7: 0.3044724213 | CM7: 0.02963547011 | CN7: 0.8029760545 | CO7: 0.1443779107 | CP7: 0.1183145493 | CQ7: 3.732977277 | CR7: 1.459630461 | CS7: 0.2344611806 | CT7: 0.05746943594 | CU7: 0.9286552269 | CV7: 1.722374479 | CW7: 0.3462768155 | CX7: 0.01835668768 | CY7: 0.7386140955 | CZ7: 2.006850862 | DA7: 0.4798248155 | DB7: 0.0009763044744 | DC7: 1.549562827 | DD7: 0.2713103699 | DE7: 0.04123544869
X8: 6.919936583 | Y8: 7.64130004 | Z8: 8.362663496 | AA8: 9.084026952 | AB8: 9.805390408 | AC8: 10.52675386 | AD8: 11.24811732 | AE8: 11.96948078 | AF8: 12.69084423 | AG8: 13.41220769 | AH8: 14.13357115 | AI8: 14.8549346 | AJ8: 15.57629806 | AK8: 16.29766151 | AL8: 17.01902497 | AM8: 17.74038843 | AN8: 18.46175188 | AO8: 19.18311534 | AP8: 19.9044788 | AQ8: 20.62584225 | AR8: 21.34720571 | AS8: 22.06856916 | AT8: 22.78993262 | AU8: 23.51129608 | AV8: 24.23265953 | AW8: 24.95402299 | BB8: 7 | BC8: 8 | BD8: 8 | BE8: 8 | BF8: 10 | BG8: 10 | BH8: 10 | BI8: 12 | BJ8: 12 | BK8: 12 | BL8: 14 | BM8: 14 | BN8: 14 | BO8: 14 | BP8: 14 | BQ8: 17 | BR8: 17 | BS8: 17 | BT8: 20 | BU8: 20 | BV8: 20 | BW8: 22 | BX8: 22 | BY8: 22 | BZ8: 24 | CA8: 25 | CB8: 25 | CC8: 25 | CD8: 11 | CF8: 1.166536984 | CG8: 0.1286656616 | CH8: 0.1315248112 | CI8: 0.8390066246 | CJ8: 0.0378728932 | CK8: 0.2774696337 | CL8: 0.5653275635 | CM8: 0.0009314229815 | CN8: 0.4772657543 | CO8: 0.3454998006 | CP8: 0.0178412509 | CQ8: 0.7309131731 | CR8: 2.484715567 | CS8: 5.279248433 | CT8: 0.0003619494939 | CU8: 0.5481750221 | CV8: 2.136718567 | CW8: 0.6673005496 | CX8: 0.009124300588 | CY8: 0.3916785235 | CZ8: 0.4261403883 | DA8: 0.00470173021 | DB8: 0.623993544 | DC8: 0.2388315252 | DD8: 0.5888113934 | DE8: 0.002113885586
X9: 6.735301889 | Y9: 7.454089047 | Z9: 8.172876206 | AA9: 8.891663364 | AB9: 9.610450522 | AC9: 10.32923768 | AD9: 11.04802484 | AE9: 11.766812 | AF9: 12.48559915 | AG9: 13.20438631 | AH9: 13.92317347 | AI9: 14.64196063 | AJ9: 15.36074779 | AK9: 16.07953495 | AL9: 16.7983221 | AM9: 17.51710926 | AN9: 18.23589642 | AO9: 18.95468358 | AP9: 19.67347074 | AQ9: 20.39225789 | AR9: 21.11104505 | AS9: 21.82983221 | AT9: 22.54861937 | AU9: 23.26740653 | AV9: 23.98619368 | AW9: 24.70498084 | BB9: 8 | BC9: 8 | BD9: 8 | BE9: 8 | BF9: 10 | BG9: 10 | BH9: 10 | BI9: 12 | BJ9: 12 | BK9: 12 | BL9: 14 | BM9: 14 | BN9: 14 | BO9: 14 | BP9: 14 | BQ9: 17 | BR9: 17 | BS9: 17 | BT9: 20 | BU9: 20 | BV9: 20 | BW9: 22 | BX9: 22 | BY9: 22 | BZ9: 24 | CA9: 24 | CB9: 24 | CC9: 24 | CD9: 11 | CF9: 1.599461311 | CG9: 0.2980187681 | CH9: 0.02988618245 | CI9: 1.228410099 | CJ9: 0.1517487959 | CK9: 0.1083974499 | CL9: 0.9062567088 | CM9: 0.05437664507 | CN9: 0.2358065388 | CO9: 0.6330011396 | CP9: 0.005902315599 | CQ9: 0.412113449 | CR9: 1.85163454 | CS9: 4.324465588 | CT9: 0.04067397401 | CU9: 0.2674019883 | CV9: 1.52743996 | CW9: 1.092686423 | CX9: 0.1066213603 | CY9: 0.1538662554 | CZ9: 0.7902408992 | DA9: 0.02895707664 | DB9: 0.3009832115 | DC9: 0.5366931972 | DD9: 0.0001906143403 | DE9: 0.4969979889
X10: 6.550667195 | Y10: 7.266878055 | Z10: 7.983088915 | AA10: 8.699299775 | AB10: 9.415510635 | AC10: 10.1317215 | AD10: 10.84793236 | AE10: 11.56414322 | AF10: 12.28035408 | AG10: 12.99656494 | AH10: 13.7127758 | AI10: 14.42898666 | AJ10: 15.14519752 | AK10: 15.86140838 | AL10: 16.57761924 | AM10: 17.2938301 | AN10: 18.01004096 | AO10: 18.72625182 | AP10: 19.44246268 | AQ10: 20.15867354 | AR10: 20.8748844 | AS10: 21.59109526 | AT10: 22.30730612 | AU10: 23.02351698 | AV10: 23.73972784 | AW10: 24.4559387 | BB10: 9 | BC10: 8 | BD10: 8 | BE10: 8 | BF10: 9 | BG10: 9 | BH10: 11 | BI10: 12 | BJ10: 12 | BK10: 12 | BL10: 14 | BM10: 14 | BN10: 14 | BO10: 14 | BP10: 14 | BQ10: 17 | BR10: 17 | BS10: 17 | BT10: 20 | BU10: 20 | BV10: 20 | BW10: 22 | BX10: 22 | BY10: 22 | BZ10: 24 | CA10: 24 | CB10: 24 | CC10: 4 | CD10: 4 | CF10: 2.100565579 | CG10: 0.5374677859 | CH10: 0.0002859847853 | CI10: 0.09042062507 | CJ10: 0.1726490882 | CK10: 0.7539075612 | CL10: 1.327259857 | CM10: 0.1899711364 | CN10: 0.07859840784 | CO10: 1.006881928 | CP10: 0.08249774336 | CQ10: 0.1840295511 | CR10: 1.311477351 | CS10: 3.464841143 | CT10: 0.1784055095 | CU10: 0.08633612558 | CV10: 1.020182734 | CW10: 1.622434435 | CX10: 0.3108478669 | CY10: 0.02517729128 | CZ10: 1.26588512 | DA10: 0.1672030889 | DB10: 0.09443704958 | DC10: 0.9535190939 | DD10: 0.06774159871 | DE10: 0.2078800957
X11: 6.366032501 | Y11: 7.079667063 | Z11: 7.793301625 | AA11: 8.506936187 | AB11: 9.220570749 | AC11: 9.934205311 | AD11: 10.64783987 | AE11: 11.36147444 | AF11: 12.075109 | AG11: 12.78874356 | AH11: 13.50237812 | AI11: 14.21601268 | AJ11: 14.92964725 | AK11: 15.64328181 | AL11: 16.35691637 | AM11: 17.07055093 | AN11: 17.78418549 | AO11: 18.49782006 | AP11: 19.21145462 | AQ11: 19.92508918 | AR11: 20.63872374 | AS11: 21.3523583 | AT11: 22.06599287 | AU11: 22.77962743 | AV11: 23.49326199 | AW11: 24.20689655 | BB11: 10 | BC11: 8 | BD11: 8 | BE11: 8 | BF11: 9 | BG11: 9 | BH11: 9 | BI11: 12 | BJ11: 12 | BK11: 12 | BL11: 13 | BM11: 13 | BN11: 13 | BO11: 15 | BP11: 15 | BQ11: 17 | BR11: 17 | BS11: 17 | BT11: 20 | BU11: 20 | BV11: 20 | BW11: 21 | BX11: 21 | BY11: 21 | BZ11: 24 | CA11: 24 | CB11: 24 | CC11: 4 | CD11: 4 | CF11: 2.669849788 | CG11: 0.8470127149 | CH11: 0.04272421821 | CI11: 0.2431119236 | CJ11: 0.04865145536 | CK11: 0.8727395634 | CL11: 1.828337009 | CM11: 0.4077148969 | CN11: 0.005641361464 | CO11: 0.04462928376 | CP11: 0.2523837767 | CQ11: 1.478686846 | CR11: 0.004949510088 | CS11: 0.4138114837 | CT11: 0.4135565559 | CU11: 0.004977433926 | CV11: 0.6149468882 | CW11: 2.256544586 | CX11: 0.6218038202 | CY11: 0.005611631021 | CZ11: 0.1305205349 | DA11: 0.1241563741 | DB11: 1.13634079 | DC11: 1.489309215 | DD11: 0.2567834111 | DE11: 0.04280618312
X12: 6.181397807 | Y12: 6.892456071 | Z12: 7.603514335 | AA12: 8.314572599 | AB12: 9.025630863 | AC12: 9.736689127 | AD12: 10.44774739 | AE12: 11.15880565 | AF12: 11.86986392 | AG12: 12.58092218 | AH12: 13.29198045 | AI12: 14.00303871 | AJ12: 14.71409697 | AK12: 15.42515524 | AL12: 16.1362135 | AM12: 16.84727177 | AN12: 17.55833003 | AO12: 18.26938829 | AP12: 18.98044656 | AQ12: 19.69150482 | AR12: 20.40256309 | AS12: 21.11362135 | AT12: 21.82467961 | AU12: 22.53573788 | AV12: 23.24679614 | AW12: 23.95785441 | BB12: 11 | BC12: 8 | BD12: 8 | BE12: 8 | BF12: 7 | BG12: 9 | BH12: 9 | BI12: 12 | BJ12: 12 | BK12: 12 | BL12: 13 | BM12: 13 | BN12: 13 | BO12: 15 | BP12: 15 | BQ12: 15 | BR12: 17 | BS12: 17 | BT12: 18 | BU12: 18 | BV12: 18 | BW12: 21 | BX12: 21 | BY12: 21 | BZ12: 23 | CA12: 23 | CB12: 23 | CC12: 4 | CD12: 4 | CF12: 3.307313937 | CG12: 1.226653555 | CH12: 0.1572008827 | CI12: 1.728101117 | CJ12: 0.0006569411243 | CK12: 0.5427108694 | CL12: 2.409488163 | CM12: 0.7076079267 | CN12: 0.01693539968 | CO12: 0.175626217 | CP12: 0.08525258117 | CQ12: 1.006086655 | CR12: 0.08174053999 | CS12: 0.1807569768 | CT12: 1.290981123 | CU12: 0.02332591333 | CV12: 0.3117324228 | CW12: 0.07257005314 | CX12: 0.9612754537 | CY12: 2.861188564 | CZ12: 0.3569308659 | DA12: 0.01290981123 | DB12: 0.6800964661 | DC12: 0.2155393177 | DD12: 0.06090833578 | DE12: 0.9174850633
X13: 5.996763113 | Y13: 6.705245079 | Z13: 7.413727045 | AA13: 8.12220901 | AB13: 8.830690976 | AC13: 9.539172942 | AD13: 10.24765491 | AE13: 10.95613687 | AF13: 11.66461884 | AG13: 12.37310081 | AH13: 13.08158277 | AI13: 13.79006474 | AJ13: 14.4985467 | AK13: 15.20702867 | AL13: 15.91551064 | AM13: 16.6239926 | AN13: 17.33247457 | AO13: 18.04095653 | AP13: 18.7494385 | AQ13: 19.45792047 | AR13: 20.16640243 | AS13: 20.8748844 | AT13: 21.58336636 | AU13: 22.29184833 | AV13: 23.00033029 | AW13: 23.70881226 | BB13: 12 | BD13: 7 | BE13: 7 | BF13: 7 | BG13: 9 | BH13: 9 | BI13: 11 | BJ13: 11 | BK13: 11 | BL13: 13 | BM13: 13 | BN13: 13 | BO13: 15 | BP13: 15 | BQ13: 15 | BR13: 17 | BS13: 17 | BT13: 18 | BU13: 18 | BV13: 18 | BW13: 21 | BX13: 21 | BY13: 21 | BZ13: 22 | CA13: 23 | CB13: 23 | CC13: 22 | CD13: 26 | CF13: 719.2233566 | CG13: 0.08688046368 | CH13: 0.1711700674 | CI13: 1.259353063 | CJ13: 0.02866554549 | CK13: 0.2907074617 | CL13: 0.5660231372 | CM13: 0.001923973814 | CN13: 0.4417182025 | CO13: 0.3930025995 | CP13: 0.00665574866 | CQ13: 0.6242022898 | CR13: 0.2514554084 | CS13: 0.04286087003 | CT13: 0.8381597237 | CU13: 0.1413815638 | CV13: 0.1105393379 | CW13: 0.001677437614 | CX13: 0.561658064 | CY13: 2.125532082 | CZ13: 0.6948849071 | DA13: 0.01565391414 | DB13: 0.3403163132 | DC13: 0.08517544697 | DD13: 1.090945379e-07 | DE13: 0.5024148207
X14: 5.812128419 | Y14: 6.518034086 | Z14: 7.223939754 | AA14: 7.929845422 | AB14: 8.63575109 | AC14: 9.341656758 | AD14: 10.04756243 | AE14: 10.75346809 | AF14: 11.45937376 | AG14: 12.16527943 | AH14: 12.8711851 | AI14: 13.57709076 | AJ14: 14.28299643 | AK14: 14.9889021 | AL14: 15.69480777 | AM14: 16.40071344 | AN14: 17.1066191 | AO14: 17.81252477 | AP14: 18.51843044 | AQ14: 19.22433611 | AR14: 19.93024178 | AS14: 20.63614744 | AT14: 21.34205311 | AU14: 22.04795878 | AV14: 22.75386445 | AW14: 23.45977011 | BB14: 13 | BD14: 7 | BE14: 7 | BF14: 9 | BG14: 9 | BH14: 9 | BI14: 11 | BJ14: 11 | BK14: 11 | BL14: 12 | BM14: 12 | BN14: 12 | BO14: 15 | BP14: 15 | BQ14: 15 | BR14: 17 | BS14: 17 | BT14: 17 | BU14: 19 | BV14: 19 | BW14: 19 | BX14: 22 | BY14: 22 | BZ14: 22 | CA14: 23 | CB14: 23 | CC14: 1 | CD14: 1 | CF14: 675.6167351 | CG14: 0.2322911419 | CH14: 0.05014901354 | CI14: 1.145230821 | CJ14: 0.1326772685 | CK14: 0.1167293402 | CL14: 0.907137333 | CM14: 0.0607779809 | CN14: 0.2110242527 | CO14: 0.02731728973 | CP14: 0.7589634734 | CQ14: 2.487215281 | CR14: 0.5140941154 | CS14: 0.0001231633695 | CT14: 0.4827578352 | CU14: 0.3591443853 | CV14: 0.01136763339 | CW14: 0.6601965053 | CX14: 0.2319092412 | CY14: 0.05032668927 | CZ14: 0.8653497612 | DA14: 1.860093796 | DB14: 0.4328941083 | DC14: 0.002300044505 | DD14: 0.06058271041 | DE14: 0.2113885586
X15: 5.627493724 | Y15: 6.330823094 | Z15: 7.034152464 | AA15: 7.737481834 | AB15: 8.440811204 | AC15: 9.144140573 | AD15: 9.847469943 | AE15: 10.55079931 | AF15: 11.25412868 | AG15: 11.95745805 | AH15: 12.66078742 | AI15: 13.36411679 | AJ15: 14.06744616 | AK15: 14.77077553 | AL15: 15.4741049 | AM15: 16.17743427 | AN15: 16.88076364 | AO15: 17.58409301 | AP15: 18.28742238 | AQ15: 18.99075175 | AR15: 19.69408112 | AS15: 20.39741049 | AT15: 21.10073986 | AU15: 21.80406923 | AV15: 22.5073986 | AW15: 23.21072797 | BB15: 14 | BC15: 6 | BD15: 6 | BE15: 6 | BF15: 9 | BG15: 9 | BH15: 9 | BI15: 11 | BJ15: 11 | BK15: 11 | BL15: 12 | BM15: 12 | BN15: 12 | BO15: 15 | BP15: 15 | BQ15: 15 | BR15: 17 | BS15: 17 | BT15: 17 | BU15: 19 | BV15: 19 | BW15: 20 | BX15: 20 | BY15: 20 | BZ15: 22 | CA15: 23 | CB15: 23 | CC15: 25 | CD15: 1 | CF15: 0.1387609254 | CG15: 0.1094439197 | CH15: 1.069471319 | CI15: 1.59395212 | CJ15: 0.31269211 | CK15: 0.0207765049 | CL15: 1.328325532 | CM15: 0.2017812572 | CN15: 0.06458138741 | CO15: 0.00180981729 | CP15: 0.4366400176 | CQ15: 1.860814623 | CR15: 0.8696566608 | CS15: 0.05254385683 | CT15: 0.2247754577 | CU15: 0.6766143779 | CV15: 0.01421730927 | CW15: 0.3411646455 | CX15: 0.5077668634 | CY15: 8.553011768e-05 | CZ15: 0.09358636092 | DA15: 0.1579350977 | DB15: 1.211628239 | DC15: 0.03838886673 | DD15: 0.2426561397 | DE15: 0.04440627707
X16: 5.44285903 | Y16: 6.143612102 | Z16: 6.844365174 | AA16: 7.545118245 | AB16: 8.245871317 | AC16: 8.946624389 | AD16: 9.647377461 | AE16: 10.34813053 | AF16: 11.0488836 | AG16: 11.74963668 | AH16: 12.45038975 | AI16: 13.15114282 | AJ16: 13.85189589 | AK16: 14.55264896 | AL16: 15.25340203 | AM16: 15.95415511 | AN16: 16.65490818 | AO16: 17.35566125 | AP16: 18.05641432 | AQ16: 18.75716739 | AR16: 19.45792047 | AS16: 20.15867354 | AT16: 20.85942661 | AU16: 21.56017968 | AV16: 22.26093275 | AW16: 22.96168582 | BB16: 15 | BC16: 6 | BD16: 6 | BE16: 6 | BF16: 9 | BG16: 9 | BH16: 9 | BI16: 11 | BJ16: 11 | BK16: 11 | BL16: 12 | BM16: 12 | BN16: 12 | BO16: 15 | BP16: 15 | BQ16: 15 | BR16: 16 | BS16: 17 | BT16: 17 | BU16: 17 | BV16: 19 | BW16: 20 | BX16: 20 | BY16: 20 | BZ16: 23 | CA16: 23 | CB16: 23 | CC16: 25 | CD16: 4 | CF16: 0.3104060602 | CG16: 0.02062443584 | CH16: 0.7129525466 | CI16: 2.11668092 | CJ16: 0.5687100702 | CK16: 0.002848955854 | CL16: 1.829587734 | CM16: 0.4249338027 | CN16: 0.002389606757 | CO16: 0.06268179405 | CP16: 0.2028509248 | CQ16: 1.325129791 | CR16: 1.318143045 | CS16: 0.2001229504 | CT16: 0.06421259115 | CU16: 0.002101754273 | CV16: 0.1190883655 | CW16: 0.1264949246 | CX16: 1.116011219 | CY16: 0.05896767487 | CZ16: 0.2938502222 | DA16: 0.02517729128 | DB16: 0.7386140955 | DC16: 2.073082553 | DD16: 0.546220397 | DE16: 0.001467976101
X17: 5.258224336 | Y17: 5.95640111 | Z17: 6.654577883 | AA17: 7.352754657 | AB17: 8.050931431 | AC17: 8.749108205 | AD17: 9.447284978 | AE17: 10.14546175 | AF17: 10.84363853 | AG17: 11.5418153 | AH17: 12.23999207 | AI17: 12.93816885 | AJ17: 13.63634562 | AK17: 14.33452239 | AL17: 15.03269917 | AM17: 15.73087594 | AN17: 16.42905272 | AO17: 17.12722949 | AP17: 17.82540626 | AQ17: 18.52358304 | AR17: 19.22175981 | AS17: 19.91993658 | AT17: 20.61811336 | AU17: 21.31629013 | AV17: 22.0144669 | AW17: 22.71264368 | BB17: 16 | BC17: 6 | BD17: 6 | BE17: 6 | BF17: 8 | BG17: 8 | BH17: 8 | BI17: 11 | BJ17: 11 | BK17: 11 | BL17: 12 | BM17: 12 | BN17: 13 | BO17: 13 | BP17: 13 | BQ17: 15 | BR17: 16 | BS17: 17 | BT17: 17 | BU17: 17 | BV17: 18 | BW17: 20 | BX17: 20 | BY17: 20 | BZ17: 20 | CA17: 20 | CB17: 22 | CC17: 22 | CD17: 4 | CF17: 0.5502311355 | CG17: 0.001900863228 | CH17: 0.4284722055 | CI17: 0.4189265338 | CJ17: 0.002594010647 | CK17: 0.5611631021 | CL17: 2.410923939 | CM17: 0.7302356175 | CN17: 0.02444891069 | CO17: 0.20993322 | CP17: 0.05759619507 | CQ17: 0.003823091529 | CR17: 0.4049357485 | CS17: 1.78095002 | CT17: 0.001069235565 | CU17: 0.07242775895 | CV17: 0.3259808022 | CW17: 0.0161873428 | CX17: 0.681295498 | CY17: 0.2741391957 | CZ17: 0.6056577937 | DA17: 0.006410150672 | DB17: 0.3820641222 | DC17: 1.732619708 | DD17: 4.058076909 | DE17: 0.507861012
X18: 5.073589642 | Y18: 5.769190118 | Z18: 6.464790593 | AA18: 7.160391069 | AB18: 7.855991544 | AC18: 8.55159202 | AD18: 9.247192496 | AE18: 9.942792971 | AF18: 10.63839345 | AG18: 11.33399392 | AH18: 12.0295944 | AI18: 12.72519487 | AJ18: 13.42079535 | AK18: 14.11639583 | AL18: 14.8119963 | AM18: 15.50759678 | AN18: 16.20319725 | AO18: 16.89879773 | AP18: 17.5943982 | AQ18: 18.28999868 | AR18: 18.98559915 | AS18: 19.68119963 | AT18: 20.37680011 | AU18: 21.07240058 | AV18: 21.76800106 | AW18: 22.46360153 | BB18: 17 | BC18: 5 | BD18: 5 | BE18: 5 | BF18: 8 | BG18: 8 | BH18: 9 | BI18: 9 | BJ18: 9 | BK18: 12 | BL18: 12 | BM18: 12 | BN18: 13 | BO18: 13 | BP18: 13 | BQ18: 16 | BR18: 16 | BS18: 17 | BT18: 17 | BU18: 17 | BV18: 18 | BW18: 19 | BX18: 19 | BY18: 20 | BZ18: 20 | CA18: 20 | CB18: 22 | CC18: 22 | CD18: 22 | CF18: 0.005415435404 | CG18: 0.591653437 | CH18: 2.145611482 | CI18: 0.7049431573 | CJ18: 0.02073843527 | CK18: 0.2010697165 | CL18: 0.06110412993 | CM18: 0.8888585868 | CN18: 1.853972405 | CO18: 0.4435640952 | CP18: 0.000875828405 | CQ18: 0.07551785737 | CR18: 0.1770687261 | CS18: 1.246339638 | CT18: 1.41135279 | CU18: 0.2424609347 | CV18: 0.6348946193 | CW18: 0.01024189994 | CX18: 0.353309224 | CY18: 0.08409923372 | CZ18: 0.0002073843527 | DA18: 0.464032936 | DB18: 0.1419783197 | DC18: 1.150043007 | DD18: 3.125827737 | DE18: 0.214926381
X19: 4.888954948 | Y19: 5.581979125 | Z19: 6.275003303 | AA19: 6.968027481 | AB19: 7.661051658 | AC19: 8.354075836 | AD19: 9.047100013 | AE19: 9.740124191 | AF19: 10.43314837 | AG19: 11.12617255 | AH19: 11.81919672 | AI19: 12.5122209 | AJ19: 13.20524508 | AK19: 13.89826926 | AL19: 14.59129343 | AM19: 15.28431761 | AN19: 15.97734179 | AO19: 16.67036597 | AP19: 17.36339014 | AQ19: 18.05641432 | AR19: 18.7494385 | AS19: 19.44246268 | AT19: 20.13548685 | AU19: 20.82851103 | AV19: 21.52153521 | AW19: 22.21455939 | BB19: 18 | BC19: 5 | BD19: 5 | BE19: 5 | BF19: 8 | BG19: 8 | BH19: 9 | BI19: 9 | BJ19: 9 | BK19: 11 | BL19: 11 | BM19: 11 | BN19: 13 | BO19: 13 | BP19: 13 | BQ19: 15 | BR19: 15 | BS19: 15 | BT19: 15 | BU19: 15 | BV19: 19 | BW19: 19 | BX19: 19 | BY19: 20 | BZ19: 20 | CA19: 20 | CB19: 22 | CC19: 22 | CD19: 22 | CF19: 0.01233100362 | CG19: 0.3386997024 | CH19: 1.625633423 | CI19: 1.064967281 | CJ19: 0.1148859785 | CK19: 0.4172180261 | CL19: 0.002218411245 | CM19: 0.5477838178 | CN19: 0.3213207723 | CO19: 0.01591951134 | CP19: 0.6710832718 | CQ19: 0.2379284494 | CR19: 0.04212554229 | CS19: 0.8068876566 | CT19: 0.1670410573 | CU19: 0.0808365041 | CV19: 0.9551969723 | CW19: 2.790122462 | CX19: 5.585612973 | CY19: 0.8903539325 | CZ19: 0.06278106571 | DA19: 0.1957732203 | DB19: 0.01835668768 | DC19: 0.6864305299 | DD19: 2.315069393 | DE19: 0.04603573054
X20: 4.704320254 | Y20: 5.394768133 | Z20: 6.085216013 | AA20: 6.775663892 | AB20: 7.466111772 | AC20: 8.156559651 | AD20: 8.847007531 | AE20: 9.53745541 | AF20: 10.22790329 | AG20: 10.91835117 | AH20: 11.60879905 | AI20: 12.29924693 | AJ20: 12.98969481 | AK20: 13.68014269 | AL20: 14.37059057 | AM20: 15.06103845 | AN20: 15.75148633 | AO20: 16.44193421 | AP20: 17.13238208 | AQ20: 17.82282996 | AR20: 18.51327784 | AS20: 19.20372572 | AT20: 19.8941736 | AU20: 20.58462148 | AV20: 21.27506936 | AW20: 21.96551724 | BB20: 19 | BC20: 5 | BD20: 5 | BE20: 7 | BF20: 7 | BG20: 7 | BH20: 9 | BI20: 9 | BJ20: 9 | BK20: 11 | BL20: 11 | BM20: 11 | BN20: 12 | BO20: 12 | BP20: 15 | BQ20: 15 | BR20: 15 | BS20: 15 | BT20: 15 | BU20: 15 | BV20: 19 | BW20: 19 | BX20: 19 | BY20: 19 | BZ20: 22 | CA20: 22 | CB20: 22 | CC20: 25 | CD20: 22 | CF20: 0.08742651239 | CG20: 0.155841879 | CH20: 0.8368297435 | CI20: 0.05032668927 | CJ20: 0.2172601837 | CK20: 0.711391622 | CL20: 0.02340669566 | CM20: 0.288858318 | CN20: 0.59613333 | CO20: 0.006666531564 | CP20: 0.3706362818 | CQ20: 0.08954872407 | CR20: 0.9794958125 | CS20: 1.742023326 | CT20: 0.3961562346 | CU20: 0.003725691926 | CV20: 0.5647316979 | CW20: 2.079174252 | CX20: 4.547053356 | CY20: 1.385729293 | CZ20: 0.2368984573 | DA20: 0.04150417035 | DB20: 0.799546432 | DC20: 2.003296348 | DD20: 0.5255244301 | DE20: 0.001189060642
X21: 4.51968556 | Y21: 5.207557141 | Z21: 5.895428722 | AA21: 6.583300304 | AB21: 7.271171885 | AC21: 7.959043467 | AD21: 8.646915048 | AE21: 9.33478663 | AF21: 10.02265821 | AG21: 10.71052979 | AH21: 11.39840137 | AI21: 12.08627296 | AJ21: 12.77414454 | AK21: 13.46201612 | AL21: 14.1498877 | AM21: 14.83775928 | AN21: 15.52563086 | AO21: 16.21350244 | AP21: 16.90137403 | AQ21: 17.58924561 | AR21: 18.27711719 | AS21: 18.96498877 | AT21: 19.65286035 | AU21: 20.34073193 | AV21: 21.02860351 | AW21: 21.7164751 | BB21: 20 | BE21: 7 | BF21: 7 | BG21: 7 | BH21: 7 | BI21: 7 | BJ21: 7 | BK21: 11 | BL21: 11 | BM21: 11 | BN21: 12 | BO21: 12 | BP21: 15 | BQ21: 15 | BR21: 15 | BS21: 15 | BT21: 17 | BU21: 17 | BV21: 17 | BW21: 19 | BX21: 19 | BY21: 19 | BZ21: 22 | CA21: 22 | CB21: 22 | CC21: 7 | CD21: 7 | CF21: 408.5511511 | CG21: 542.3730275 | CH21: 1.220077707 | CI21: 0.1736386368 | CJ21: 0.07353419139 | CK21: 0.9197643712 | CL21: 2.712329176 | CM21: 5.451228606 | CN21: 0.9551969723 | CO21: 0.08379300099 | CP21: 0.1587236548 | CQ21: 0.007443022847 | CR21: 0.5992997641 | CS21: 2.36539442 | CT21: 0.7226909229 | CU21: 0.02632205081 | CV21: 0.2762878039 | CW21: 0.6185784053 | CX21: 0.00972708282 | CY21: 0.3472103855 | CZ21: 0.5225595591 | DA21: 0.001225786227 | DB21: 0.4262266385 | DC21: 2.753170519 | DD21: 0.9436111324 | DE21: 0.08038637131
X22: 4.335050865 | Y22: 5.020346149 | Z22: 5.705641432 | AA22: 6.390936716 | AB22: 7.076231999 | AC22: 7.761527282 | AD22: 8.446822566 | AE22: 9.132117849 | AF22: 9.817413133 | AG22: 10.50270842 | AH22: 11.1880037 | AI22: 11.87329898 | AJ22: 12.55859427 | AK22: 13.24388955 | AL22: 13.92918483 | AM22: 14.61448012 | AN22: 15.2997754 | AO22: 15.98507068 | AP22: 16.67036597 | AQ22: 17.35566125 | AR22: 18.04095653 | AS22: 18.72625182 | AT22: 19.4115471 | AU22: 20.09684238 | AV22: 20.78213767 | AW22: 21.46743295 | BB22: 21 | BC22: 5 | BD22: 5 | BE22: 7 | BF22: 7 | BG22: 7 | BH22: 7 | BI22: 7 | BJ22: 9 | BK22: 9 | BL22: 9 | BM22: 11 | BN22: 11 | BO22: 13 | BP22: 13 | BQ22: 13 | BR22: 15 | BS22: 15 | BT22: 15 | BU22: 17 | BV22: 17 | BW22: 19 | BX22: 19 | BY22: 19 | BZ22: 21 | CA22: 21 | CB22: 21 | CC22: 7 | CD22: 7 | CF22: 0.4421573516 | CG22: 0.0004139657696 | CH22: 1.675364102 | CI22: 0.3709580845 | CJ22: 0.005811317663 | CK22: 0.5799238017 | CL22: 2.093295537 | CM22: 0.01745512606 | CN22: 0.6681642292 | CO22: 2.258132583 | CP22: 0.03534539095 | CQ22: 0.7626511132 | CR22: 0.1948390219 | CS22: 0.05948211234 | CT22: 0.8633844536 | CU22: 0.1486255808 | CV22: 0.08986529024 | CW22: 0.9703642506 | CX22: 0.1086585961 | CY22: 0.1264949246 | CZ22: 0.9197643712 | DA22: 0.0749380679 | DB22: 0.1693710155 | DC22: 0.8156936804 | DD22: 0.04746399623 | DE22: 0.2184935629
X23: 4.150416171 | Y23: 4.833135157 | Z23: 5.515854142 | AA23: 6.198573127 | AB23: 6.881292113 | AC23: 7.564011098 | AD23: 8.246730083 | AE23: 8.929449069 | AF23: 9.612168054 | AG23: 10.29488704 | AH23: 10.97760602 | AI23: 11.66032501 | AJ23: 12.343044 | AK23: 13.02576298 | AL23: 13.70848197 | AM23: 14.39120095 | AN23: 15.07391994 | AO23: 15.75663892 | AP23: 16.43935791 | AQ23: 17.12207689 | AR23: 17.80479588 | AS23: 18.48751486 | AT23: 19.17023385 | AU23: 19.85295283 | AV23: 20.53567182 | AW23: 21.2183908 | BB23: 22 | BC23: 5 | BD23: 5 | BE23: 6 | BF23: 6 | BG23: 6 | BH23: 7 | BI23: 7 | BJ23: 9 | BK23: 9 | BL23: 9 | BM23: 11 | BN23: 11 | BO23: 13 | BP23: 13 | BQ23: 13 | BR23: 15 | BS23: 15 | BT23: 15 | BU23: 17 | BV23: 17 | BW23: 19 | BX23: 19 | BY23: 19 | BZ23: 21 | CA23: 21 | CB23: 21 | CC23: 7 | CD23: 7 | CF23: 0.7217926821 | CG23: 0.02784387598 | CH23: 0.2343972119 | CI23: 0.03943128686 | CJ23: 0.7766757877 | CK23: 0.3181085186 | CL23: 1.5543359 | CM23: 0.004977433926 | CN23: 0.3747497262 | CO23: 1.676732444 | CP23: 0.0005014901354 | CQ23: 0.4360291187 | CR23: 0.4315911922 | CS23: 0.0006637311683 | CT23: 0.501946696 | CU23: 0.3706362818 | CV23: 0.005464157024 | CW23: 0.5725024582 | CX23: 0.3143195562 | CY23: 0.0149027677 | CZ23: 1.428512893 | DA23: 0.2626410154 | DB23: 0.02897956321 | DC23: 1.315717201 | DD23: 0.2156006594 | DE23: 0.04769454353 | DH23: =CF24 -> 1.069607953
X24: 3.965781477 | Y24: 4.645924164 | Z24: 5.326066852 | AA24: 6.006209539 | AB24: 6.686352226 | AC24: 7.366494913 | AD24: 8.046637601 | AE24: 8.726780288 | AF24: 9.406922975 | AG24: 10.08706566 | AH24: 10.76720835 | AI24: 11.44735104 | AJ24: 12.12749372 | AK24: 12.80763641 | AL24: 13.4877791 | AM24: 14.16792179 | AN24: 14.84806447 | AO24: 15.52820716 | AP24: 16.20834985 | AQ24: 16.88849254 | AR24: 17.56863522 | AS24: 18.24877791 | AT24: 18.9289206 | AU24: 19.60906328 | AV24: 20.28920597 | AW24: 20.96934866 | BB24: 23 | BC24: 5 | BD24: 5 | BE24: 6 | BF24: 6 | BG24: 6 | BH24: 8 | BI24: 8 | BJ24: 9 | BK24: 9 | BL24: 9 | BM24: 11 | BN24: 11 | BO24: 13 | BP24: 13 | BQ24: 13 | BR24: 15 | BS24: 15 | BT24: 17 | BU24: 17 | BV24: 17 | BW24: 18 | BX24: 18 | BY24: 18 | BZ24: 21 | CA24: 21 | CB24: 21 | CC24: 21 | CD24: 18 | CF24: 1.069607953 | CG24: 0.1253696974 | CH24: 0.4541858885 | CI24: 3.855837346e-05 | CJ24: 0.4710793784 | CK24: 0.4013286947 | CL24: 0.002175065803 | CM24: 0.07464901102 | CN24: 0.1655863078 | CO24: 1.181711755 | CP24: 0.05419195238 | CQ24: 0.2001229504 | CR24: 0.761267201 | CS24: 0.03700375011 | CT24: 0.2379284494 | CU24: 0.6923541538 | CV24: 0.02308440421 | CW24: 2.166174162 | CX24: 0.6267099631 | CY24: 0.01243391467 | CZ24: 0.1860755712 | DA24: 0.06189044845 | DB24: 0.8628934759 | DC24: 1.934704947 | DD24: 0.5052281506 | DE24: 0.0009395047049
X25: 3.781146783 | Y25: 4.458713172 | Z25: 5.136279561 | AA25: 5.813845951 | AB25: 6.49141234 | AC25: 7.168978729 | AD25: 7.846545118 | AE25: 8.524111507 | AF25: 9.201677897 | AG25: 9.879244286 | AH25: 10.55681068 | AI25: 11.23437706 | AJ25: 11.91194345 | AK25: 12.58950984 | AL25: 13.26707623 | AM25: 13.94464262 | AN25: 14.62220901 | AO25: 15.2997754 | AP25: 15.97734179 | AQ25: 16.65490818 | AR25: 17.33247457 | AS25: 18.01004096 | AT25: 18.68760735 | AU25: 19.36517373 | AV25: 20.04274012 | AW25: 20.72030651 | BB25: 24 | BD25: 4 | BE25: 6 | BF25: 6 | BG25: 6 | BH25: 8 | BI25: 8 | BJ25: 8 | BK25: 8 | BL25: 8 | BM25: 8 | BN25: 12 | BO25: 12 | BP25: 12 | BQ25: 13 | BR25: 13 | BS25: 13 | BT25: 17 | BU25: 17 | BV25: 17 | BW25: 18 | BX25: 18 | BY25: 18 | BZ25: 21 | CA25: 21 | CB25: 21 | CC25: 21 | CD25: 18 | CF25: 285.9414199 | CG25: 0.2104177743 | CH25: 0.7460129961 | CI25: 0.03465333011 | CJ25: 0.2414860877 | CK25: 0.6905963528 | CL25: 0.02354840073 | CM25: 0.2746928723 | CN25: 1.444029767 | CO25: 3.531559086 | CP25: 6.537280828 | CQ25: 0.5861784796 | CR25: 0.007753955371 | CS25: 0.3475218547 | CT25: 0.0713297137 | CU25: 0.8923496818 | CV25: 2.631562074 | CW25: 2.890763692 | CX25: 1.045829817 | CY25: 0.1190883655 | CZ25: 0.4455902033 | DA25: 0.0001008208081 | DB25: 0.4728038619 | DC25: 2.672656917 | DD25: 0.9163464698 | DE25: 0.07822844644
X26: 3.596512089 | Y26: 4.27150218 | Z26: 4.946492271 | AA26: 5.621482362 | AB26: 6.296472453 | AC26: 6.971462545 | AD26: 7.646452636 | AE26: 8.321442727 | AF26: 8.996432818 | AG26: 9.671422909 | AH26: 10.346413 | AI26: 11.02140309 | AJ26: 11.69639318 | AK26: 12.37138327 | AL26: 13.04637337 | AM26: 13.72136346 | AN26: 14.39635355 | AO26: 15.07134364 | AP26: 15.74633373 | AQ26: 16.42132382 | AR26: 17.09631391 | AS26: 17.771304 | AT26: 18.44629409 | AU26: 19.12128419 | AV26: 19.79627428 | AW26: 20.47126437 | BB26: 25 | BD26: 4 | BE26: 4 | BF26: 4 | BG26: 8 | BH26: 8 | BI26: 8 | BJ26: 8 | BK26: 8 | BL26: 8 | BM26: 8 | BN26: 12 | BO26: 12 | BP26: 12 | BQ26: 13 | BR26: 13 | BS26: 16 | BT26: 17 | BU26: 17 | BV26: 17 | BW26: 18 | BX26: 18 | BY26: 18 | BZ26: 21 | CA26: 21 | CB26: 21 | CC26: 21 | CD26: 18 | CF26: 258.6979841 | CG26: 0.07371343371 | CH26: 0.8958476193 | CI26: 2.629205051 | CJ26: 2.902006102 | CK26: 1.057889297 | CL26: 0.1249957388 | CM26: 0.1033254267 | CN26: 0.9928783609 | CO26: 2.793654542 | CP26: 5.505653968 | CQ26: 0.9576519092 | CR26: 0.0921770995 | CS26: 0.1379255361 | CT26: 0.002150488985 | CU26: 0.5203652359 | CV26: 2.571681945 | CW26: 3.719715361 | CX26: 1.571679117 | CY26: 0.3348661203 | CZ26: 0.8166485456 | DA26: 0.05230185897 | DB26: 0.1991784186 | DC26: 3.529573112 | DD26: 1.448955617 | DE26: 0.2795613687
X27: 3.411877395 | Y27: 4.084291188 | Z27: 4.756704981 | AA27: 5.429118774 | AB27: 6.101532567 | AC27: 6.77394636 | AD27: 7.446360153 | AE27: 8.118773946 | AF27: 8.791187739 | AG27: 9.463601533 | AH27: 10.13601533 | AI27: 10.80842912 | AJ27: 11.48084291 | AK27: 12.1532567 | AL27: 12.8256705 | AM27: 13.49808429 | AN27: 14.17049808 | AO27: 14.84291188 | AP27: 15.51532567 | AQ27: 16.18773946 | AR27: 16.86015326 | AS27: 17.53256705 | AT27: 18.20498084 | AU27: 18.87739464 | AV27: 19.54980843 | AW27: 20.22222222 | BB27: 26 | BD27: 4 | BE27: 4 | BF27: 4 | BH27: 8 | BI27: 8 | BJ27: 8 | BK27: 8 | BL27: 8 | BM27: 8 | BN27: 12 | BO27: 12 | BP27: 12 | BQ27: 13 | BR27: 13 | BS27: 16 | BT27: 16 | BU27: 16 | BV27: 15 | BW27: 15 | BX27: 15 | BY27: 18 | BZ27: 19 | CA27: 19 | CB27: 19 | CC27: 12 | CD27: 10 | CF27: 232.8181471 | CG27: 0.007105004331 | CH27: 0.572602428 | CI27: 2.04238047 | CJ27: 744.5739933 | CK27: 1.503207528 | CL27: 0.3065170799 | CM27: 0.01410725033 | CN27: 0.6259780391 | CO27: 2.142129446 | CP27: 4.562561471 | CQ27: 1.419841165 | CR27: 0.2695240821 | CS27: 0.02348761762 | CT27: 0.03039077524 | CU27: 0.2480879611 | CV27: 3.34707726 | CW27: 1.338852923 | CX27: 0.2349092057 | CY27: 1.410725033 | CZ27: 3.460170138 | DA27: 6.413895862 | DB27: 0.04201714596 | DC27: 0.01503207528 | DD27: 0.3022893087 | DE27: 1.49382716
BC28: 6 | BD28: 18 | BE28: 7 | BF28: 6 | BG28: 6 | BH28: 11 | BI28: 11 | BJ28: 11 | BK28: 14 | BL28: 14 | BM28: 14 | BN28: 12 | BO28: 18 | BP28: 17 | BQ28: 17 | BR28: 20 | BS28: 16 | BT28: 16 | BU28: 16 | BV28: 15 | BW28: 15 | BX28: 15 | BY28: 18 | BZ28: 19 | CA28: 19 | CB28: 19 | CC28: 18 | CD28: 14
AX29: 40 | BC29: 6 | BD29: 6 | BE29: 7 | BF29: 7 | BG29: 7 | BH29: 11 | BI29: 11 | BJ29: 11 | BK29: 14 | BL29: 14 | BM29: 14 | BN29: 12 | BO29: 18 | BP29: 17 | BQ29: 17 | BR29: 20 | BS29: 16 | BT29: 16 | BU29: 16 | BV29: 6 | BW29: 6 | BX29: 6 | BY29: 19 | BZ29: 3 | CA29: 3 | CB29: 3 | CC29: 3 | CD29: 14 | CF29: =SUM(CF2:DE27)*-1 -> -4347.903944
AX30: -4347.903944 | AY30: LPQTFGYXSDRUEQTJLOXBDJEIDNQFRTAGKPILFWXKBGDUWXOMJJMDXYBORJRROTRPDHIOQDKQUAEONPHRTMDIDAHAUXRXVADKRLLXLLEYYWEHHCIYURRIKHXXFAHNAFNMOGFKEFKARUAINUKKWXUKXWQAEQUSBFMIAHYTOLGKVCFYQPGUVMXWLVVAPTFDJRQOUHIMSSNUTJUUDINNGKRNOWURFGLRTSDCHXFHPLMUXUUMMSCGPYVGOQAAIPWTGJNANSOQQTUSTRQMJLUPOWRQKMOAKPXIHAXYGLNQFIIGLWYW
AV31: =AY31=AY30 -> FALSE | AX31: -4348.442589 | AY31: LPQTFGYXSDRUEQTJLOXBDJEIDNQFRTAFKOILFWXKBGDUWXOMJJMDXYBOSJRROTRPDHIOQDKQUAEONPHRTMDICAHAUXRXVADKRLLXLLEYYWEHHCIYURRIKHXXFAHNAFNMOGFKEFKARUAINUKKWXUKXWQAEQUSBFMIAHYTOLGKVCFYQPGUVMXWLVVAPTFDJRQOUHIMSSNUTJUUDINNGKRNOWURFGLRTSDCHXFHPLMUXUUMMSCGPYVGOQAAIPWTGJNANSOQQTUSTRQMJLUPOWRQKMOAKPXIHAXYGLNQFIIGLWYQ
AV32: =AY32=AY31 -> FALSE | AX32: -4348.442589 | AY32: LPQTFGYXSDRUEQTJLOXBDJEIDNQFSTAGKPILFWXKBGDUWXOMJJMDXYBOSJRROTRPDHIOQDKQUAEONPHRTMDIDAHAUXRXVADKRLLXLLEYYWEHHCIYURRIKHXXFAHNAFNMOGFKEFKARUAINUKKWXUKXWQAEQUSBFMIAHYTOLGKVCFYQPGUVMXWLVVAPTFDJRQOUHIMSSNUTJUUDINNGKRNOWURFGLRTSDCHXFHPLMUXUUMMSCGPYVGOQAAIPWTGJNANSOQQTUSTRQMJLUPOWRQKMOAKPXIHAXYGLNQFIIGLWYW
AV33: FALSE | AX33: -4348.442589 | AY33: LPQTFGYXSDRUEQTJLOXBDJEIDNQFSTAGKPILFWXKBGDUWXOMJJMDXYBOSJRROTRPDHIOQDKQUAEONPHRTMDIDAHAUXRXVADKRLLXLLEYYWEHHCIYURRIKHXXFAHNAFNMOGFKEFKARUAINUKKWXUKXWQAEQUSBFMIAHYTOLGKVCFYQPGUVMXWLVVAPTFDJRQOUHIMSSNUTJUUDINNGKRNOWURFGLRTSDCHXFHPLMUXUUMMSCGPYVGOQAAIPWTGJNANSOQQTUSTRQMJLUPOWRQKMOAKPXIHAXYGLNQFIIGLWYQ
AV34: FALSE | AX34: -4348.442589 | AY34: LPQTFGYXSDRUEQTJLOXBDJEIDNQFSTAGKPILFWXKBGDUWXOMJJMDXYBOSJRROTRPDHIOQDKQUAEONPHRTMDIDAHAUXRXVADKRLLXLLEYYWEHHCIYURRIKHXXFAHNAFNMOGFKEFKARUAINUKKWXUKXWQAEQUSBFMIAHYTOLGKVCFYQPGUVMXWLVVAPTFDJRQOUHIMSSNUTJUUDINNGKRNOWURFGLRTSDCHXFHPLMUXUUMMSCGPYVGOQAAIPWTGJNANSOQQTUSTRQMJLUPOWRQKMOAKPXIHAXYGLNQFIIGLDYD
AV35: FALSE | AX35: -4348.442589 | AY35: LPQTFGYXSDRUEQTJLOXBDJEIDNQFSTAGKPILFWXKBGDUWXOMJJMDXYBOSJRROTRPDHIOQDKQUAEONPHRTMDICAHAUXRXVADKRLLXLLEYYWEHHCIYURRIKHXXFAHNAFNMOGFKEFKARUAINUKKWXUKXWQAEQUSBFMIAHYTOLGKVCFYQPGUVMXWLVVAPTFDJRQOUHIMSSNUTJUUDINNGKRNOWURFGLRTSDCHXFHPLMUXUUMMSCGPYVGOQAAIPWTGJNANSOQQTUSTRQMJLUPOWRQKMOAKPXIHAXYGLNQFIIGLWYW
AV36: FALSE | AX36: -4348.442589 | AY36: LPQTFGYXSDRUEQTJLOXBDJEIDNQFSTAGKPILFWXKBGDUWXOMJJMDXYBOSJRROTRPDHIOQDKQUAEONPHRTMDICAHAUXRXVADKRLLXLLEYYWEHHCIYURRIKHXXFAHNAFNMOGFKEFKARUAINUKKWXUKXWQAEQUSBFMIAHYTOLGKVCFYQPGUVMXWLVVAPTFDJRQOUHIMSSNUTJUUDINNGKRNOWURFGLRTSDCHXFHPLMUXUUMMSCGPYVGOQAAIPWTGJNANSOQQTUSTRQMJLUPOWRQKMOAKPXIHAXYGLNQFIIGLWYQ
AV37: FALSE | AX37: -4348.442589 | AY37: LPQTFGYXSDRUEQTJLOXBDJEIDNQFRTAFKOILFWXKBGDUWXOMJJMDXYBOSJRROTRPDHIOQDKQUAEONPHRTMDICAHAUXRXVADKRLLXLLEYYWEHHCIYURRIKHXXFAHNAFNMOGFKEFKARUAINUKKWXUKXWQAEQUSBFMIAHYTOLGKVCFYQPGUVMXWLVVAPTFDJRQOUHIMSSNUTJUUDINNGKRNOWURFGLRTSDCHXFHPLMUXUUMMSCGPYVGOQAAIPWTGJNANSOQQTUSTRQMJLUPOWRQKMOAKPXIHAXYGLNQFIIGLWYQ
AV38: FALSE | AX38: -4348.442589 | AY38: LPQTFGYXSDRUEQTJLOXBDJEIDNQFSTAGKOILFWXKBGDUWXOMJJMDXYBOSJRROTRPDHIOQDKQUAEONPHRTMDIDAHAUXRXVADKRLLXLLEYYWEHHCIYURRIKHXXFAHNAFNMOGFKEFKARUAINUKKWXUKXWQAEQUSBFMIAHYTOLGKVCFYQPGUVMXWLVVAPTFDJRQOUHIMSSNUTJUUDINNGKRNOWURFGLRTSDCHXFHPLMUXUUMMSCGPYVGOQAAIPWTGJNANSOQQTUSTRQMJLUPOWRQKMOAKPXIHAXYGLNQFIIGLWYW
AV39: TRUE | AX39: -4348.442589 | AY39: LPQTFGYXSDRUEQTJLOXBDJEIDNQFSTAGKOILFWXKBGDUWXOMJJMDXYBOSJRROTRPDHIOQDKQUAEONPHRTMDIDAHAUXRXVADKRLLXLLEYYWEHHCIYURRIKHXXFAHNAFNMOGFKEFKARUAINUKKWXUKXWQAEQUSBFMIAHYTOLGKVCFYQPGUVMXWLVVAPTFDJRQOUHIMSSNUTJUUDINNGKRNOWURFGLRTSDCHXFHPLMUXUUMMSCGPYVGOQAAIPWTGJNANSOQQTUSTRQMJLUPOWRQKMOAKPXIHAXYGLNQFIIGLWYW
AV40: FALSE | AX40: -4348.442589 | AY40: LPQTFGYXSDRUEQTJLOXBDJEIDNQFSTAGKOILFWXKBGDUWXOMJJMDXYBOSJRROTRPDHIOQDKQUAEONPHRTMDIDAHAUXRXVADKRLLXLLEYYWEHHCIYURRIKHXXFAHNAFNMOGFKEFKARUAINUKKWXUKXWQAEQUSBFMIAHYTOLGKVCFYQPGUVMXWLVVAPTFDJRQOUHIMSSNUTJUUDINNGKRNOWURFGLRTSDCHXFHPLMUXUUMMSCGPYVGOQAAIPWTGJNANSOQQTUSTRQMJLUPOWRQKMOAKPXIHAXYGLNQFIIGLWYQ
AV41: FALSE | AX41: -4348.442589 | AY41: LPQTFGYXSDRUEQTJLOXBDJEIDNQFSTAGKOILFWXKBGDUWXOMJJMDXYBOSJRROTRPDHIOQDKQUAEONPHRTMDIDAHAUXRXVADKRLLXLLEYYWEHHCIYURRIKHXXFAHNAFNMOGFKEFKARUAINUKKWXUKXWQAEQUSBFMIAHYTOLGKVCFYQPGUVMXWLVVAPTFDJRQOUHIMSSNUTJUUDINNGKRNOWURFGLRTSDCHXFHPLMUXUUMMSCGPYVGOQAAIPWTGJNANSOQQTUSTRQMJLUPOWRQKMOAKPXIHAXYGLNQFIIGLWYM
AV42: TRUE | AX42: -4348.442589 | AY42: LPQTFGYXSDRUEQTJLOXBDJEIDNQFSTAGKOILFWXKBGDUWXOMJJMDXYBOSJRROTRPDHIOQDKQUAEONPHRTMDIDAHAUXRXVADKRLLXLLEYYWEHHCIYURRIKHXXFAHNAFNMOGFKEFKARUAINUKKWXUKXWQAEQUSBFMIAHYTOLGKVCFYQPGUVMXWLVVAPTFDJRQOUHIMSSNUTJUUDINNGKRNOWURFGLRTSDCHXFHPLMUXUUMMSCGPYVGOQAAIPWTGJNANSOQQTUSTRQMJLUPOWRQKMOAKPXIHAXYGLNQFIIGLWYM
AV43: TRUE | AX43: -4348.442589 | AY43: LPQTFGYXSDRUEQTJLOXBDJEIDNQFSTAGKOILFWXKBGDUWXOMJJMDXYBOSJRROTRPDHIOQDKQUAEONPHRTMDIDAHAUXRXVADKRLLXLLEYYWEHHCIYURRIKHXXFAHNAFNMOGFKEFKARUAINUKKWXUKXWQAEQUSBFMIAHYTOLGKVCFYQPGUVMXWLVVAPTFDJRQOUHIMSSNUTJUUDINNGKRNOWURFGLRTSDCHXFHPLMUXUUMMSCGPYVGOQAAIPWTGJNANSOQQTUSTRQMJLUPOWRQKMOAKPXIHAXYGLNQFIIGLWYM
AV44: TRUE | AX44: -4348.442589 | AY44: LPQTFGYXSDRUEQTJLOXBDJEIDNQFSTAGKOILFWXKBGDUWXOMJJMDXYBOSJRROTRPDHIOQDKQUAEONPHRTMDIDAHAUXRXVADKRLLXLLEYYWEHHCIYURRIKHXXFAHNAFNMOGFKEFKARUAINUKKWXUKXWQAEQUSBFMIAHYTOLGKVCFYQPGUVMXWLVVAPTFDJRQOUHIMSSNUTJUUDINNGKRNOWURFGLRTSDCHXFHPLMUXUUMMSCGPYVGOQAAIPWTGJNANSOQQTUSTRQMJLUPOWRQKMOAKPXIHAXYGLNQFIIGLWYM
AV45: TRUE | AX45: -4348.442589 | AY45: LPQTFGYXSDRUEQTJLOXBDJEIDNQFSTAGKOILFWXKBGDUWXOMJJMDXYBOSJRROTRPDHIOQDKQUAEONPHRTMDIDAHAUXRXVADKRLLXLLEYYWEHHCIYURRIKHXXFAHNAFNMOGFKEFKARUAINUKKWXUKXWQAEQUSBFMIAHYTOLGKVCFYQPGUVMXWLVVAPTFDJRQOUHIMSSNUTJUUDINNGKRNOWURFGLRTSDCHXFHPLMUXUUMMSCGPYVGOQAAIPWTGJNANSOQQTUSTRQMJLUPOWRQKMOAKPXIHAXYGLNQFIIGLWYM
AV46: FALSE | AX46: -4348.442589 | AY46: LPQTFGYXSDRUEQTJLOXBDJEIDNQFSTAGKOILFWXKBGDUWXOMJJMDXYBOSJRROTRPDHIOQDKQUAEONPHRTMDIDAHAUXRXVADKRLLXLLEYYWEHHCIYURRIKHXXFAHNAFNMOGFKEFKARUAINUKKWXUKXWQAEQUSBFMIAHYTOLGKVCFYQPGUVMXWLVVAPTFDJRQOUHIMSSNUTJUUDINNGKRNOWURFGLRTSDCHXFHPLMUXUUMMSCGPYVGOQAAIPWTGJNANSOQQTUSTRQMJLUPOWRQKMOAKPXIHAXYGLNQFIIGLWYH
AV47: FALSE | AX47: -4348.442589 | AY47: LPQTFGYXSDRUEQTJLOXBDJEIDNQFSTAGKOILFWXKBGDUWXOMJJMDXYBOSJRROTRPDHIOQDKQUAEONPHRTMDIDAHAUXRXVADKRLLXLLEYYWEHHCIYURRIKHXXFAHNAFNMOGFKEFKARUAINUKKWXUKXWQAEQUSBFMIAHYTOLGKVCFYQPGUVMXWLVVAPTFDJRQOUHIMSSNUTJUUDINNGKRNOWURFGLRTSDCHXFHPLMUXUUMMSCGPYVGOQAAIPWTGJNANSOQQTUSTRQMJLUPOWRQKMOAKPXIHAXYGLNQFIIGLDYD
AV48: FALSE | AX48: -4348.442589 | AY48: LPQTFGYXSDRUEQTJLOXBDJEIDNQFSTAFKPILFWXKBGDUWXOMJJMDXYBOSJRROTRPDHIOQDKQUAEONPHRTMDIDAHAUXRXVADKRLLXLLEYYWEHHCIYURRIKHXXFAHNAFNMOGFKEFKARUAINUKKWXUKXWQAEQUSBFMIAHYTOLGKVCFYQPGUVMXWLVVAPTFDJRQOUHIMSSNUTJUUDINNGKRNOWURFGLRTSDCHXFHPLMUXUUMMSCGPYVGOQAAIPWTGJNANSOQQTUSTRQMJLUPOWRQKMOAKPXIHAXYGLNQFIIGLWYQ
AV49: FALSE | AX49: -4348.442589 | AY49: LPQTFGYXSDRUEQTJLOXBDJEIDNQFSTAFKOILFWXKBGDUWXOMJJMDXYBOSJRROTRPDHIOQDKQUAEONPHRTMDIDAHAUXRXVADKRLLXLLEYYWEHHCIYURRIKHXXFAHNAFNMOGFKEFKARUAINUKKWXUKXWQAEQUSBFMIAHYTOLGKVCFYQPGUVMXWLVVAPTFDJRQOUHIMSSNUTJUUDINNGKRNOWURFGLRTSDCHXFHPLMUXUUMMSCGPYVGOQAAIPWTGJNANSOQQTUSTRQMJLUPOWRQKMOAKPXIHAXYGLNQFIIGLWYW
AV50: TRUE | AX50: -4348.442589 | AY50: LPQTFGYXSDRUEQTJLOXBDJEIDNQFSTAFKOILFWXKBGDUWXOMJJMDXYBOSJRROTRPDHIOQDKQUAEONPHRTMDIDAHAUXRXVADKRLLXLLEYYWEHHCIYURRIKHXXFAHNAFNMOGFKEFKARUAINUKKWXUKXWQAEQUSBFMIAHYTOLGKVCFYQPGUVMXWLVVAPTFDJRQOUHIMSSNUTJUUDINNGKRNOWURFGLRTSDCHXFHPLMUXUUMMSCGPYVGOQAAIPWTGJNANSOQQTUSTRQMJLUPOWRQKMOAKPXIHAXYGLNQFIIGLWYW
AV51: TRUE | AX51: -4348.442589 | AY51: LPQTFGYXSDRUEQTJLOXBDJEIDNQFSTAFKOILFWXKBGDUWXOMJJMDXYBOSJRROTRPDHIOQDKQUAEONPHRTMDIDAHAUXRXVADKRLLXLLEYYWEHHCIYURRIKHXXFAHNAFNMOGFKEFKARUAINUKKWXUKXWQAEQUSBFMIAHYTOLGKVCFYQPGUVMXWLVVAPTFDJRQOUHIMSSNUTJUUDINNGKRNOWURFGLRTSDCHXFHPLMUXUUMMSCGPYVGOQAAIPWTGJNANSOQQTUSTRQMJLUPOWRQKMOAKPXIHAXYGLNQFIIGLWYW
AV52: FALSE | AX52: -4348.442589 | AY52: LPQTFGYXSDRUEQTJLOXBDJEIDNQFSTAFKOILFWXKBGDUWXOMJJMDXYBOSJRROTRPDHIOQDKQUAEONPHRTMDIDAHAUXRXVADKRLLXLLEYYWEHHCIYURRIKHXXFAHNAFNMOGFKEFKARUAINUKKWXUKXWQAEQUSBFMIAHYTOLGKVCFYQPGUVMXWLVVAPTFDJRQOUHIMSSNUTJUUDINNGKRNOWURFGLRTSDCHXFHPLMUXUUMMSCGPYVGOQAAIPWTGJNANSOQQTUSTRQMJLUPOWRQKMOAKPXIHAXYGLNQFIIGLWYQ
AV53: TRUE | AX53: -4348.442589 | AY53: LPQTFGYXSDRUEQTJLOXBDJEIDNQFSTAFKOILFWXKBGDUWXOMJJMDXYBOSJRROTRPDHIOQDKQUAEONPHRTMDIDAHAUXRXVADKRLLXLLEYYWEHHCIYURRIKHXXFAHNAFNMOGFKEFKARUAINUKKWXUKXWQAEQUSBFMIAHYTOLGKVCFYQPGUVMXWLVVAPTFDJRQOUHIMSSNUTJUUDINNGKRNOWURFGLRTSDCHXFHPLMUXUUMMSCGPYVGOQAAIPWTGJNANSOQQTUSTRQMJLUPOWRQKMOAKPXIHAXYGLNQFIIGLWYQ
AV54: FALSE | AX54: -4348.442589 | AY54: LPQTFGYXSDRUEQTJLOXBDJEIDNQFSTAFKOILFWXKBGDUWXOMJJMDXYBOSJRROTRPDHIOQDKQUAEONPHRTMDIDAHAUXRXVADKRLLXLLEYYWEHHCIYURRIKHXXFAHNAFNMOGFKEFKARUAINUKKWXUKXWQAEQUSBFMIAHYTOLGKVCFYQPGUVMXWLVVAPTFDJRQOUHIMSSNUTJUUDINNGKRNOWURFGLRTSDCHXFHPLMUXUUMMSCGPYVGOQAAIPWTGJNANSOQQTUSTRQMJLUPOWRQKMOAKPXIHAXYGLNQFIIGLWYM
AV55: FALSE | AX55: -4348.442589 | AY55: LPQTFGYXSDRUEQTJLOXBDJEIDNQFSTAFKOILFWXKBGDUWXOMJJMDXYBOSJRROTRPDHIOQDKQUAEONPHRTMDIDAHAUXRXVADKRLLXLLEYYWEHHCIYURRIKHXXFAHNAFNMOGFKEFKARUAINUKKWXUKXWQAEQUSBFMIAHYTOLGKVCFYQPGUVMXWLVVAPTFDJRQOUHIMSSNUTJUUDINNGKRNOWURFGLRTSDCHXFHPLMUXUUMMSCGPYVGOQAAIPWTGJNANSOQQTUSTRQMJLUPOWRQKMOAKPXIHAXYGLNQFIIGLWYH
AV56: FALSE | AX56: -4348.442589 | AY56: LPQTFGYXSDRUEQTJLOXBDJEIDNQFSTAGKPILFWXKBGDUWXOMJJMDXYBOSJRROTRPDHIOQDKQUAEONPHRTMDIDAHAUXRXVADKRLLXLLEYYWEHHCIYURRIKHXXFAHNAFNMOGFKEFKARUAINUKKWXUKXWQAEQUSBFMIAHYTOLGKVCFYQPGUVMXWLVVAPTFDJRQOUHIMSSNUTJUUDINNGKRNOWURFGLRTSDCHXFHPLMUXUUMMSCGPYVGOQAAIPWTGJNANSOQQTUSTRQMJLUPOWRQKMOAKPXIHAXYGLNQFIIGLWYW
AV57: FALSE | AX57: -4348.442589 | AY57: LPQTFGYXSDRUEQTJLOXBDJEIDNQFSTAGKPILFWXKBGDUWXOMJJMDXYBOSJRROTRPDHIOQDKQUAEONPHRTMDIDAHAUXRXVADKRLLXLLEYYWEHHCIYURRIKHXXFAHNAFNMOGFKEFKARUAINUKKWXUKXWQAEQUSBFMIAHYTOLGKVCFYQPGUVMXWLVVAPTFDJRQOUHIMSSNUTJUUDINNGKRNOWURFGLRTSDCHXFHPLMUXUUMMSCGPYVGOQAAIPWTGJNANSOQQTUSTRQMJLUPOWRQKMOAKPXIHAXYGLNQFIIGLWYQ
AV58: FALSE | AX58: -4348.442589 | AY58: LPQTFGYXSDRUEQTJLOXBDJEIDNQFRTAFKPILFWXKBGDUWXOMJJMDXYBOSJRROTRPDHIOQDKQUAEONPHRTMDIDAHAUXRXVADKRLLXLLEYYWEHHCIYURRIKHXXFAHNAFNMOGFKEFKARUAINUKKWXUKXWQAEQUSBFMIAHYTOLGKVCFYQPGUVMXWLVVAPTFDJRQOUHIMSSNUTJUUDINNGKRNOWURFGLRTSDCHXFHPLMUXUUMMSCGPYVGOQAAIPWTGJNANSOQQTUSTRQMJLUPOWRQKMOAKPXIHAXYGLNQFIIGLWYQ
AV59: FALSE | AX59: -4348.442589 | AY59: LPQTFGYXSDRUEQTJLOXBDJEIDNQFRTAFKPILFWXKBGDUWXOMJJMDXYBOSJRROTRPDHIOQDKQUAEONPHRTMDICAHAUXRXVADKRLLXLLEYYWEHHCIYURRIKHXXFAHNAFNMOGFKEFKARUAINUKKWXUKXWQAEQUSBFMIAHYTOLGKVCFYQPGUVMXWLVVAPTFDJRQOUHIMSSNUTJUUDINNGKRNOWURFGLRTSDCHXFHPLMUXUUMMSCGPYVGOQAAIPWTGJNANSOQQTUSTRQMJLUPOWRQKMOAKPXIHAXYGLNQFIIGLWYW
AV60: FALSE | AX60: -4348.442589 | AY60: LPQTFGYXSDRUEQTJLOXBDJEIDNQFRTAFKPILFWXKBGDUWXOMJJMDXYBOSJRROTRPDHIOQDKQUAEONPHRTMDICAHAUXRXVADKRLLXLLEYYWEHHCIYURRIKHXXFAHNAFNMOGFKEFKARUAINUKKWXUKXWQAEQUSBFMIAHYTOLGKVCFYQPGUVMXWLVVAPTFDJRQOUHIMSSNUTJUUDINNGKRNOWURFGLRTSDCHXFHPLMUXUUMMSCGPYVGOQAAIPWTGJNANSOQQTUSTRQMJLUPOWRQKMOAKPXIHAXYGLNQFIIGLWYQ
AV61: TRUE | AX61: -4348.442589 | AY61: LPQTFGYXSDRUEQTJLOXBDJEIDNQFRTAFKPILFWXKBGDUWXOMJJMDXYBOSJRROTRPDHIOQDKQUAEONPHRTMDICAHAUXRXVADKRLLXLLEYYWEHHCIYURRIKHXXFAHNAFNMOGFKEFKARUAINUKKWXUKXWQAEQUSBFMIAHYTOLGKVCFYQPGUVMXWLVVAPTFDJRQOUHIMSSNUTJUUDINNGKRNOWURFGLRTSDCHXFHPLMUXUUMMSCGPYVGOQAAIPWTGJNANSOQQTUSTRQMJLUPOWRQKMOAKPXIHAXYGLNQFIIGLWYQ
AV62: TRUE | AX62: -4348.442589 | AY62: LPQTFGYXSDRUEQTJLOXBDJEIDNQFRTAFKPILFWXKBGDUWXOMJJMDXYBOSJRROTRPDHIOQDKQUAEONPHRTMDICAHAUXRXVADKRLLXLLEYYWEHHCIYURRIKHXXFAHNAFNMOGFKEFKARUAINUKKWXUKXWQAEQUSBFMIAHYTOLGKVCFYQPGUVMXWLVVAPTFDJRQOUHIMSSNUTJUUDINNGKRNOWURFGLRTSDCHXFHPLMUXUUMMSCGPYVGOQAAIPWTGJNANSOQQTUSTRQMJLUPOWRQKMOAKPXIHAXYGLNQFIIGLWYQ
AV63: TRUE | AX63: -4348.442589 | AY63: LPQTFGYXSDRUEQTJLOXBDJEIDNQFRTAFKPILFWXKBGDUWXOMJJMDXYBOSJRROTRPDHIOQDKQUAEONPHRTMDICAHAUXRXVADKRLLXLLEYYWEHHCIYURRIKHXXFAHNAFNMOGFKEFKARUAINUKKWXUKXWQAEQUSBFMIAHYTOLGKVCFYQPGUVMXWLVVAPTFDJRQOUHIMSSNUTJUUDINNGKRNOWURFGLRTSDCHXFHPLMUXUUMMSCGPYVGOQAAIPWTGJNANSOQQTUSTRQMJLUPOWRQKMOAKPXIHAXYGLNQFIIGLWYQ
AV64: TRUE | AX64: -4348.442589 | AY64: LPQTFGYXSDRUEQTJLOXBDJEIDNQFRTAFKPILFWXKBGDUWXOMJJMDXYBOSJRROTRPDHIOQDKQUAEONPHRTMDICAHAUXRXVADKRLLXLLEYYWEHHCIYURRIKHXXFAHNAFNMOGFKEFKARUAINUKKWXUKXWQAEQUSBFMIAHYTOLGKVCFYQPGUVMXWLVVAPTFDJRQOUHIMSSNUTJUUDINNGKRNOWURFGLRTSDCHXFHPLMUXUUMMSCGPYVGOQAAIPWTGJNANSOQQTUSTRQMJLUPOWRQKMOAKPXIHAXYGLNQFIIGLWYQ
AV65: FALSE | AX65: -4348.442589 | AY65: LPQTFGYXSDRUEQTJLOXBDJEIDNQFRTAFKOILFWXKBGDUWXOMJJMDXYBOSJRROTRPDHIOQDKQUAEONPHRTMDIDAHAUXRXVADKRLLXLLEYYWEHHCIYURRIKHXXFAHNAFNMOGFKEFKARUAINUKKWXUKXWQAEQUSBFMIAHYTOLGKVCFYQPGUVMXWLVVAPTFDJRQOUHIMSSNUTJUUDINNGKRNOWURFGLRTSDCHXFHPLMUXUUMMSCGPYVGOQAAIPWTGJNANSOQQTUSTRQMJLUPOWRQKMOAKPXIHAXYGLNQFIIGLWYW
AV66: TRUE | AX66: -4348.442589 | AY66: LPQTFGYXSDRUEQTJLOXBDJEIDNQFRTAFKOILFWXKBGDUWXOMJJMDXYBOSJRROTRPDHIOQDKQUAEONPHRTMDIDAHAUXRXVADKRLLXLLEYYWEHHCIYURRIKHXXFAHNAFNMOGFKEFKARUAINUKKWXUKXWQAEQUSBFMIAHYTOLGKVCFYQPGUVMXWLVVAPTFDJRQOUHIMSSNUTJUUDINNGKRNOWURFGLRTSDCHXFHPLMUXUUMMSCGPYVGOQAAIPWTGJNANSOQQTUSTRQMJLUPOWRQKMOAKPXIHAXYGLNQFIIGLWYW
AV67: TRUE | AX67: -4348.442589 | AY67: LPQTFGYXSDRUEQTJLOXBDJEIDNQFRTAFKOILFWXKBGDUWXOMJJMDXYBOSJRROTRPDHIOQDKQUAEONPHRTMDIDAHAUXRXVADKRLLXLLEYYWEHHCIYURRIKHXXFAHNAFNMOGFKEFKARUAINUKKWXUKXWQAEQUSBFMIAHYTOLGKVCFYQPGUVMXWLVVAPTFDJRQOUHIMSSNUTJUUDINNGKRNOWURFGLRTSDCHXFHPLMUXUUMMSCGPYVGOQAAIPWTGJNANSOQQTUSTRQMJLUPOWRQKMOAKPXIHAXYGLNQFIIGLWYW
AV68: FALSE | AX68: -4348.442589 | AY68: LPQTFGYXSDRUEQTJLOXBDJEIDNQFRTAFKOILFWXKBGDUWXOMJJMDXYBOSJRROTRPDHIOQDKQUAEONPHRTMDIDAHAUXRXVADKRLLXLLEYYWEHHCIYURRIKHXXFAHNAFNMOGFKEFKARUAINUKKWXUKXWQAEQUSBFMIAHYTOLGKVCFYQPGUVMXWLVVAPTFDJRQOUHIMSSNUTJUUDINNGKRNOWURFGLRTSDCHXFHPLMUXUUMMSCGPYVGOQAAIPWTGJNANSOQQTUSTRQMJLUPOWRQKMOAKPXIHAXYGLNQFIIGLWYQ
AV69: TRUE | AX69: -4348.442589 | AY69: LPQTFGYXSDRUEQTJLOXBDJEIDNQFRTAFKOILFWXKBGDUWXOMJJMDXYBOSJRROTRPDHIOQDKQUAEONPHRTMDIDAHAUXRXVADKRLLXLLEYYWEHHCIYURRIKHXXFAHNAFNMOGFKEFKARUAINUKKWXUKXWQAEQUSBFMIAHYTOLGKVCFYQPGUVMXWLVVAPTFDJRQOUHIMSSNUTJUUDINNGKRNOWURFGLRTSDCHXFHPLMUXUUMMSCGPYVGOQAAIPWTGJNANSOQQTUSTRQMJLUPOWRQKMOAKPXIHAXYGLNQFIIGLWYQ
AX70: -4348.442589 | AY70: LPQTFGYXSDRUEQTJLOXBDJEIDNQFRTAFKOILFWXKBGDUWXOMJJMDXYBOSJRROTRPDHIOQDKQUAEONPHRTMDIDAHAUXRXVADKRLLXLLEYYWEHHCIYURRIKHXXFAHNAFNMOGFKEFKARUAINUKKWXUKXWQAEQUSBFMIAHYTOLGKVCFYQPGUVMXWLVVAPTFDJRQOUHIMSSNUTJUUDINNGKRNOWURFGLRTSDCHXFHPLMUXUUMMSCGPYVGOQAAIPWTGJNANSOQQTUSTRQMJLUPOWRQKMOAKPXIHAXYGLNQFIIGLWYQ
AX71: -4348.442589 | AY71: LPQTFGYXSDRUEQTJLOXBDJEIDNQFRTAFKOILFWXKBGDUWXOMJJMDXYBOSJRROTRPDHIOQDKQUAEONPHRTMDIDAHAUXRXVADKRLLXLLEYYWEHHCIYURRIKHXXFAHNAFNMOGFKEFKARUAINUKKWXUKXWQAEQUSBFMIAHYTOLGKVCFYQPGUVMXWLVVAPTFDJRQOUHIMSSNUTJUUDINNGKRNOWURFGLRTSDCHXFHPLMUXUUMMSCGPYVGOQAAIPWTGJNANSOQQTUSTRQMJLUPOWRQKMOAKPXIHAXYGLNQFIIGLWYQ
AX72: -4348.442589 | AY72: LPQTFGYXSDRUEQTJLOXBDJEIDNQFRTAFKOILFWXKBGDUWXOMJJMDXYBOSJRROTRPDHIOQDKQUAEONPHRTMDIDAHAUXRXVADKRLLXLLEYYWEHHCIYURRIKHXXFAHNAFNMOGFKEFKARUAINUKKWXUKXWQAEQUSBFMIAHYTOLGKVCFYQPGUVMXWLVVAPTFDJRQOUHIMSSNUTJUUDINNGKRNOWURFGLRTSDCHXFHPLMUXUUMMSCGPYVGOQAAIPWTGJNANSOQQTUSTRQMJLUPOWRQKMOAKPXIHAXYGLNQFIIGLWYQ
AX73: -4348.442589 | AY73: LPQTFGYXSDRUEQTJLOXBDJEIDNQFRTAFKOILFWXKBGDUWXOMJJMDXYBOSJRROTRPDHIOQDKQUAEONPHRTMDIDAHAUXRXVADKRLLXLLEYYWEHHCIYURRIKHXXFAHNAFNMOGFKEFKARUAINUKKWXUKXWQAEQUSBFMIAHYTOLGKVCFYQPGUVMXWLVVAPTFDJRQOUHIMSSNUTJUUDINNGKRNOWURFGLRTSDCHXFHPLMUXUUMMSCGPYVGOQAAIPWTGJNANSOQQTUSTRQMJLUPOWRQKMOAKPXIHAXYGLNQFIIGLWYM
AX74: -4348.442589 | AY74: LPQTFGYXSDRUEQTJLOXBDJEIDNQFRTAFKOILFWXKBGDUWXOMJJMDXYBOSJRROTRPDHIOQDKQUAEONPHRTMDICAHAUXRXVADKRLLXLLEYYWEHHCIYURRIKHXXFAHNAFNMOGFKEFKARUAINUKKWXUKXWQAEQUSBFMIAHYTOLGKVCFYQPGUVMXWLVVAPTFDJRQOUHIMSSNUTJUUDINNGKRNOWURFGLRTSDCHXFHPLMUXUUMMSCGPYVGOQAAIPWTGJNANSOQQTUSTRQMJLUPOWRQKMOAKPXIHAXYGLNQFIIGLWYW
AX75: -4348.442589 | AY75: LPQTFGYXSDRUEQTJLOXBDJEIDNQFRTAFKOILFWXKBGDUWXOMJJMDXYBOSJRROTRPDHIOQDKQUAEONPHRTMDICAHAUXRXVADKRLLXLLEYYWEHHCIYURRIKHXXFAHNAFNMOGFKEFKARUAINUKKWXUKXWQAEQUSBFMIAHYTOLGKVCFYQPGUVMXWLVVAPTFDJRQOUHIMSSNUTJUUDINNGKRNOWURFGLRTSDCHXFHPLMUXUUMMSCGPYVGOQAAIPWTGJNANSOQQTUSTRQMJLUPOWRQKMOAKPXIHAXYGLNQFIIGLWYW
AX76: -4348.442589 | AY76: LPQTFGYXSDRUEQTJLOXBDJEIDNQFRTAFKOILFWXKBGDUWXOMJJMDXYBOSJRROTRPDHIOQDKQUAEONPHRTMDICAHAUXRXVADKRLLXLLEYYWEHHCIYURRIKHXXFAHNAFNMOGFKEFKARUAINUKKWXUKXWQAEQUSBFMIAHYTOLGKVCFYQPGUVMXWLVVAPTFDJRQOUHIMSSNUTJUUDINNGKRNOWURFGLRTSDCHXFHPLMUXUUMMSCGPYVGOQAAIPWTGJNANSOQQTUSTRQMJLUPOWRQKMOAKPXIHAXYGLNQFIIGLWYW
AX77: -4348.442589 | AY77: LPQTFGYXSDRUEQTJLOXBDJEIDNQFRTAFKOILFWXKBGDUWXOMJJMDXYBOSJRROTRPDHIOQDKQUAEONPHRTMDICAHAUXRXVADKRLLXLLEYYWEHHCIYURRIKHXXFAHNAFNMOGFKEFKARUAINUKKWXUKXWQAEQUSBFMIAHYTOLGKVCFYQPGUVMXWLVVAPTFDJRQOUHIMSSNUTJUUDINNGKRNOWURFGLRTSDCHXFHPLMUXUUMMSCGPYVGOQAAIPWTGJNANSOQQTUSTRQMJLUPOWRQKMOAKPXIHAXYGLNQFIIGLWYW
AX78: -4348.442589 | AY78: LPQTFGYXSDRUEQTJLOXBDJEIDNQFRTAFKOILFWXKBGDUWXOMJJMDXYBOSJRROTRPDHIOQDKQUAEONPHRTMDICAHAUXRXVADKRLLXLLEYYWEHHCIYURRIKHXXFAHNAFNMOGFKEFKARUAINUKKWXUKXWQAEQUSBFMIAHYTOLGKVCFYQPGUVMXWLVVAPTFDJRQOUHIMSSNUTJUUDINNGKRNOWURFGLRTSDCHXFHPLMUXUUMMSCGPYVGOQAAIPWTGJNANSOQQTUSTRQMJLUPOWRQKMOAKPXIHAXYGLNQFIIGLWYW
AX79: -4348.465181 | AY79: LPQTFGYXSDRUEQTJLOXBDJEIDNQFSTAGKOILFWWKBGDUWXOMJJMDXYBOSJRROTRPDHIOQDKQUAEONPHRTMDIDAHAUXRXVADKRLLXLLEYYWEHHCIYURRIKHXXFAHNAFNMOGFKEFKARUAINUKKWXUKXWQAEQUSBFMIAHYTOLGKVCFYQPGUVMXWLVVAPTFDJRQOUHIMSSNUTJUUDINNGKRNOWURFGLRTSDCHXFHPLMUXUUMMSCGPYVGOQAAIPWTGJNANSOQQTUSTRQMJLUPOWRQKMOAKPXIHAXYGLNQFIIGLWYW
AX80: -4348.465181 | AY80: LPQTFGYXSDRUEQTJLOXBDJEIDNQFRTAFKOILFWWKBGDUWXOMJJMDXYBOSJRROTRPDHIOQDKQUAEONPHRTMDIDAHAUXRXVADKRLLXLLEYYWEHHCIYURRIKHXXFAHNAFNMOGFKEFKARUAINUKKWXUKXWQAEQUSBFMIAHYTOLGKVCFYQPGUVMXWLVVAPTFDJRQOUHIMSSNUTJUUDINNGKRNOWURFGLRTSDCHXFHPLMUXUUMMSCGPYVGOQAAIPWTGJNANSOQQTUSTRQMJLUPOWRQKMOAKPXIHAXYGLNQFIIGLWYW
AX81: -4348.465181 | AY81: LPQTFGYXSDRUEQTJLOXBDJEIDNQFRTAFKOILFWWKBGDUWXOMJJMDXYBOSJRROTRPDHIOQDKQUAEONPHRTMDIDAHAUXRXVADKRLLXLLEYYWEHHCIYURRIKHXXFAHNAFNMOGFKEFKARUAINUKKWXUKXWQAEQUSBFMIAHYTOLGKVCFYQPGUVMXWLVVAPTFDJRQOUHIMSSNUTJUUDINNGKRNOWURFGLRTSDCHXFHPLMUXUUMMSCGPYVGOQAAIPWTGJNANSOQQTUSTRQMJLUPOWRQKMOAKPXIHAXYGLNQFIIGLWYW
AX82: -4348.465181 | AY82: LPQTFGYXSDRUEQTJLOXBDJEIDNQFRTAGKOILFWWKBGDUWXOMJJMDXYBOSJRROTRPDHIOQDKQUAEONPHRTMDIDAHAUXRXVADKRLLXLLEYYWEHHCIYURRIKHXXFAHNAFNMOGFKEFKARUAINUKKWXUKXWQAEQUSBFMIAHYTOLGKVCFYQPGUVMXWLVVAPTFDJRQOUHIMSSNUTJUUDINNGKRNOWURFGLRTSDCHXFHPLMUXUUMMSCGPYVGOQAAIPWTGJNANSOQQTUSTRQMJLUPOWRQKMOAKPXIHAXYGLNQFIIGLWYW
AX83: -4348.465181 | AY83: LPQTFGYXSDRUEQTJLOXBDJEIDNQFRTAGKOILFWWKBGDUWXOMJJMDXYBOSJRROTRPDHIOQDKQUAEONPHRTMDIDAHAUXRXVADKRLLXLLEYYWEHHCIYURRIKHXXFAHNAFNMOGFKEFKARUAINUKKWXUKXWQAEQUSBFMIAHYTOLGKVCFYQPGUVMXWLVVAPTFDJRQOUHIMSSNUTJUUDINNGKRNOWURFGLRTSDCHXFHPLMUXUUMMSCGPYVGOQAAIPWTGJNANSOQQTUSTRQMJLUPOWRQKMOAKPXIHAXYGLNQFIIGLWYW
AX84: -4348.465181 | AY84: LPQTFGYXSDRUEQTJLOXBDJEIDNQFSTAGKOILFWWKBGDUWXOMJJMDXYBOSJRROTRPDHIOQDKQUAEONPHRTMDIDAHAUXRXVADKRLLXLLEYYWEHHCIYURRIKHXXFAHNAFNMOGFKEFKARUAINUKKWXUKXWQAEQUSBFMIAHYTOLGKVCFYQPGUVMXWLVVAPTFDJRQOUHIMSSNUTJUUDINNGKRNOWURFGLRTSDCHXFHPLMUXUUMMSCGPYVGOQAAIPWTGJNANSOQQTUSTRQMJLUPOWRQKMOAKPXIHAXYGLNQFIIGLWYW
AX85: -4348.465181 | AY85: LPQTFGYXSDRUEQTJLOXBDJEIDNQFSTAGKOILFWWKBGDUWXOMJJMDXYBOSJRROTRPDHIOQDKQUAEONPHRTMDIDAHAUXRXVADKRLLXLLEYYWEHHCIYURRIKHXXFAHNAFNMOGFKEFKARUAINUKKWXUKXWQAEQUSBFMIAHYTOLGKVCFYQPGUVMXWLVVAPTFDJRQOUHIMSSNUTJUUDINNGKRNOWURFGLRTSDCHXFHPLMUXUUMMSCGPYVGOQAAIPWTGJNANSOQQTUSTRQMJLUPOWRQKMOAKPXIHAXYGLNQFIIGLWYW
AX86: -4354.224198 | AY86: LPQTFGYXSDRUEQTJLOXBDJEIDNQFRTAFKOILFWXKBGDUWXOMJJMDXYBOSJRROTRPDHIOQDKQUAEONPHRTMDICAHAUXRXVADKRLLXLLEYYWEHHCIYURRIKHXXFAHNAFNMOGFKEFKARUAINUKKWXUKXWQAEQUSBFMIAHYTOLGKVCFYQPGUVMXWLVVAPTFDJRQOUHIMSSNUTJUUDINNGKRNOWURFGLRTSDCHXFHPLMUXUUMMSCGPYUGOQAAIPWTGJNANSOQQTUSTRQMJLUPOWRQKMOAKPXIHAXYGLNQFIIGLWYW
AX87: -4366.686478 | AY87: LPQTFGYXSDRUEQTJLOXBDJEIDNQFSTAGKOILFWXKBGDUWXOMJJMDXYBOSJRROTRPDHIOQDKQUAEONPHRTMDIDAHAUXRXVADKRLLXLLEYYWEHHCIYURRIKHXXFAHNAFNMOGFKEFKARUAINUKKWXUKXWQAEQUQBFMIAHYTOLGKVCFYQPGUVMXWLVVAPTFDJRQOUHIMSSNUTJUUDINNGKRNOWURFGLRTSDCHXFHPLMUXUUMMSCGPYVGOQAAIPWTGJNANSOQQTUSTRQMJLUPOWRQKMOAKPXIHAXYGLNQFIIGLDYD
AX88: -4367.635613 | AY88: LPQTFGYXSDRUEQTJLOXBDJEIDNQFRTAGKPILFWXKBGDUWXOMJJMDXYBOSJRROTRPDFIOQDKQUAEONPHRTMDIDAHAUXRXVADKRLLXLLEYYWEHHCIYURRIKHXXFAHNAFNMOGFKEFKARUAINUKKWXUKXWQAEQUSBFMIAHYTOLGKVCFYQPGUVMXWLVVAPTFDJRQOUHIMSSNUTJUUDINNGKRNOWURFGLRTSDCHXFHPLMUXUUMMSCGPYVGOQAAIPWTGJNANSOQQTUSTRQMJLUPOWRQKMOAKPXIHAXYGLNQFIIGLWYW
AX89: -4367.635613 | AY89: LPQTFGYXSDRUEQTJLOXBDJEIDNQFRTAGKOILFWXKBGDUWXOMJJMDXYBOSJRROTRPDFIOQDKQUAEONPHRTMDIDAHAUXRXVADKRLLXLLEYYWEHHCIYURRIKHXXFAHNAFNMOGFKEFKARUAINUKKWXUKXWQAEQUSBFMIAHYTOLGKVCFYQPGUVMXWLVVAPTFDJRQOUHIMSSNUTJUUDINNGKRNOWURFGLRTSDCHXFHPLMUXUUMMSCGPYVGOQAAIPWTGJNANSOQQTUSTRQMJLUPOWRQKMOAKPXIHAXYGLNQFIIGLWYW

Sheet mesures_peinture
A1: résultat | B1: génération | C1: valeur | E1: ligne | F1: génération | G1: valeur | H1: génération remis à zéro | I1: Améliorations
A2: CIDFRNEXNUUBESESLKHGXIEIUDULDPRKNZLQMTPMAGCFIUSBJJOHTCTQCMRZDSVGCXRBJBZHHHDIEFKAEIRHWZXAUBSSGQYEAAFCLYFFTXCBFTEWHRWIJKPUBFVFXTISAZKMEVBKOHCRHZBFKDEIXJZOSCONUKDMIOOIWVKTHOYDPRGUXMXIIVRPOOFQCXZYDYORXRNUDSKLCITYJQWVRONFEQYGMDIBZTQBYFRADOZQESZFHWLWPCWBISUNCGSRGHPPAVQJYQRURDGOIOQJAQCWQVPSOAXVFVAZIIEITZLB | B2: 1 | C2: -791109.3422 | E2: =IF(COUNT(B:B)<100,2,COUNT(B:B)-100+2) -> 489 | F2: =INDEX(B:B,$E2) -> 2261 | G2: =INDEX(C:C,$E2) -> -4897.009639 | H2: 1 | I2: 0
A3: VRGEQIIGSUQQLSAVSHXOLNUHPHUIHREFBOAHEWPXYPWBLUBOIVPYFMDTXZMYFUBGZPZGZIZRZFOQEAIFADRLWMTZPAOVUMDJWTPEIZSJGYHGWJITLMSZFBOFZDLWVXOEDERXBMWEVFGTJAIQBUQRKOJTOAXWPTEFGHPRAFQXWXXJOGDHXUDQLDHLXLNWZNGAGWJDYYFXGUGFILUULNRNYXCIVNNSNPGXZWRWUUVKEFZPNXWYKJSEPSDQDPSEVBDAGZHBZKMSNNZFMAQVMBRSAVEBKQPSMZSIOZRIYBUNPRQK | B3: 2 | C3: -728150.2978 | E3: =E2+1 -> 490 | F3: 2264 | G3: -4883.783849 | H3: =F3-$F$2 -> 3 | I3: =G3-$G$2 -> 13.2257894
A4: VRGEQIIGSUQQLSAVSHXOLNUHPHUIHREFBOKHEWPXYPWBLUBOIVPYFMPTXZMYFUBGZPZGZIZRZFOQEAIFADRLWTTZPAOVUMDJWTPEIZSJXYHGWJITLMSZFBOFZDLWVXNEDERXBMWEVFGTJAIQBUQRKOJTOAXWPTEFGHPRAFQXWXXROGDHXUDQLDHLXLNWZNGAGWJDYYFXGUGFIPUULWRNYXCIVNNSNPGXZWRWUUVKEFZPNXWYKJSEPSDQDPSEVBDAGZHBZKMSCNZFMAQVMBRSAVEBKQPSMZSIOZRIYBUNPRQK | B4: 3 | C4: -748907.2051 | E4: =E3+1 -> 491 | F4: 2273 | G4: -4881.629404 | H4: =F4-$F$2 -> 12 | I4: =G4-$G$2 -> 15.38023517
A5: IJPTIBAJWTPWJDJDHZSENLKJJQNGNMSHWBETFSQPFEOVMEPXRMNUZKTOZNWZGKKLZYRSKUEDUTBOMPZJJTMAXBLAYNJZNUIXJXOESHPPADFTRLYOQJPKZKOUEULFXUJENIQOEMJKBJATFCJVRJEEVCWNWMSVUMHJLVOTUMFPVXZQJNXXGDYOHXCWDJUIVJGKVRXECTGRLDHSCOCSKLOMXXTZAAELOSLIPOWDKBDKZBEWOKFFUMEDNEXVFCVSFVKKOBUZREVVURRMRAHPJJUXOXTZQGAGRTMNWQDSOEFWMLFN | B5: 4 | C5: -746057.0414 | E5: 492 | F5: 2274 | G5: -4880.629404 | H5: 13 | I5: 16.38023517
A6: YRGGAWBOWHOJLSAVSHEPVDUHUGFIHREFBOAHEWPXYPWBLVXYIVPYFMDTXZMYPWBGZPZTZIZRZFOPDCIFEDRLWMTNNPOVUMDJWTPADWSKJYHGEJITLMSZFKBEZDQWVXDJCERXBMWEVFGTJAIQBUQKDLJTOAXWPTERMBZVOFQXXXXJOGDHXUDQLDHLXLNWZKCEGWJDYYFXGBNFILUULNRNYXWHVLNLKWUQDDYVUUVKSOSYLXWYKJSEPSDQDPSWVBDAGZHBZKQSNAZFCAQVIBRSAVEGRIPSMZSIOZRIYBUNPRQK | B6: 5 | C6: -726159.7905 | E6: 493 | F6: 2279 | G6: -4879.629404 | H6: 18 | I6: 17.38023517
A7: IPUUYOVLRXVSZALAUOLCVTFITBRGSMALFMVLAMGADODUMJXVLJVDXUOOAHSQITWOZGWOMUVYZLAFZEZJJMOILGBNMFZIIFNXESNESEPPAWTTDWHYWKYRTZRELDNFXUSVWBAOBOXARCGEAPCBKLPDOEFOFQUTHKCPVYLLGLGSFIJMTQRESIRPMBPSGXIOQIEPZENMSMPSDHTBCQOSKLJEOBXPVJIHYEVSSCZYTJTOXLSIYJGQGCHQXZAIYEUIYGEEYBEPBTUTSXCGIFHPJJUJXFAWFTNLLSBIHTRQHKFMMSZW | B7: 6 | C7: -687740.2641 | E7: 494 | F7: 2318 | G7: -4878.629404 | H7: 57 | I7: 18.38023517
A8: IPUUYOVLRXDSZALAUOLCVTFITBRGSMALFMVLAMGADODUMJXVLJVDXUOOAHSQITWOZGWOMUVYZLAFZEZJJMOILGBNMFZIIFNXESNESEPPAWTTDWHYWKYRTZRELDNFXUSVWBAOBOXARCGEAPCBKLPDOEFOFQUTHKCPVYLLGLHSFIJMTQRESIRPMBPXGXIOQIEPZENMSMPSDHTBTQOSKLJEOBXPVJIHYEVSSCZYTJTOXLSIYJGQGCHQXZAIYEUIYGEEYBEPBTURSXCGIFHPJJUJDFAWFTNLLSBIHTRQHKFMMSZW | B8: 7 | C8: -656188.833 | E8: 495 | F8: 2335 | G8: -4877.629404 | H8: 74 | I8: 19.38023517
A9: DYXTFLYCXDLIEPGUZUSBZJEQDNNGSMALFGIWFWQKBPDUMJXVJNODXURRAJRAITWPDVISFEQVHLXPDVHQXMOICTGYXRRXHACSRDHESEEYLVONHMTFVLZGXHXOFKANYNPMOGFAEDQOYZAIAJKTWXNKKYJGFQUTBFZYACYJTLGSVXZQWPAXNLUSKVDYPUTGFFQGUHZMSMCHCJUUCBIKGHOFSWUQFESQRFQXNRZEPLKUXGUMFSMGPVOFNZZHCUVBIJTNUMOQTTUTURRMJOUPIWRLDOOWFKYHMJBYZRLQHKIGNFJI | B9: 9 | C9: -618023.7769 | E9: 496 | F9: 2350 | G9: -4876.629404 | H9: 89 | I9: 20.38023517
A10: YRGUYOBOWUUBLSAVSHXOLDUHEDUGSMNKNOAHEWPXYPWBLUSBBXUYFMOOAMRZPWBOZGXPQUVYZFORJJIFADRLDGPZETOVUQYNSWZADWPPAWTTCMJENNYRTKBEZDLWVXSVWERXBMWQPFGTJAIQQKWIXJJTOAXWHKCFGHLLGZGSVXZJOGAXNUDQLDHLXLIOQMTBVRXMSMFXGSKLILUULNRNYXWHVLNHYEUQDWRWUUVHNOSIYJGQGCHHSADQDPSEBKEAGZRLCPNSNNZFMACTLBRSAVEGRIPSMZSIHTRZIIUNPRQK | B10: 11 | C10: -617771.9327 | E10: 497 | F10: 2354 | G10: -4875.629404 | H10: =F10-$F$2 -> 93 | I10: 21.38023517
A11: YRGUYOBOWUUBLSAVSHXOLHUHEDUGSMNKNOAHEWPXYPWBLUSBBXUYFMOOAMRNPWBOZGXPQUVYZFORJJIFADRLDGPZETOVUQYNSWZADWPPAWTTCMJENNYRTKBEZDLWVXSVWERXBMWQPFSTJAIQQKWIXJJTOAXWHKCFGHLLGZGSVXZFOGAXNUDQLDHLXLIOQMTBVRXMSMFXGSKLILUULNRNYXWHVLNHYEUQDWRWFUVHNOSIYJGQGCHHSADQDPSEBKEAGZRLCPNSNNZFMACTLBRSAVEGRIPSMZSIHTRZIIPNPRQK | B11: 14 | C11: -599286.3712 | E11: 498 | F11: 2357 | G11: -4874.629404 | H11: 96 | I11: 22.38023517
A12: IPUUYOBLRXDSZALAUOLCVTFITBRGSMALFMVLAMGADODUMJXVLYVDXUOOAHWQITWOZGWOMUVYZLAFZEZJJMOILGBNMFZIIFNXESNESEPPAWTTDWCYWKYRTZRELDNFXRSVWBAOBOXARCGEAPCBKLPDOEFOFQUTHLCPVYLLGLHRFIJMTQRESLRPMBPXGXIOQIEPZENMSMPSDHTBTQOSKLJEOBXPVJIHYEVSSCZYTJTFXLSIYJGQGCHQXZAIYEUIYGEUYBEPBTURSXCGIFHPJJUJDFAWFTNLLSBIHERQHKFMMSZW | B12: 16 | C12: -592578.7999 | E12: 499 | F12: 2365 | G12: -4873.629404 | H12: 104 | I12: 23.38023517
A13: RKWUYOVQRDLIJDJUZUXPGJEQJQNGSMALFGIWGSDKBPDUMJXVJNODXURRAHSQITWPDVISFEQVHLXCDVHQXMOICTGYXRRXHACYRDHPNNMPUNYGHMTHZAXXZKYXFKAFXUPMOGFAEDQOYZXGAJKTWXNEYUJGFCRSBFZYACOTUDIXVXZQWPMUILUSKVDNGQTGFFQPUHZMSTCHCDLSCOCKGHAWCWUQFESQRFQXNRZEXLKHNOAUXJIWPVOFNZZHCUVBIJTCXMOQTTUTURRMJOUPIWRLDOOWFKYHMVLYZRLQHKLGNFJI | B13: 17 | C13: -580853.2232 | E13: 500 | F13: 2371 | G13: -4872.629404 | H13: 110 | I13: 24.38023517
A14: CIDFROSXNUUBZALSLKLSMTFIUXTGSMNKNZLQAMGADOCFIUSBJJODXUTQCMRZITWGCWRBJBZHHHDIEFKAEIRHWZXAUBZIIQYNAAFCLYFFTWTTFTEWHRWIJZREBFVFXTISAZYMEUBARCCRHZBFKLPIXJZOSCONUKDMIOLLGVKTHOYMTQKUXMXIIVRMOOFQCXZQNYOMSMNUDSKLCITYJQWVRONFEDYGMDIVZXQBTETKXLZQESZFHDLWPCWBISUNCGSRGWPPATURYQRURDHPJKQJAQCWQVPSOAXVFBAGIIEITZLB | B14: 18 | C14: -573606.7025 | E14: 501 | F14: 2385 | G14: -4871.629404 | H14: 124 | I14: 25.38023517
A15: YRGTFLYCXDLIEPGJLKSBZJEQDNNGSMALFGIWFWQKBPDUMJXVJJODXUTQKJRAITWPDVISFEQVHHDPDVHQXMOICTGAUBRXHACSRDGCLYEYLVONHMTFVLWIJHXOFKANYNPMOGFAEDQARCAIAJKTWXNKKYJGFQUTBFZYACYJTLGSHOYQWPGUXLUSKVDYPUFQCFQGUHZMSMNUDJUUCITKGHRNYWUQFESQRFQXNXQBPLKUXGUMFSZFPVOFNZZHCUVBIJTNUMOQTTUTURRMJOUPIWRLDOOBKQYHMAXVFLAQHKIGNRQK | B15: 19 | C15: -521607.8434 | E15: 502 | F15: 2401 | G15: -4870.629404 | H15: 140 | I15: 26.38023517
A16: YRGTFLYCXDLIZALAUOXOLJEQTBRGSMALFMVLAMGADODUMJXVLYVYFMTQKJRKITWOZGRBJUVYZLAFZEZJJMOIWZXAUBOVUQNXESNCLYEYLWTTHMTYWKWIJZREXKAFXUDJCGFABOXARCCRHPCBKLPKKYQOIQUTBFZPVYLLGLHSFWJMTQXEBLRPMBPSGXIOQIEPZENMSMNUDHTBCITSKLJEOBXPVJIQRFQXNCZYTJTOXLUMFJGQHWLEPSAIYUVDYGENUMOQTTUTSXCGIFUPIJUJDOOBKQNLLAXVFLAIYBFMMSZW | B16: 23 | C16: -478659.7571 | E16: 503 | F16: 2409 | G16: -4869.629404 | H16: 148 | I16: 27.38023517
A17: YRGTFLYCXDLIEPGJLKSBZJEQDNNGSMALFZLEFWQKBPDUHJXVJJODXUTQKJRKITWPDVISFEQIHHDPXCHQXMOIWZXAUBRXHACSRDGSLYEYLVONHMTFVLWIJZRKFKALYNPMOGFAEDQARCCRHJKTWXNKKYMGFQUTBFZDACYJTLGKHOYQWPGUXMXILDHYPUFZCFQGNYOMSMNUDJUUCITKGHRNYWUQFESQRFQXNTQBTJTUXGUMFSZFHWLEPSDQDUVDIJTNUMOQTTUTURRMJOUPIWRLDSOBKQYHMAXVFDAQHKIGNRQK | B17: 27 | C17: -477230.2459 | E17: 504 | F17: 2410 | G17: -4868.629404 | H17: 149 | I17: 28.38023517
A18: YRGTFDYXXDLIEPGJLKSBZJEQDNNGSMALFSIWFWQYBPDUMJXVJJODXUAQKJRAITWPDVISFEQVHHDPDVHQXMOICTGAUBRQHACSRDGWLYEYLVONHMTFVLWIJHXOFKANYNPMOGQAEDZARCAIACKTWXNKKYJGFQUTBFZYACYJTLGSHOYWWPGUXLUSKVWYPUFQCFQGUHZMSMNUDJUUCITKGHRNYWUQFESQRFQXNXQBPLKUXGUMFSZFPVOFNZZHCUVBIJTNEFOQTTUTUIRMJOUPIWRLAOOBKQYHMAXVVLAQHKIGNRQE | B18: 29 | C18: -450627.7065 | E18: 505 | F18: 2425 | G18: -4867.629404 | H18: 164 | I18: 29.38023517
A19: YRGTFLYCXDLIEPGUZUWNCJEQSNNGSMALFZLQAMGLBQDUHJXVJNODXUTQKJRIITWGDVISFMQWHHDDWJHQXMONCTGAUBRXHACSRDGEHMEYLVONHMTFVLWIJHXOFKANYNPMOGQCEDQARCAIAJKTWXNSKYJGFQUTBFZYACYPTLGSHOYQWPPFFLUSKVDYPUFQCFQGUHZMSMNTDJUUCBIKGHOFSWUQFEGQRFKJMXUKPLKUXGUMFSZFPVOFSZZHCUVBIJTNUMOQTTUTBTEMJOUPIWRLDOOWFKYHMAXVZRJQPKIGNFJI | B19: 31 | C19: -430749.2525 | E19: 506 | F19: 2428 | G19: -4866.629404 | H19: 167 | I19: 30.38023517
A20: CRGTFLYCXDLIEPGJLKEBZJEQDNNGSMALFXIWFWQYBPDUMJXVJJODXUAQKJRAITWPDVISFEQVKJDPTVHQXMOICTGAUBRXHACSRDGWLYEYLVONHMTDVXRIJHXOFKANYNPMOGQAEDZARCAIACKTWXNKKYJGFQUTBFZYACNJTLGSHOYQWPGUXLUXKVDYPUFQCFQGUHZMSMNUDJUUCITKGHRNYWUQFESQRGQXNXQBPLKUXGUMFSZFPVOFNZZMCUVBIJTNUMOQTTUTJIRMLOUPIWRLAOOBKQYHMAXVFHAQHKIGNRQE | B20: 34 | C20: -424852.4548 | E20: 507 | F20: 2432 | G20: -4865.629404 | H20: 171 | I20: 31.38023517
A21: LPCTFLSDODLIEPGJLKSBZJEQDNNGSMALFGIWFWQKBPDUMJXVJJODXURRAJRKITWPIQISFEQVHHDPDBIQXMOICTGAUBRXHACSRDHCLYAYLVONHMTFVLYACHXOFKANYNPMMGFAEDQFBTBQIJKTWXNKKYAGFQUTBFZYACYJTLGSEOZQWPXEBMXIKVDYPUFQEFQGUHZMSMNUDJUUCITKGHRNYWUQFESQRFQXNXQBPLKUXGUMFSZFHWLFSZATSUVBIJTANBOQTTUTURRMJOUPIWRLDOOBKQYHMAXVFLAQPKFMMRQK | B21: 35 | C21: -408769.3734 | E21: 508 | F21: 2438 | G21: -4864.629404 | H21: 177 | I21: 32.38023517
A22: YRGTFLYCGDLIETGJLKSBMJUQDNNGSMANFGIWFWQKBPDUMJXVJJODXUBQKJRAITWPDVISFEQVFHDPDIHQXMOICTCAUBRXHACHXDGULYEYLVONHMTFVLWSWHXOFKANYNPMOGFAEDQARCAVAMKTWXNKKYAGFQUTBFZYACYJTLEMHOZQWPVUXMXIKVDYPUFQCRQXNYOMSMNUDJUUCITKGHRNYWUQFESQRFQXNXQBPLKUXWUAFSZFPVOFNQIDCUVZIJTTUMOQTTUTURRMYLUBNWJLUOOBKQYHMAXVGLAQHKIGRRQK | B22: 36 | C22: -396897.4488 | E22: 509 | F22: 2442 | G22: -4863.629404 | H22: 181 | I22: 33.38023517
A23: YRXTFLYCXDLIEPGJLKSBMJEQDNNGSMALFGIWFWQKBPDUMJXVJJODXUBQKJRAITWPDVISFEQVHHDPDVHQXMOTCTGAUBRXHACHXDGCLYEYLVONHMTFVLWIJHXOFKANYNPMOGFAEDQARCAIAJKTWXNKKYAGFQUTBFZYACYTTLGSHOZQWPGUXMXIKVDYPUFQCRQXNYOMSMNUDJUUCITKGHRNYWUQFESQRFQXNXQMPLKUXGUMFSZFPVOFNZZHCUVBIJTANBOQTTUTURRMJOUPIWRLDOGBKQYHMAXVFLAQHKIGNRQK | B23: 37 | C23: -394719.3313 | E23: 510 | F23: 2445 | G23: -4862.629404 | H23: 184 | I23: 34.38023517
A24: CRGTFLYCXDLIEPGJNKSBZJEQDNNGSMALFXIWFWQKBPDUMJXVJJODXUTQKJRAITWPDMISFEQVHHDPDVHQXMOICTGAUBRXHACSRDGWLYEYLVONHMTFVLRIJHXOFKANYNPMOGQAEDQARCCRHJKTWXNKKYJGFQUTBFZYACYJTLGSHOYQWPGUXMXIKVDYPUFQCFQGUHZMSMNUDJUMCITKGHRNYWUQFESQRFQXNXQBPLKUXGUMFSZFPVOFNZZMCUVDIJTNUMOQTTUTURRMJOUPIWRLAOOBKQYHMAXVFDAQHKIGNRQK | B24: 38 | C24: -389714.3283 | E24: 511 | F24: 2446 | G24: -4861.629404 | H24: 185 | I24: 35.38023517
A25: YRGTFLSDODLIEPGJLKSBTJBQDNNGSMALFGIWFWQKBPDUMJXVJJODXUBQKJRAITWPDVISFEQVFHDPDVHQXMOTCTGAUBRXHACSXDGWLYEYLVONHMTYWKWSWZREFKANYNPMOGFAEDQARCAIAJKTWXNKKYQOIQUTBFZYACYJTLGSFCJDWPGUXMXIKVDYPUFQCFQGUHZMSMNUDJUUCITKGHRNWWUQFESRRFQXNXQBPLKUXGUMFSZFHWLFNQZHCUVBIJTANBOQNTUTURRMJOUPIWRLKOOBKQYHMAXVGLAQHKIGNRQK | B25: 39 | C25: -370722.2852 | E25: 512 | F25: 2448 | G25: -4860.629404 | H25: 187 | I25: 36.38023517
A26: YRGTFLSDODLIEPGJLKLBTJBQDNNGSMALFGIWFWQKBPDUMJXVJJODXUBQKJRAITWPDVISFEQVFHDPCVHQXMOTCTGAUBRXHACSXDGWLYEYLVONHMTYWKWSWZREFKANYNPMOGFAEDQARCAIAJKTWXNKKYQOIQUTBFZYACYJTLGSFCJDTPGUXMXIKVDYPUFQCFQGUHZMSMNUDJUUCITKGHRNWWUQFESRRFQXNXQBPLKUXGUMFSZFHWLFNQZHCUVBIJTANBOQNTUTURRMJOUPIWRLKOOBKQYHMAXVGLZQHKIGNRQK | B26: 40 | C26: -357953.7444 | E26: 513 | F26: 2452 | G26: -4859.629404 | H26: 191 | I26: 37.38023517
A27: YRGTFLYXXDLIEPGJLKSBTJEQDNNGSMALFGIWFWQKBPDUMJXVJJODXUBQKJRKITWPDVIOFEQVFHDPDVIQXMOICTGAUBRXHACSXDGWLYEYLVONHMTYWKWIJZREFKANENPMOGFAEDQARCAISCKTWXNKKYQOIQUTBFZYACYJTLGSFCJDWPGUXMXIKVDYPUFQCFQGNYOMSMNUDJUUCITKGHRNYWUQFESRRFQXNXQBPLKUXGUMFSZFPVOFNZZHCUVBIJTANBOQNTUTURRMJOUPIWRLAOOBKQYHMAXVGLAQHKIGNRQK | B27: 43 | C27: -354369.8733 | E27: 514 | F27: 2453 | G27: -4858.629404 | H27: 192 | I27: 38.38023517
A28: YRGTFLYXXDLIEPGJLKSBTJEQDNNGSMALFGIWFWQKBPDUMJXVJHODXUBQKJRKITWPDVIOFEQVFHDPDVIQXMOICTGAUBRXHACSXDGWLYEYLVONHMTYWKWIJZREFKANENPMOGFAEDQARCAISCKTWXNKKYQOIQUTBFQYACYJTLGSFCJDWPGUXMXIKVDYPUFQCFQGNYOMSMNUDJUUCITKGHRNYWUQFESRRFQXNXQBPLKUXGUMFSZFPVOFNZZHCUVBIJTANBOQNTUTURRMJOUPIWRLAOOBKQYHMAXVGLFQHKIGNRQK | B28: 45 | C28: -351771.261 | E28: 515 | F28: 2455 | G28: -4857.629404 | H28: 194 | I28: 39.38023517
A29: YRXTFLYXXDLIEPGJLKSBMJEQDNNGSMALFGIWFWQKBPDUMJXVJJODXUBQKJRKITWPDVIOFEQVHHDPDVIQXMOTCTGAUBRXHACHXDGWLYEYLVONHMTFVSWIJHXOFKANENPMOGFAEDQARCAIAJKTWXNKKYAGFQUTBFZYACYJTLGSHOZDWPGUXMXIKVDYPUFQCRQXNYOMSMNUDJUUCITKGHRNYWUQFESQRFQXNXQMPLKUXGUMFSZFPVOFNZZHCUVBIJTANBOQTTUTURRMJOUPIWRLAOOBKQYHMAXVGLAQHKIGNRQK | B29: 46 | C29: -322545.151 | E29: 516 | F29: 2458 | G29: -4856.629404 | H29: 197 | I29: 40.38023517
A30: YRXTFLYXXDLIEPGJLKSBMJEQDNNGSMALFGIWFGQKBPDUMJXVJBODXUBQKLRKITWPDVIOFEQVHHDPGVIQXMOTCTGAUBRXHACHXDGWLYEYSVONHMTFVSWIZHXOFKANENPMZGFAEMQARCAIAJKTWXNKKNAGFQUTBFZYACTJTLGSHOZDWZGUXMXAKVDYPUFQCRQXNYOMSMNUDJUUCITKGHRNQWUQFESQRFVXNXQMPLKUXGUMFSZFPVOFNZZHCUVBIJTANBOQTTUTURRMJOUPIWRLAOOBKQYHMAXVGLAQHKIGNRQK | B30: 48 | C30: -308051.945 | E30: 517 | F30: 2475 | G30: -4855.629404 | H30: 214 | I30: 41.38023517 | AX30: -4316.588843 | AY30: LPQTFGYXSDRUEQTJLOXBDJEIDNQFSTAGKOILFWXKBGDUWXOMJJMDXYBOSJRROTRPDHIOQDKQUAEONPHRTMDICAHAUXRXVADKRLLXLLEYYWEHHCIYURRIKHXXFAHNAFNMOGFKEFKARUAHNUKKWXUKXWQAEQUSBFMIAHYTOLGKVCFYQPGUVMXWLVVAPTFDJRQOUHIMSSNUTJUUDINNGKRNOWURFGLRTSDCIXFHPLMUXUUMMSCGPYVGOQAAIPWUGJNANSOQQTUSTRQMJLUPOWRQKMOAKPXIHAXYGLNQFIIGLWYH
A31: YRGTFLSDODRIEPGJLKLBTJBQDNNGSMALFGIWFWQKBPDUMJXVJJODXUMQFJRAITWPDVISFEQVFHDPNVHQXMOTCTGAUBRXHACSRLJWLYEYLVORHMTYWKWSWHXOFKANYNMMOGFAEDQARCAISJKTWXNKKYQOIQUTBFZYACYJTLGSHOZQWPGUXMXIKVDYPUFQCFQGUHZMSMNUDJUUCITKZHRNWWUQFESRRFQXNXFBPLKUXGUMFSZFPVOFNQZHCUVBIJTANBOQNTUTURRMJOUPIWRLKOOBKQYHMAXVFLAQHKIGNRQK | B31: 51 | C31: -302534.8066 | E31: 518 | F31: 2477 | G31: -4854.629404 | H31: 216 | I31: 42.38023517 | AX31: -4316.588843 | AY31: LPQTFGYXSDRUEQTJLOXBDJEIDNQFSTAGKPILFWXKBGDUWXOMJJMDXYBOSJRROTRPDHIOQDKQUAEONPHRTMDICAHAUXRXVADKRLLXLLEYYWEHHCIYURRIKHXXFAHNAFNMOGFKEFKARUAHNUKKWXUKXWQAEQUSBFMIAHYTOLGKVCFYQPGUVMXWLVVAPTFDJRQOUHIMSSNUTJUUDINNGKRNOWURFGLRTSDCIXFHPLMUXUUMMSCGPYVGOQAAIPWUGJNANSOQQTUSTRQMJLUPOWRQKMOAKPXIHAXYGLNQFIIGLJYH
A32: LPCTFLYXXDRIEPGJLKSBZJEQDNNGSMALFGIWFWQKBPDUMJXVJJODXUBQKJRAITWPDVIOFEQVPHDPNVHQXMOICTGAUBRXHACSRLJWLYEYLVONHMTFVLWIJHXOFKANYNPMOGFAEDQAQCAISJKTWXNKKYQOIQUTBFZYACYTTLGSHOYQWPGUXMXIKVDYPUFQCRQXUHZMSMNUDJUUCITKZHRNYWUQFHSRRFVXNXFBPLKUXGUMFSZFPVOFNQZMCUVBIJTANBOQTTUTURRMJOUPIWRLAOOBKQYHMAXVGLAQHKIGNRQK | B32: 55 | C32: -297932.3149 | E32: 519 | F32: 2484 | G32: -4853.629404 | H32: 223 | I32: 43.38023517 | AX32: -4316.588843 | AY32: LPQTFGYXSDRUEQTJLOXBDJEIDNQFSTAGKPILFWXKBGDUWXOMJJMDXYBOSJRROTRPDHIOQDKQUAEONPHRTMDIDAHAUXRXVADKRLLXLLEYYWEHHCIYURRIKHXXFAHNAFNMOGFKEFKARUAHNUKKWXUKXWQAEQUSBFMIAHYTOLGKVCFYQPGUVMXWLVVAPTFDJRQOUHIMSSNUTJUUDINNGKRNOWURFGLRTSDCIXFHPLMUXUUMMSCGPYVGOQAAIPWUGJNANSOQQTUSTRQMJLUPOWRQKMOAKPXIHAXYGLNQFIIGLWYH
A33: YRGTFLYXXDLIEPGJLKMBTJEQDNNGSMALFGIWFWQKBPDUMJXVJJODXUBQXLRKITWPDVISFEQVHHDPNVHQXMOTCTGAUBRXHACHXDGWLYEYLVONHMTYWKRIJHXOFKANYNPMOGFAEDQARCAIAJKTWXNKKYQOIQUTBFZYACYJTLGSHOYQWPGUXMXIKVDYPUFQCFQGUHZMSMNUDJUUCITKGHRNYWUQFHSRRFQXNXFBPLKUXGUMFSZFPVOFNQZHCUVBIJTANBOQNTUTURRMJOUPIWRLKOOBKQYHMAXVGLAQHKIGNRQK | B33: 58 | C33: -293792.0487 | E33: 520 | F33: 2489 | G33: -4852.629404 | H33: 228 | I33: 44.38023517 | AX33: -4316.588843 | AY33: LPQTFGYXSDRUEQTJLOXBDJEIDNQFSTAGKPILFWXKBGDUWXOMJJMDXYBOSJRROTRPDHIOQDKQUAEONPHRTMDICAHAUXRXVADKRLLXLLEYYWEHHCIYURRIKHXXFAHNAFNMOGFKEFKARUAHNUKKWXUKXWQAEQUSBFMIAHYTOLGKVCFYQPGUVMXWLVVAPTFDJRQOUHIMSSNUTJUUDINNGKRNOWURFGLRTSDCIXFHPLMUXUUMMSCGPYVGOQAAIPWUGJNANSOQQTUSTRQMJLUPOWRQKMOAKPXIHAXYGLNQFIIGLWYH
A34: LPCTFLSDODLIEPGJNKSBTJBQDNNGSMALFGIWFWQKBPDUMJXVJJODXUBQKJRAITWPDVIOFEQVFHDPNVHQXMOICTGAUBRXHACSRLJWLYEYLVORHMTYWKRIJHXOFKANYNMMOGFAEDQARCAIAJKTWXNKKMQOIQUTBFZYACYJTLGSHOZDWPGUXMXIKVDYPUFQCFQGUHZMSMNUDJUUCITKZHRNWWUQFESRRFQXNXFBPLKUXGUMFSZFPVOFNQZHCUVBIJTANBOQTTUTURRMJOUPIWRLAOOBKQYHMAXVFLAMHKFMMRQQ | B34: 59 | C34: -287991.9496 | E34: 521 | F34: =INDEX(B:B,$E34) -> 2508 | G34: =INDEX(C:C,$E34) -> -4851.629404 | H34: 247 | I34: 45.38023517 | AX34: -4319.945958 | AY34: LPQTFGYXSDRUEQTJLOXBDJEIDNQFSTAGKPILFWXKBGDUWXOMJJMDXYBOSJRROTRPDHIOQDKQUAEONPHRTMDIDAHAUXRXVADKRLLXLLEYYWEHHCIYURRIKHXXFAHNAFNMOGFKEFKARUAHNUKKWXUKXWQAEQUSBFMIAHYTOLGKVCFYQPGUVMXWLVVAQTFDJRQOUHIMSSNUTJUUDINNGKRNOWURFGLRTSDCIXFHPLMUXUUMMSCGPYVGOQAAIPWUGJNANSOQQTUSTRQMJLUPOWRQKMOAKPXIHAXYGLNQFIIGLWYH
A35: LPCTFLYXXDRIEPGJLKSBMJEQDNNGSMALFGIWFWQKBPDUMJXVJJODXUSQKJRAITWPDVIOFOQVPHDPNVHQXMOICTGAUBRXHACSRLJWLYEYSVONHMTFYLWIJHXOFKANYNPMOGFAEDQARCAISJKTWXNKKYQOIQUTBFZYACYTTLGSHOYQWPGUXMXIKVDYPUFQCRQXUHZMSMNUDJUUCIDKZHRNYWUQFHSQRFVXNXFBPLKUXGUMFSZFPVOFNQZMCUVBIJTANBOQTTUTURRMJOUPIWRLAOOBKBYHMAXVGLAQHKIGNRQK | B35: 62 | C35: -285098.4619 | E35: 522 | F35: 2514 | G35: -4850.629404 | H35: 253 | I35: 46.38023517 | AX35: -4320.701804 | AY35: LPQTFGYXSDRUEQTJLOXBDJEIDNQFRTAGKOILFWXKBGDUWXOMJJMDXYBOSJRROTRPDHIOQDKQUAEONPHRTMDICAHAUXRXVADKRLLXLLEYYWEHHCIYURRIKHXXFAHNAFNMOGFKEFKARUAINUKKWXUKXWQAEQUSBFMIAHYTOLGKVCFYQPGUVMXWLVVAPTFDJRQOUHIMSSNUTJUUDINNGKRNOWURFGLRTSDCIXFHPLMUXUUMMSCGPYVGOQAAIPWUGJNANSOQQTUSTRQMJLUPOWRQKMOAKPXIHAXYGLNQFIIGLWYH
A36: YRGTFLYXXDRIEPGJLKSBMJBQDNNGSMALFGIWFWQXBPDUMJXVJJODXUBQZJRAITWPDVISFEQVFHDPNVIQXMOTCAGAUBRXHACSRLJWLYEYLVONHMTYWKWIJHXOFKANYNMMOGFAEDQARCAIAJKTWXNKKYQOIQUTBFZYACYTTLGSHOZQWPGUXMXIKVDYPUFQCFQGUHZMSMNUDJUUCITKZHRNYWUQFESRRFQXNXQBPLKUXGUMFSZFPVOFNQZHCUVBIJNANBOQNTUTURRMJOUPIWRLKOOBKQYHMAXVFLAQHKIGNRQK | B36: 63 | C36: -269567.8484 | E36: 523 | F36: 2518 | G36: -4849.629404 | H36: 257 | I36: 47.38023517 | AX36: -4320.701804 | AY36: LPQTFGYXSDRUEQTJLOXBDJEIDNQFRTAGKOILFWXKBGDUWXOMJJMDXYBOSJRROTRPDHIOQDKQUAEONPHRTMDIDAHAUXRXVADKRLLXLLEYYWEHHCIYURRIKHXXFAHNAFNMOGFKEFKARUAINUKKWXUKXWQAEQUSBFMIAHYTOLGKVCFYQPGUVMXWLVVAPTFDJRQOUHIMSSNUTJUUDINNGKRNOWURFGLRTSDCIXFHPLMUXUUMMSCGPYVGOQAAIPWUGJNANSOQQTUSTRQMJLUPOWRQKMOAKPXIHAXYGLNQFIIGLWYH
A37: LPCTFLYXXDRIEPGJLKSBMJEQDNNGSMALFGIWFWQKBPDUMJXVJJODXUBQKJRAITWPDVIOFEQVHHDPDIHQXMOICAGAUBRXHACSRLJWLYEYSVORHMTFVLWIJHXOFKANYNPMOGFAEDQARCAISJKTWXNKKYQOIQUTBFZYACYTTLGSHOYQWPGUXMXIKVDYPUFQCRQXUHZMSMNUDJUUCITKZHRNYWUQFHSQRFQXNXQBPLKUXGUMFSZFPVOFNZZMCUVBIJTANBOQTTUTURRMJOUPIWRLAOOBKQYHMAXVGLAQHKIGNRQK | B37: 69 | C37: -267916.6736 | E37: 524 | F37: 2525 | G37: -4848.629404 | H37: 264 | I37: 48.38023517 | AX37: -4320.701804 | AY37: LPQTFGYXSDRUEQTJLOXBDJEIDNQFSTAGKPILFWXKBGDUWXOMJJMDXYBOSJRROTRPDHIOQDKQUAEONPHRTMDIDAHAUXRXVADKRLLXLLEYYWEHHCIZURRIKHXXFAHNAFNMOGFKEFKARUAINUKKWXUKXWQAEQUSBFMIAHYTOLGKVCFYQPGUVMXWLVVAPTFDJRQOUHIMSSNUTJUUDINNGKRNOWURFGLRTSDCIXFHPLMUXUUMMSCGPYVGOQAAIPWUGJNANSOQQTUSTRQMJLUPOWRQKMOAKPXIHAXYGLNQFIIGLWYH
A38: YRGTFLYXXDRIEPGJLKSBMJEQDNNGSMALFGIWFWQKBPDUMJXVJJODXUBQXJRAITWPDVIOGEQVHHDPDVHQXMOICTGAUBRXHACHRLJWLYEYLWONHMTYWKRIJHXOFKANYNPTOGEAEDQARCAIAJKTWXNKKYQOIQUTBFZCACYTTLGSHOYQWPGUXMXIKVDYPUFQCRQXUHZMSMNUDJUUCITKQHRNWWUQFHSRRFQXNXFBPLQUXGUMFSZFPVOFTQZOCUVBIJTANBOQNTUTURRMJOUPIWRLKOOBKQYHMAXVFLAQHKIGNRQK | B38: 73 | C38: -259431.6504 | E38: 525 | F38: 2530 | G38: -4847.629404 | H38: 269 | I38: 49.38023517 | AX38: -4320.701804 | AY38: LPQTFGYXSDRUEQTJLOXBDJEIDNQFSTAGKPILFWXKBGDUWXOMJJMDXYBOSJRROTRPDHIOQDKQUAEONPHRTMDICAHAUXRXVADKRLLXLLEYYWEHHCIYURRIKHXXFAHNAFNMOGFKEFKARUAINUKKWXUKXWQAEQUSBFMIAHYTOLGKVCFYQPGUVMXWLVVAPTFDJRQOUHIMSSNUTJUUDINNGKRNOWURFGLRTSDCIXFHPLMUXUUMMSCGPYVGOQAAIPWUGJNANSOQQTUSTRQMJLUPOWRQKMOAKPXIHAXYGLNQFIIGLWYH
A39: YRGTFLYXXDRIEPGJLKSBMJEQDNNGSMALFGIWFWQKBPDUMJXVJJODXUBQXJRAITWPDVIOGEQVHHDPDVHQXMOICTGAUBRXHACHRLJWLYEYLWONHMTYWKRIJHXOFKANYNPTOGEAEDQARCAIAJKTWXNKKYQOIQUTBFZCACYTTLGSHOYQKPGUXMXIKVDYPUFQCRQXUHZMSMNUDJUUCITKQHRNWWUQFHSRRFQXNXFBPLQUXGUMFSZFPVOFTQZOCUVBIJTANBOQNTUTURRMJOUPIWRLKOOBKQYHMAXVFLAQHKIGNRQK | B39: 74 | C39: -256577.4351 | E39: 526 | F39: 2532 | G39: -4432.581841 | H39: 271 | I39: 464.4277976 | AX39: -4320.701804 | AY39: LPQTFGYXSDRUEQTJLOXBDJEIDNQFSTAGKPILFWXKBGDUWXOMJJMDXYBOSJRROTRPDHIOQDKQUAEONPHRTMDIDAHAUXRXVADKRLLXLLEYYWEHHCIZURRIKHXXFAHNAFNMOGFKEFKARUAINUKKWXUKXWQAEQUSBFMIAHYTOLGKVCFYQPGUVMXWLVVAPTFDJRQOUHIMSSNUTJUUDINNGKRNOWURFGLRTSDCIXFHPLMUXUUMMSCGPYVGOQAAIPWUGJNANSOQQTUSTRQMJLUPOWRQKMOAKPXIHAXYGLNQFIIGLWYH
A40: YRGTFLYXXDLIEPGJLKSBMJEQDNNGSMALFGIWFWQKBPDUMJXVJJODXVBQKJRAITWPDVIOFEQVHHDPGTHQXMOICTGAUBRXHACSRLJWLYEYLVONHMTYWKRIJHXOFKANYNPTOGEAEDQARCAISJKTWXNKKYQOIQUTBFZCACYTTLGSHOZQWPGUXMXIKVDYPUFQCRQXUHZMSMNUDJUUCITKZHRNWWUOFHSRRFQXNXFBPLQUXGUMFSZFHWQFTQAOCPXIIJTANBOQNTUTURRMJOUPIWRLKOOBKQYHMAXVFLAQHKIGNRQK | B40: 78 | C40: -248007.364 | E40: 527 | F40: 2536 | G40: -4426.259341 | H40: 275 | I40: 470.7502973 | AX40: -4320.701804 | AY40: LPQTFGYXSDRUEQTJLOXBDJEIDNQFSTAGKOILFWXKBGDUWXOMJJMDXYBOSJRROTRPDHIOQDKQUAEONPHRTMDICAHAUXRXVADKRLLXLLEYYWEHHCIYURRIKHXXFAHNAFNMOGFKEFKARUAINUKKWXUKXWQAEQUSBFMIAHYTOLGKVCFYQPGUVMXWLVVAPTFDJRQOUHIMSSNUTJUUDINNGKRNOWURFGLRTSDCIXFHPLMUXUUMMSCGPYVGOQAAIPWUGJNANSOQQTUSTRQMJLUPOWRQKMOAKPXIHAXYGLNQFIIGLWYH
A41: KPCTFLSDBDLIEPGJLKSBMJEQDNNUSMALFRIWFWQKBPDUMJXVJJODXUBQKJRKITWPDVIOFEQVHHDPCTHQXMOTCTGAUBRXNACSRLJWLYEYLWONHMTYWKWIJHXOFKANYNPTOGEAEDQARCAISJKTWXNKKYQOIQUTBFECACYTTLGSHOZDWPGUXMXIKVDYPUFQCRQXUHZMSMNUDJUUCITKZHRNWWUQFHSRRFQXNXFBPLKUXGUMFSZFHWQFTQZMCPXIIJTANBOQTTUTURRMJOUPIWRLKOOBKQYHMAXVGLAQHKIGNRQK | B41: 80 | C41: -239740.8793 | E41: 528 | F41: 2538 | G41: -4425.86814 | H41: 277 | I41: 471.1414982 | AX41: -4320.701804 | AY41: LPQTFGYXSDRUEQTJLOXBDJEIDNQFSTAGKOILFWXKBGDUWXOMJJMDXYBOSJRROTRPDHIOQDKQUAEONPHRTMDIDAHAUXRXVADKRLLXLLEYYWEHHCIYURRIKHXXFAHNAFNMOGFKEFKARUAINUKKWXUKXWQAEQUSBFMIAHYTOLGKVCFYQPGUVMXWLVVAPTFDJRQOUHIMSSNUTJUUDINNGKRNOWURFGLRTSDCIXFHPLMUXUUMMSCGPYVGOQAAIPWUGJNANSOQQTUSTRQMJLUPOWRQKMOAKPXIHAXYGLNQFIIGLWYM
A42: LPCTFLYXXDRIEPGJLKSBMJEQDNNGSMALFGIWFWQKBPDUMJXVJJODXUBQXJRAITWPDVISFEQVHHDPNVHQXMOTCAGAUBRXHACSRLJWLYEYLWONLMTYWKRIJHXOFKANYNPMOGFAEDQARWAISJUTWXNKLYQRIQUTBFZCACYJTLGSHOYQWPGUXMXIKVDYPUFQCRQXUHZMSMNUDJUUCITNGHRNWWUQFHSRRFVXNXFBPLKUXGUMFSZFPVOFNXZMCPXIIJCANBOQNTUTURRMJOUPIWRLKOOBKQYHMAXVGLAQHKIGNRQK | B42: 81 | C42: -231229.8997 | E42: 529 | F42: 2542 | G42: -4425.137529 | H42: 281 | I42: 471.8721099 | AX42: -4320.701804 | AY42: LPQTFGYXSDRUEQTJLOXBDJEIDNQFSTAGKOILFWXKBGDUWXOMJJMDXYBOSJRROTRPDHIOQDKQUAEONPHRTMDIDAHAUXRXVADKRLLXLLEYYWEHHCIYURRIKHXXFAHNAFNMOGFKEFKARUAINUKKWXUKXWQAEQUSBFMIAHYTOLGKVCFYQPGUVMXWLVVAPTFDJRQOUHIMSSNUTJUUDINNGKRNOWURFGLRTSDCIXFHPLMUXUUMMSCGPYVGOQAAIPWUGJNANSOQQTUSTRQMJLUPOWRQKMOAKPXIHAXYGLNQFIIGLWYH
A43: YRGTFLYXXDRIEPGJLKSBMJEQDNNGSMALFGIWFWQKBPDUMJXVJJODXUBQXLRKITWPDVIOGEKVHHDPCTHQXMOTCAGAUBRXHACSRLJWLYEYLWONLMTYWKRIJHXOFKANYNMMOGFAEDQARWAIAJKTWXNKKYQOIQUTBFZCACYTTLGSHOYQWPGUXMXIKVDXPUFQCRQXUHZMSMNUDJUUCITKQHRNWWUQFHSRRFVXNXFBPLKUXGUMFSZFHWZFNXZOCPXIIJCANLOQNTUTURRMJOUPIWRLKOOBKQYHMAXVGLZQHKIGNRQK | B43: 84 | C43: -226848.1095 | E43: 530 | F43: 2543 | G43: -4420.543131 | H43: 282 | I43: 476.4665081 | AX43: -4320.701804 | AY43: LPQTFGYXSDRUEQTJLOXBDJEIDNQFSTAGKOILFWXKBGDUWXOMJJMDXYBOSJRROTRPDHIOQDKQUAEONPHRTMDICAHAUXRXVADKRLLXLLEYYWEHHCIYURRIKHXXFAHNAFNMOGFKEFKARUAINUKKWXUKXWQAEQUSBFMIAHYTOLGKVCFYQPGUVMXWLVVAPTFDJRQOUHIMSSNUTJUUDINNGKRNOWURFGLRTSDCIXFHPLMUXUUMMSCGPYVGOQAAIPWUGJNANSOQQTUSTRQMJLUPOWRQKMOAKPXIHAXYGLNQFIIGLWYM
A44: LPCTFLYXXDRIEPGJLKSBMJEQDNNGSMALFOIWFWQKBPDUMJXVJJODXUBQXJRAITWPDVISFEQVHHDPNVHQXMOTCAGAUBRXHACSRLJWLYEYLWONLMTYWKRIJHXOFKANYNPMOGFAEDQARWAISJKTWXNKLYQRIQUTBFZCACYJTLGSHOYQWPGUXMXIKVDYPUFQCRQXUHZMSMNUDJUUCITNGHRNWWUQFHSRRFVXNXFBPLKUXGUMFSZFPVOFNXZMCPXIIJCANBOQNTUTURRMJOUPIWRLKOOBKQYHMAXVGLAQHKIGNRQK | B44: 85 | C44: -223096.9268 | E44: 531 | F44: 2547 | G44: -4415.606151 | H44: 286 | I44: 481.4034879 | AX44: -4324.058919 | AY44: LPQTFGYXSDRUEQTJLOXBDJEIDNQFSTAGKOILFWXKBGDUWXOMJJMDXYBOSJRROTRPDHIOQDKQUAEONPHRTMDICAHAUXRXVADKRLLXLLEYYWEHHCIYURRIKHXXFAHNAFNMOGFKEFKARUAINUKKWXUKXWQAEQUSBFMIAHYTOLGKVCFYQPGUVMXWLVVAQTFDJRQOUHIMSSNUTJUUDINNGKRNOWURFGLRTSDCIXFHPLMUXUUMMSCGPYVGOQAAIPWUGJNANSOQQTUSTRQMJLUPOWRQKMOAKPXIHAXYGLNQFIIGLWYH
A45: KPCTFLSDBDLIEPGJLKSBMJEQDNNGAMALFRIWFWQKBPDUMJXVJJODXUBQXJRKITWPDVIOFEQVHHDPCTHQXMOTCTGAUBRXNACSRLJWLYEYLVONLMTYWKWIJHXOFKANYNPTOGEAEDQARWAISJKTWXNKKYQOIQUTBFZCACYTTLGSHOZDWPGUXMXIKVDYPUFQCRQXUHZMSMNUDJUUCITKZHRNWWUQFHSRRFQXNXFBPLKUXGUMFSZFHWQFTQZMCPXIIJTANBOQTTUTURRMJOUPIWRLKOOBKQYHMAXVGLAQHKIGNRQK | B45: 88 | C45: -218753.0573 | E45: 532 | F45: 2591 | G45: -4415.606151 | H45: 330 | I45: 481.4034879 | AX45: -4324.058919 | AY45: LPQTFGYXSDRUEQTJLOXBDJEIDNQFSTAGKOILFWXKBGDUWXOMJJMDXYBOSJRROTRPDHIOQDKQUAEONPHRTMDIDAHAUXRXVADKRLLXLLEYYWEHHCIYURRIKHXXFAHNAFNMOGFKEFKARUAINUKKWXUKXWQAEQUSBFMIAHYTOLGKVCFYQPGUVMXWLVVAQTFDJRQOUHIMSSNUTJUUDINNGKRNOWURFGLRTSDCIXFHPLMUXUUMMSCGPYVGOQAAIPWUGJNANSOQQTUSTRQMJLUPOWRQKMOAKPXIHAXYGLNQFIIGLWYM
A46: LPCTFLYXXDRIEPGJLKSBMJEQDNNGSMALFOIWFWQKBPDUMJXVJJODXUBQXJRAITWPDVIOGEQVHHDPCTHQXMOICAGAUBRXHACSRLJWLYEYLWONLMTYWKWIJHXOFKANYNPMOGFAEDQARWAISJUTWXNKLYQRIQUTBFZCACYTTLGSFCJQWPGUXMXIKVDYPUFQCRQXUHZMSMNUDJUUCITNGHRNYWUQFHSRRFQXNXFBPLKUXGUMFSZFPVOFNXZMCPXIIJCANBOQNTUTURRMJOUPIWRLKOOBKQYHMAXVGLAQHKIGNRQK | B46: 91 | C46: -214162.8499 | E46: 533 | F46: 2614 | G46: -4415.606151 | H46: 353 | I46: 481.4034879 | AX46: -4326.892054 | AY46: LPQTFGYXSDRUEQTJLOXBDJEIDNQFSTAGKPILFWXKBGDUWXOMJJMDXYBOSJRROTRPDHIOQDKQUAEONPHRTMDICAHAUXRXVADKRLLXLLEYYWEHHCIYURRIKHXXFAHNAFNMOGFKEFKARUAHNUKKWXUKXWQAEQUSBFMIAHYTOLGKVCFYQPGUVMXWLVVAPTFDJRQOUHIMSSNUTJUUDINNGKRNOWURFGLRTSDCIXFHPLMUXUUMMSCGPYVGOQAAIPWTGJNANSOQQTUSTRQMJLUPOWRQKMOAKPXIHAXYGLNQFIIGLWYM
A47: LPCTFLYXXDRIEPGJLKSBMJEQDNNGSMALFOIWFWQKBPDUMJXVJJODXUBQXJRAITWPDVIOGENVHHDPNVHQXMOTCAGAUBRXNACSRLJWLYEYLWONLMTYWKRIJHXOFKANYNPMOGFAEDQARWAIAJUTWXNKLYQRIQUTBFZCACYTTLGSFCJQWPGUXMXIKVDYPUFQCRQXUHZMSMNUDJUUCITNGHRNWWUQFHSRRFVXNXFBPLKUXGUMFSZFPVOFNXZMCPXIIJCANLOQNTUTURRMJOUPIWRLKOOBKQYHMAXVGLAQHKIGNRQK | B47: 93 | C47: -203228.4485 | E47: 534 | F47: 2642 | G47: -4406.165009 | H47: 381 | I47: 490.8446294 | AX47: -4326.892054 | AY47: LPQTFGYXSDRUEQTJLOXBDJEIDNQFSTAGKPILFWXKBGDUWXOMJJMDXYBOSJRROTRPDHIOQDKQUAEONPHRTMDIDAHAUXRXVADKRLLXLLEYYWEHHCIYURRIKHXXFAHNAFNMOGFKEFKARUAHNUKKWXUKXWQAEQUSBFMIAHYTOLGKVCFYQPGUVMXWLVVAPTFDJRQOUHIMSSNUTJUUDINNGKRNOWURFGLRTSDCIXFHPLMUXUUMMSCGPYVGOQAAIPWTGJNANSOQQTUSTRQMJLUPOWRQKMOAKPXIHAXYGLNQFIIGLWYH
A48: LPCTFLYXXDRIEPGJLKSBMJEQDNNGSMALFOIWFWQKBPDUMJXVJJODXUBQXJRAITWPDVIOGENVHHDPNVHQXMOTCAGAUBRXNACSRLJWLYEYLWONLMTYWKRIJHXOFKANYNPMOGFAEDQARWAIAJUDWXNKLYQRIQUTBFZCACYTTLGSFCJQWPGUXMXIKVDYPUFQCRQXUHZMSMNUDJUUCITNGHRNWWUQFHSRRFVXNXFBPLKUXGUMFSZFPVOFNXZMCPXIIJCANLOQNTUTURRMJOUPIWRLKOOBKQYHMAXVGLAQHKIGNRQK | B48: 98 | C48: -203228.4485 | E48: 535 | F48: 2644 | G48: -4406.165009 | H48: 383 | I48: 490.8446294 | AX48: -4326.892054 | AY48: LPQTFGYXSDRUEQTJLOXBDJEIDNQFSTAGKPILFWXKBGDUWXOMJJMDXYBOSJRROTRPDHIOQDKQUAEONPHRTMDIDAHAUXRXVADKRLLXLLEYYWEHHCIYURRIKHXXFAHNAFNMOGFKEFKARUAHNUKKWXUKXWQAEQUSBFMIAHYTOLGKVCFYQPGUVMXWLVVAPTFDJRQOUHIMSSNUTJUUDINNGKRNOWURFGLRTSDCIXFHPLMUXUUMMSCGPYVGOQAAIPWTGJNANSOQQTUSTRQMJLUPOWRQKMOAKPXIHAXYGLNQFIIGLWYH
A49: LPCTFLYXXDRIEPGJLKSBMJEQDNNGSMALFOIWFWQKBPDUMJXVJJODXUBQXJRAITWPDVIOFEQVHHDPNVHQXMOICAGAUBRXHACSRLJWLYEYLWONHCTYWKWIJHXOFKANYNMMOGFAEDQARWAIAJUTWXNKLYQRIQUTBFZCACYTTLGSFCJQWPGUXMXIKVDYPUFQCRQXUHZMSMNUDJUUCITNGHRNYWUQFHSRRFVXNXFBPLKUXGUMFOZFPVOFNXZMCPXIIJCANLOQNTUTURRMJOUPIWRLKOOBKQYHMAXVGLAQHKIGNRQK | B49: 99 | C49: -190948.3572 | E49: 536 | F49: 2645 | G49: -4406.165009 | H49: 384 | I49: 490.8446294 | AX49: -4326.892054 | AY49: LPQTFGYXSDRUEQTJLOXBDJEIDNQFSTAGKOILFWXKBGDUWXOMJJMDXYBOSJRROTRPDHIOQDKQUAEONPHRTMDICAHAUXRXVADKRLLXLLEYYWEHHCIYURRIKHXXFAHNAFNMOGFKEFKARUAHNUKKWXUKXWQAEQUSBFMIAHYTOLGKVCFYQPGUVMXWLVVAPTFDJRQOUHIMSSNUTJUUDINNGKRNOWURFGLRTSDCIXFHPLMUXUUMMSCGPYVGOQAAIPWTGJNANSOQQTUSTRQMJLUPOWRQKMOAKPXIHAXYGLNQFIIGLWYH
A50: LPCTFLYXXDRIEPGJLKSBMJEQDNNGSMALFOIWFWQKBPDUMJXVJJODXUBQXJRAITWPDVIOFENVHHDPNVHQXMOTCTGAUBRXHACSRLJWLYEYLWONHMTYWKRIJHXOFKANYNMMOGEAEDQARWAISUKTWXNKKYQOIQUTBFZCACYTTLGSFCJDWPGUXMXIKVDYPUFQCRQXUHZMSMNUDJUUCITNGHRNWWUQFHSRRFQXNXFBPLKUXGUMFSZFPVOFNXZMCPXIIJCANLOQNTUTURRMJOUPIWRLKOOBKQYHMAXVGLAQHKIGNRQK | B50: 100 | C50: -187385.0683 | E50: 537 | F50: 2650 | G50: -4406.165009 | H50: 389 | I50: 490.8446294 | AX50: -4330.165538 | AY50: LPQTFGYXSDRUEQTJLOXBDJEIDNQFSTAGKOILFWXKBGDUWXOMJJMDXYBOSJRROTRPDHIOQDKQUAEONPHRTMDICAHAUXRXVADKRLLXLLEYYWEHHCIYURRIKHXXFAHNAFNMOGFKEFKARUAINUKKWXUKXWQAEQUSBFMIAHYTOLGKVCFYQPGUVMXWLVVAPTFDJRQOUHIMSSNUTJUUDINNGKRNOWURFGLRTSDCIXFHPLMUXUUMLSCGPYVGOQAAIPWUGJNANSOQQTUSTRQMJLUPOWRQKMOAKPXIHAXYGLNQFIIGLWYM
A51: LPCTFLYXXDRIEPGJLKSBMJEQDNNGSMALFOIWFWQKBPDUMJXVJJODXUBQXJRAITWPDVIOGEKVHHDPCTHQXMOICAGAUTRXHACSRLJWLYEYLWONLMTYWKRIJHXOFKANYNPMOGFAEDQARWAIAUKTWXNKKHQRIQUTBFZCACYTTLGSFCJQWPGUXMXIKVDYPUFQCRQXUHZMSMNUDJUUCITNGHRNWWUQFHSRRFVXNXFBPLKUXGUMFOZFPVOFNXZMCPXIIJCANLOQNTUTURRMJOUPIWRLKOOBKQYHMAXVGLAQHKIGNNQK | B51: 101 | C51: -184228.5458 | E51: 538 | F51: 2680 | G51: -4406.165009 | H51: 419 | I51: 490.8446294 | L51: Les étiquettes indiquent le numéro de génération, chaque point est séparé de 100 améliorations | AX51: -4331.005015 | AY51: LPQTFGYXSDRUEQTJLOXBDJEIDNQFRTAGKPILFWXKBGDUWXOMJJMDXYBOSJRROTRPDHIOQDKQUAEONPHRTMDICAHAUXRXVADKRLLXLLEYYWEHHCIYURRIKHXXFAHNAFNMOGFKEFKARUAINUKKWXUKXWQAEQUSBFMIAHYTOLGKVCFYQPGUVMXWLVVAPTFDJRQOUHIMSSNUTJUUDINNGKRNOWURFGLRTSDCIXFHPLMUXUUMMSCGPYVGOQAAIPWTGJNANSOQQTUSTRQMJLUPOWRQKMOAKPXIHAXYGLNQFIIGLWYH
A52: LPCTFLYXXDRIEPGJLKSBMJEQDNNGSWALFOIWFWQKBPDUMJXVJJODXUBQXJRAITWPDVIOFEKVHHDPNVHQXMOTCTGAUBRXHACSRLJWLYEYLWONHMTYWKRIJHXOFKANYNMMOGEAEDQARCAISUKTWXNKKYQOIQUTBFZCACYTTLGSFCJDWPGUXMXIKVDYPUFQCRQXUHZMSLNUDJUUCITNGHRNWWUQFHSRRFQXNXFBPLKUXGUMFSZFHWZFNXZMCPXIIJCANLOQNTUTURRMJOUPIWRLKOOBKQYHWAXVGLZQHKIGNRQK | B52: 103 | C52: -180811.2908 | E52: 539 | F52: 2690 | G52: -4395.222084 | H52: 429 | I52: 501.7875545 | AX52: -4331.005015 | AY52: LPQTFGYXSDRUEQTJLOXBDJEIDNQFSTAGKPILFWXKBGDUWXOMJJMDXYBOSJRROTRPDHIOQDKQUAEONPHRTMDIDAHAUXRXVADKRLLXLLEYYWEHHCIYURRIKHXXFAHNAFNMOGFKEFKARUAINUKKWXUKXWQAEQUSBFMIAHYTOLGKVCFYQPGUVMXWLVVAPTFDJRQOUHIMSSNUTJUUDINNGKRNOWURFGLRTSDCIXFHPLMUXUUMMSCGPYVGOQAAIPWTGJNANSOQQTUSTRQMJLUPOWRQKMOAKPXIHAXYGLNQFIIGLWYM
A53: LPCTFLYXXDRIEPGJLKSBMJEQDNNGSMALFOIWFWQKBPDUMJXVJJODXUBQXJRAITWPDVIOFEKVHHDPNVHQXMOTCTGAUBRXHACSRLJWLYEYLWONHMTYWKRIJHXOFKANYNMMOGEAEDQARWAISUKTWXNKKYQOIQUTBFZCACYTOLGSFCJDWPGUXMXIKVDYPUFQCRQXUHZMSMNUDJUUCITNGHRNWWUQFHSRRFQXNXFBPLKUXGUMFSZFHWZFNXZMCPXIIJCANLOQNTUTURRMJOUPIWRLKOOBKQYHWAXVGLZQHKIGNRQK | B53: 104 | C53: -177913.6138 | E53: 540 | F53: 2700 | G53: -4394.579991 | H53: 439 | I53: 502.4296472 | AX53: -4331.005015 | AY53: LPQTFGYXSDRUEQTJLOXBDJEIDNQFRTAGKPILFWXKBGDUWXOMJJMDXYBOSJRROTRPDHIOQDKQUAEONPHRTMDICAHAUXRXVADKRLLXLLEYYWEHHCIYURRIKHXXFAHNAFNMOGFKEFKARUAINUKKWXUKXWQAEQUSBFMIAHYTOLGKVCFYQPGUVMXWLVVAPTFDJRQOUHIMSSNUTJUUDINNGKRNOWURFGLRTSDCIXFHPLMUXUUMMSCGPYVGOQAAIPWTGJNANSOQQTUSTRQMJLUPOWRQKMOAKPXIHAXYGLNQFIIGLWYH
A54: LPITFLYXXDRIEPGJLKSBMJEQDNNGSMALFOIWFWQKBPDUMJXVJJODXUBQXJRAITWPDVIOFEKVHHDPNVHQXMOTCAGAUBRXNACSRLJWLYEYLWONLMTYWKRIJHXOFKANYNMMOGFAEDQARWAISUKTWXNKLYQRIQUTBFZCACYTOLGSFCJQWPGUXMXIKVDYPUFQCRQXUHZMSMNUDJUUCITNGHRNWWUQFHSRRFQXNXFBPLKUXGUMFSZFPVOFNXZMCPXIIJCANLOQNTUTURRMJOUPUWRLKOOBKQYHMAXVGLAQHKIGNRQK | B54: 106 | C54: -171940.9219 | E54: 541 | F54: 2710 | G54: -4394.579991 | H54: 449 | I54: 502.4296472 | AX54: -4331.005015 | AY54: LPQTFGYXSDRUEQTJLOXBDJEIDNQFSTAGKPILFWXKBGDUWXOMJJMDXYBOSJRROTRPDHIOQDKQUAEONPHRTMDIDAHAUXRXVADKRLLXLLEYYWEHHCIYURRIKHXXFAHNAFNMOGFKEFKARUAINUKKWXUKXWQAEQUSBFMIAHYTOLGKVCFYQPGUVMXWLVVAPTFDJRQOUHIMSSNUTJUUDINNGKRNOWURFGLRTSDCIXFHPLMUXUUMMSCGPYVGOQAAIPWTGJNANSOQQTUSTRQMJLUPOWRQKMOAKPXIHAXYGLNQFIIGLWYM
A55: LPCTFLYXXDRIEPGJLKSBMJEQDNNGSMALFOIWFWQKBPDUMJXVJJODXUBQXJRAITWPDVIOFEKVHHDPNVHQXMOICAGAUTRXNACSRLJWLYEYLWONHMTYWKRIJHXOFKANYNMMOGEAEDQARWAISUKTWXNKLYQRIQUTBFZCACYTTLGSFCJQWPGUXMXIKVDYPUFQCRQXUHZMSMNUDJUUCITNGHRNYWUQFHSRRFQXNXFBPLKUXGUMFSZFHWZFNXZMCPXIIJCANLOQNTUTURRMJOUPIWRLKOOBKQYHMAXVGLZQHKIGNRQK | B55: 109 | C55: -166040.8056 | E55: 542 | F55: 2717 | G55: -4394.579991 | H55: 456 | I55: 502.4296472 | AX55: -4331.005015 | AY55: LPQTFGYXSDRUEQTJLOXBDJEIDNQFSTAGKPILFWXKBGDUWXOMJJMDXYBOSJRROTRPDHIOQDKQUAEONPHRTMDIDAHAUXRXVADKRLLXLLEYYWEHHCIYURRIKHXXFAHNAFNMOGFKEFKARUAINUKKWXUKXWQAEQUSBFMIAHYTOLGKVCFYQPGUVMXWLVVAPTFDJRQOUHIMSSNUTJUUDINNGKRNOWURFGLRTSDCIXFHPLMUXUUMMSCGPYVGOQAAIPWTGJNANSOQQTUSTRQMJLUPOWRQKMOAKPXIHAXYGLNQFIIGLWYH
A56: LPCTFLYXXDRIEPGJLKSBMJEQDNNGSMALFOIWFWQKBPDUMJXVJJODXUBQXJRAITWPDVIOFEKVHHDPNVHQXMOICAGAUTRXNACSRLJWLYEYLWONHCTYWKRIJHXOFKANYNMMOGFAEDQARWAISUKTWXNKLYQRIQUTBFZCACYTTLGSHOZQWPGUXMXIKVDYPUFQCRQXUHZMSMNUDJUUCITNGHRNYWUQFHSRRFQXNXFBPLKUXGUMFSZFHWZFNXZMCPXIIJMANLOQNTUTURRMJOUPIWRLKOOBKQYHMAXVGLZQHKIGNRQK | B56: 111 | C56: -163935.1449 | E56: 543 | F56: 2725 | G56: -4391.922441 | H56: 464 | I56: 505.0871978 | AX56: -4331.005015 | AY56: LPQTFGYXSDRUEQTJLOXBDJEIDNQFRTAGKPILFWXKBGDUWXOMJJMDXYBOSJRROTRPDHIOQDKQUAEONPHRTMDICAHAUXRXVADKRLLXLLEYYWEHHCIYURRIKHXXFAHNAFNMOGFKEFKARUAINUKKWXUKXWQAEQUSBFMIAHYTOLGKVCFYQPGUVMXWLVVAPTFDJRQOUHIMSSNUTJUUDINNGKRNOWURFGLRTSDCIXFHPLMUXUUMMSCGPYVGOQAAIPWTGJNANSOQQTUSTRQMJLUPOWRQKMOAKPXIHAXYGLNQFIIGLWYH
A57: LPCTFLYXXDRIEPGJLKSBMJEQDNNGSMALFOIWFWQKBPDUMJXVJJODXUBQXJRAITWPDVIOGEKVHHDPNVHQXMOICAGAUTRXNACSRLJWLYEYLWONHCTYWKRIJHXOFKANYNMMOGFAEDQARWAISUKTWXNKLYQRIQUTBFZCACYTTLGSFCJQWPGUXMXIKVDYPUFQCRQCUHZMSMNUDJUUCITNGHRNWWUQFHSRRFVXNXFBPLKUXGUMFSZFPVOFNXZMCPXIIJMANLOQNTUTURRMJOUPIWRLKOOBKQYHMAXVGLZQHKIGNRQK | B57: 114 | C57: -160344.5901 | E57: 544 | F57: 2732 | G57: -4390.232389 | H57: 471 | I57: 506.7772493 | AX57: -4331.005015 | AY57: LPQTFGYXSDRUEQTJLOXBDJEIDNQFSTAGKOILFWXKBGDUWXOMJJMDXYBOSJRROTRPDHIOQDKQUAEONPHRTMDIDAHAUXRXVADKRLLXLLEYYWEHHCIYURRIKHXXFAHNAFNMOGFKEFKARUAINUKKWXUKXWQAEQUSBFMIAHYTOLGKVCFYQPGUVMXWLVVAPTFDJRQOUHIMSSNUTJUUDINNGKRNOWURFGLRTSDCIXFHPLMUXUUMMSCGPYVGOQAAIPWTGJNANSOQQTUSTRQMJLUPOWRQKMOAKPXIHAXYGLNQFIIGLWYH
A58: LPCTFLYXXDRPEPGJLKSBMJEQDNNGSMALFOIWFWQKBPDUMJXNJJODXUBQXJRZITWPDVIOGEKVHHDPNVHQXMOICAGAUTRXNACWRLJWLYEYLWONHCTYWKRIJHXOFKANYNMMOGFAEDQARWAISUKTWXNKLYQRIQUTBFZCACYTTLGSFCJQWPGUXMXIKVDYPUFQCRQCUHZMSMNUDJUUCITNGHRNWWUQFHSRRFVXNXFBPLKUXGUMFSZFPVOFNXZMKPXIIJMANLOQNTUTURRMJOUPIWRLKOOBKQYHMAXVGLZQHKIGNRQK | B58: 116 | C58: -159370.5833 | E58: 545 | F58: 2740 | G58: -4383.123392 | H58: 479 | I58: 513.8862465 | K58: nb générations | AX58: -4331.005015 | AY58: LPQTFGYXSDRUEQTJLOXBDJEIDNQFSTAGKPILFWXKBGDUWXOMJJMDXYBOSJRROTRPDHIOQDKQUAEONPHRTMDIDAHAUXRXVADKRLLXLLEYYWEHHCIYURRIKHXXFAHNAFNMOGFKEFKARUAINUKKWXUKXWQAEQUSBFMIAHYTOLGKVCFYQPGUVMXWLVVAPTFDJRQOUHIMSSNUTJUUDINNGKRNOWURFGLRTSDCIXFHPLMUXUUMMSCGPYVGOQAAIPWTGJNANSOQQTUSTRQMJLUPOWRQKMOAKPXIHAXYGLNQFIIGLJYH
A59: LPCTFLYXXDRPEPGJLKSBMJEQDNNGSMALFOIWFWQKBPDUMJXNJJODXUBQXJRZITWPDVIOGEKVHHDPNVHQXMOICAGAUTRXNACWRLJWLYEYLWONHCTYWKRIJHXOFKANYNMMOGFAEDQARWAISUKTWXNKLYQRIQUTBFZCACYTTLGSFCJQWPGUXMXIKVDYPUFQCRQCUHZMSMNUDJUUCITNGNRNWWUQFHSRRJVXNXFBPLKUXGUMFSZFPVOFNXZMKPXIIJMANLOQNTUTURRMJOUPIWRLKOODKQYHMAXVGLZQHKIGNRQK | B59: 124 | C59: -158544.3723 | E59: 546 | F59: 2746 | G59: -4381.623987 | H59: 485 | I59: 515.385652 | K59: 2 | L59: =INDEX(B:B,K59) -> 1 | N59: =INDEX(C:C,K59) -> -791109.3422 | O59: amélioration | AX59: -4331.005015 | AY59: LPQTFGYXSDRUEQTJLOXBDJEIDNQFSTAGKOILFWXKBGDUWXOMJJMDXYBOSJRROTRPDHIOQDKQUAEONPHRTMDICAHAUXRXVADKRLLXLLEYYWEHHCIYURRIKHXXFAHNAFNMOGFKEFKARUAINUKKWXUKXWQAEQUSBFMIAHYTOLGKVCFYQPGUVMXWLVVAPTFDJRQOUHIMSSNUTJUUDINNGKRNOWURFGLRTSDCIXFHPLMUXUUMMSCGPYVGOQAAIPWTGJNANSOQQTUSTRQMJLUPOWRQKMOAKPXIHAXYGLNQFIIGLWYM
A60: LPCTFLYXXDRIEPGJLKSBMJEQDNNGSMALFOIWFWQKBPDUMJXVJJODXUBQXJRZITWPDWIOFEKVHHDPNVHQXMOICAGAUTRXNACWRLJWLYEYLWONHCTYWKRIJHXOFKANYNMMOGFAEDQARWAISUKTWXNKXYQRIQUTBFZCACYTTLGSFCJYQPGUXMXIKVDYPUFQCRQXUHZMSMNUDJUUCITNGNRNWWUQFHSRRFQXNXFBPLKUXGUMFSZFPVOFNXZMCPXIIJCANLOQNTUUURRMJOUPIWRLKOODKQYHMAXVGLZQHKIGNRQK | B60: 129 | C60: -155065.3807 | E60: 547 | F60: 2753 | G60: -4381.623987 | H60: 492 | I60: 515.385652 | K60: =K59+100 -> 102 | L60: 307 | M60: =IF(L60=0,"",L60-L59) -> 306 | N60: -80251.80292 | O60: =IF(L60=0,0,N60-N59) -> 710857.5393 | AX60: -4331.005015 | AY60: LPQTFGYXSDRUEQTJLOXBDJEIDNQFSTAGKOILFWXKBGDUWXOMJJMDXYBOSJRROTRPDHIOQDKQUAEONPHRTMDICAHAUXRXVADKRLLXLLEYYWEHHCIYURRIKHXXFAHNAFNMOGFKEFKARUAINUKKWXUKXWQAEQUSBFMIAHYTOLGKVCFYQPGUVMXWLVVAPTFDJRQOUHIMSSNUTJUUDINNGKRNOWURFGLRTSDCIXFHPLMUXUUMMSCGPYVGOQAAIPWTGJNANSOQQTUSTRQMJLUPOWRQKMOAKPXIHAXYGLNQFIIGLWYH
A61: LPITFLYXXDRPEPGJLKSBMJEQDNNGSMALFOIWFWQKBPDUMJXNJJODXUBQXJRAITWPDVIOGEKVHHDPNVHQXMOICAGAUTRXHACSRLJWLYEYLWONHCTYWKRIJHXOFKDNYNMMOGFAEDQARWAISUKTWXNKLYQRIQUTBFZCACYTTLGSFCJYQPGUXMXIKVDYPUFQCRQXUHZMSMNUDJUUCITNGHRNWWUQFHSRRFVXNXFBPLKUXGUMFSZFHWZFNXZMCPXIIJMANLOQNTUTURRMJOUPIWRLKOODKQYHMAXVGLZQHKIGNRQK | B61: 131 | C61: -155003.0867 | E61: 548 | F61: 2757 | G61: -4381.623855 | H61: 496 | I61: 515.3857841 | K61: =K60+100 -> 202 | L61: 714 | M61: =IF(L61=0,M60,L61-L60) -> 407 | N61: -36007.34474 | O61: =IF(L61=0,O60,N61-N60) -> 44244.45819 | AX61: -4331.005015 | AY61: LPQTFGYXSDRUEQTJLOXBDJEIDNQFSTAGKOILFWXKBGDUWXOMJJMDXYBOSJRROTRPDHIOQDKQUAEONPHRTMDICAHAUXRXVADKRLLXLLEYYWEHHCIYURRIKHXXFAHNAFNMOGFKEFKARUAINUKKWXUKXWQAEQUSBFMIAHYTOLGKVCFYQPGUVMXWLVVAPTFDJRQOUHIMSSNUTJUUDINNGKRNOWURFGLRTSDCIXFHPLMUXUUMMSCGPYVGOQAAIPWTGJNANSOQQTUSTRQMJLUPOWRQKMOAKPXIHAXYGLNQFIIGLWYH
A62: LPITFLYXXDRPEPGJLKSBMJEQDNNGSMALFOIWFWKKBPDUMJXVJJODXUBQXJRZITWPDVIOFEKVHHDPNVHQXMOTAAGAUBRXNACSRLJWLYEYLWONHCTYWKRIJHXOFKANYNMMOGFAEDQARWAISUKTWXNKLYQRIQUTBFZCACYTOLGSFCJYQPGUXMXIKVDYPUFQCRQXUHZMSMNUDJUUCITNGHRNYWUQFHSRRFQYNXFBPLKUXGUMFSZFPVOFNXZMCPXIIJCANLOQNTUTURRMJOUPIWRLKOOBKQYHMAXVGLAQHKIGNRQK | B62: 139 | C62: -153742.3002 | E62: 549 | F62: 2758 | G62: -4377.491605 | H62: 497 | I62: 519.5180341 | K62: 302 | L62: 1188 | M62: =IF(L62=0,M61,L62-L61) -> 474 | N62: -10764.95625 | O62: =IF(L62=0,O61,N62-N61) -> 25242.38848 | AX62: -4331.005015 | AY62: LPQTFGYXSDRUEQTJLOXBDJEIDNQFSTAGKPILFWXKBGDUWXOMJJMDXYBOSJRROTRPDHIOQDKQUAEONPHRTMDICAHAUXRXVADKRLLXLLEYYWEHHCIYURRIKHXXFAHNAFNMOGFKEFKARUAINUKKWXUKXWQAEQUSBFMIAHYTOLGKVCFYQPGUVMXWLVVAPTFDJRQOUHIMSSNUTJUUDINNGKRNOWURFGLRTSDCIXFHPLMUXUUMMSCGPYVGOQAAIPWTGJNANSOQQTUSTRQMJLUPOWRQKMOAKPXIHAXYGLNQFIIGLWYH
A63: LPCTFLYXXDRIEPGJLKSBMJEQDNNGSMALFOIWFWQKBPDUMJXVJJODXUBQXJRAITWPDVIOFEKVHHDPNVHQXMOICAGAUTRXNACSRLJWLYEYLWONHCTYWKRIJHXOFKANYNMMOGFAEDQARWAISUKTWXNKXYQRIQUTBFZIACYTTLGSFCJYQPGUXMXIKVDYPUFQCRQXUHZMSMNUDJUUCITNGHRNWWUQFHSRRFVXNXFBPLKUXGUMFSZFPVOFNXZMCPXIIJMANLOQNTUUURRMJOUPIWRLKOOBKQYHMAXVGLZQHKIGNRQK | B63: 140 | C63: -149791.9901 | E63: 550 | F63: 2761 | G63: -4376.634292 | H63: 500 | I63: 520.3753468 | K63: 402 | L63: 1709 | M63: 521 | N63: -7698.806909 | O63: 3066.149344 | AX63: -4332.589372 | AY63: LPQTFGYXSDRUEQTJLOXBDJEIDNQFSTAGKPILFWXKBGDUWXOMJJMDXYBOSJRROTRPDHIOQDKQUAEONPHRTMDIDAHAUXRXVADKRLLXLLEYYWEHHCIYURRIKHXXFAHNAFNMOGFKEFKARUAHNUKKWXUKXWQAEQUSBFMIAHYTOLGKVCFYQPGUVMXWLVVAPTFCJRQOUHIMSSNUTJUUDINNGKRNOWURFGLRTSDCIXFHPLMUXUUMMSCGPYVGOQAAIPWTGJNANSOQQTUSTRQMJLUPOWRQKMOAKPXIHAXYGLNQFIIGLWYM
A64: LPITFLYXXDRIEPGJLKTBMJEQDNNGSMALFOIWFWQKBPDUMJXNJJODXUBQXJRAITWPDWIOFEKVHHDPNVHQXMOTCAGAUTRXNACSRLJWLYEYLWONHCTYWKRIJHXOFAANYNMMOGFAEDQARWAISUKTWXNKLYQRIQUTBFZCACYTTLGSFCJYQPGUXMXIKVDYPUFQCRQXUHZMSMNUDJUUCITNGNRNWWUQFHSRRFVDNXFBPLKUXGUMFSZFPVOFNFZMKPXIIJMANLOQNTUUURRMJOUPIWRLKOODKQYHMAXVGLZQHKIGNRQK | B64: 145 | C64: -148842.3286 | E64: 551 | F64: 2762 | G64: -4376.624119 | H64: 501 | I64: 520.3855199 | K64: 502 | L64: 2401 | M64: 692 | N64: -4870.629404 | O64: 2828.177505 | AX64: -4332.589372 | AY64: LPQTFGYXSDRUEQTJLOXBDJEIDNQFSTAGKPILFWXKBGDUWXOMJJMDXYBOSJRROTRPDHIOQDKQUAEONPHRTMDIDAHAUXRXVADKRLLXLLEYYWEHHCIYURRIKHXXFAHNAFNMOGFKEFKARUAHNUKKWXUKXWQAEQUSBFMIAHYTOLGKVCFYQPGUVMXWLVVAPTFCJRQOUHIMSSNUTJUUDINNGKRNOWURFGLRTSDCIXFHPLMUXUUMMSCGPYVGOQAAIPWTGJNANSOQQTUSTRQMJLUPOWRQKMOAKPXIHAXYGLNQFIIGLWYM
A65: LPITFLYXXDRPEPGJLKSBMJEQDNNGSMALFOIWFWQKBPDUMJXNJJODXUBQXJRAITWPDVIOGEKVHHDPNVHQXMOICAGAUTRXNACSRLJWLYEYLWONHCTYWKRIJHXOFKDNYNMMOGFAEDQARWAISUKTWXNKLYQRIQUTBFZCACYTTLGSOCJYQPGUXMXIKVDYPUFQCRQXUHZMSMNUDJUUCITNGNRNWWUQFHSRRFVDNXFBPLKUXGUMFSZFHWZFNXZMKPXIIJMANLOQNTUTURRMJOUPIWRLKOODKQYHMAXVGLZQHKIGNRQK | B65: 146 | C65: -146363.1275 | E65: 552 | F65: 2763 | G65: -4375.992199 | H65: 502 | I65: 521.0174396 | K65: 602 | L65: 0 | M65: 692 | N65: 0 | O65: 2828.177505 | AX65: -4332.589372 | AY65: LPQTFGYXSDRUEQTJLOXBDJEIDNQFSTAGKPILFWXKBGDUWXOMJJMDXYBOSJRROTRPDHIOQDKQUAEONPHRTMDIDAHAUXRXVADKRLLXLLEYYWEHHCIYURRIKHXXFAHNAFNMOGFKEFKARUAHNUKKWXUKXWQAEQUSBFMIAHYTOLGKVCFYQPGUVMXWLVVAPTFCJRQOUHIMSSNUTJUUDINNGKRNOWURFGLRTSDCIXFHPLMUXUUMMSCGPYVGOQAAIPWTGJNANSOQQTUSTRQMJLUPOWRQKMOAKPXIHAXYGLNQFIIGLWYM
A66: LPITFLYXXDRIEPGJLKSBMJEQDNNGSMALFOIWFWKKBPDUMJXNJJODXUBQYJRAITWPDVIOGEKVHHDPNVHQXMOICAGAUTRXNACSRLJWLJEYLWONHCTYWKRIJHXOFAANYNMMOGEAEDQARWAISUKTWXNKLSQRIQUTBFZCACYTTLGSOCJYQPGUXMXIKVDYPUFQCRQXUHZMSINUDJUUCITNGNRNWWUQFHSRRFQXNXFBPLKUXSUMFSZFHWZFNXZMKPXNIJMANLOQNTUTURRMJOUPIWRLKOOBKQYHMAXVGLUQHKIGNRQK | B66: 148 | C66: -142647.3918 | E66: 553 | F66: =INDEX(B:B,$E66) -> 2765 | G66: =INDEX(C:C,$E66) -> -4373.872765 | H66: 504 | I66: 523.1368741 | K66: 702 | L66: 0 | M66: 692 | N66: 0 | O66: 2828.177505 | AX66: -4334.362129 | AY66: LPQTFGYXSDRUEQTJLOXBDJEIDNQFRTAGKOILFWXKBGDUWXOMJJMDXYBOSJRROTRPDHIOQDKQUAEONPHRTMDICAHAUXRXVADKRLLXLLEYYWEHHCIYURRIKHXXFAHNAFNMOGFKEFKARUAINUKKWXUKXWQAEQUSBFMIAHYTOLGKVCFYQPGUVMXWLVVAQTFDJRQOUHIMSSNUTJUUDINNGKRNOWURFGLRTSDCIXFHPLMUXUUMMSCGPYVGOQAAIPWTGJNANSOQQTUSTRQMJLUPOWRQKMOAKPXIHAXYGLNQFIIGLWYH
A67: LPCTFLYXXDRIEPGJLKTBMJEQDNNGSMALFOIWFWQKBPDUMJXVJJODXUBQXJRTITWPDWIOFEKVHHDPNVHQXMOICAGAUTRXNACSRLJWLYEYLWONHCTYWKRIJHXOFAANYNMMOGEAEDQARWAISUKTWXNKXYQRIQUTBFZIACYTTLGSFCJYQPGUXMXIKVDYPUFPCRQCUHZMSMNUDJUUCITNGNRNWWUQFHSRRFVDNXFBPLKUXGUMFSZFPVOFNXZMCPXIIJMANLOQNTUUURRMJOUPIWRLKOOBKQYHMAXVGLUQHKIGNRQK | B67: 152 | C67: -140045.5967 | E67: 554 | F67: 2774 | G67: -4371.024568 | H67: 513 | I67: 525.9850707 | K67: 802 | L67: 0 | M67: 692 | N67: 0 | O67: 2828.177505 | AX67: -4340.245998 | AY67: LPQTFJYXSDRUEQTJLOXBDJEIDNQFSTAGKPILFWXKBGDUWXOMJJMDXYBOSJRROTRPDHIOQDKQUAEONPHRTMDICAHAUXRXVADKRLLXLLEYYWEHHCIYURRIKHXXFAHNAFNMOGFKEFKARUAINUKKWXUKXWQAEQUSBFMIAHYTOLGKVCFYQPGUVMXWLVVAPTFDJRQOUHIMSSNUTJUUDINNGKRNOWURFGLRTSDCIXFHPLMUXUUMMSCGPYVGOQAAIPWTGJNANSOQQTUSTRQMJLUPOWRQKMOAKPXIHAXYGLNQFIIGLWYM
A68: LPCTFLYXXDRPEPGJLKTBMJEQDNNGSMALFOIWFWQKBPDUMJXNJJODXUBQXJRAITWPDVIOGEKVHHDPNVHQXMOICAGAUTRXNACSRLJWLYEYLWONHCTYWKRIJHXOFAANYNMMOGFAEDQARWAIQUKTWXNKLYQRIQUTBFZIACYTTLGSOCJYQPGUXMXIKVDYPUFQCRQXUHZMSMNUDJUUCITNGHRNWWUQFHSRRFVDNXFBPLKUXGUMFSZFPVOFNXZMCPXIIJMANLOQNTUTURRMJOUPIWRLKOODKQYHMAXVGLZQHKIGNRQK | B68: 155 | C68: -137684.1754 | E68: =E67+1 -> 555 | F68: 2775 | G68: -4371.024568 | H68: =F68-$F$2 -> 514 | I68: =G68-$G$2 -> 525.9850707 | K68: 902 | L68: 0 | M68: 692 | N68: 0 | O68: 2828.177505 | AX68: -4340.468748 | AY68: LPQTFGYXSDRUEQTJLOXBDJEIDNQFRTAGKPILFWXKBGDUWXOMJJMDXYBOSJRROTRPDHIOQDKQUAEONPHRTMDICAHAUXRXVADKRLLXLLEYYWEHHCIYURRIKHXXFAHNAFNMOGFKEFKARUAINUKKWXUKXWQAEQUSBFMIAHYTOLGKVCFYQPGUVMXWLVVAPTFDJRQOUHIMSSNUTJUUDINNGKRNOWURFGLRTSDCIXFHPLMUXUUMLSCGPYVGOQAAIPWTGJNANSOQQTUSTRQMJLUPOWRQKMOAKPXIHAXYGLNQFIIGLWYH
A69: LPCTFLYXXDRIEPGJLKSBMJEQDNNGSMALFOIWFWKKBPDUMJXNJJODXUBQXJRAITWPDVIOGEKVHHDPNVHQEMOICAGAUTRXNACSRLJWLYEYLWONHCTYWKRIJHXOFAANYNMMOGEAEDQARWAIQUKTWXNKLSQRIQUTBFZIACYTTLGSOCJYQPGUXMXIKVDYPUFQCRQXUHZMSMNUDJUUCITNGHRNWWUQFHSRRFVDNXFBPLKUXGUMFSZFPVOFNXZMCPXIIJMANLOQNTUTURRMJOUPIWRLKOOBKQYHMAXVGLUQHKIGNRQK | B69: 157 | C69: -136443.5134 | E69: 556 | F69: 2779 | G69: -4368.88307 | H69: 518 | I69: 528.1265689 | K69: 1002 | L69: 0 | M69: 692 | N69: 0 | O69: 2828.177505 | AX69: -4359.641162 | AY69: LPQTFGYXSDRUEQTJLOXBDJEIDNQFSTAGKOILFWXKBGDUWXOMJJMDXYBOSJRROTRPDHIOQDKQUAEONPHRTMDIDAHAUXRXVADKRLLXLLEYYWEHHCIYURRIMHXXFAHNAFNMOGFKEFKARUAINUKKWXUKXWQAEQUSBFMIAHYTOLGKVCFYQPGUVMXWLVVAPTFDJRQOUHIMSSNUTJUUDINNGKRNOWURFGLRTSDCIXFHPLMUXUUMMSCGPYVGOQAAIPWUGJNANSOQQTUSTRQMJLUPOWRQKMOAKPXIHAXYGLNQFIIGLWYH
A70: LPCTFLYXXDRIEPGJLKSBMJEQDNNGSMALFOIWFWQKBPDUMJXVJJODXUBQXJRAITWPDVIOGEKVHHDPNVHQXMOIAAGAUTRXNACSRLJWLJEYLWONHCTYWKRIJHXOFAALYNMMOGEAEFQARWAISUKTWXNKLSQRIQUTBFZIACYTOLGSFCJYQPGUXMXIKVDYPUFQCRQXUHOMSMNUDJUUCITNGHRNWWUQFHSRRFVDNXFBPLKUXGUMISZFPVOFNXZMKPXNIJMANLOQNTUUURRMJOUPIWRLKOOBKQYHMAXVGLUQHKIGNRQK | B70: 159 | C70: -133779.3912 | E70: 557 | F70: 2780 | G70: -4368.88307 | H70: 519 | I70: 528.1265689 | K70: 1102 | L70: 0 | M70: 692 | N70: 0 | O70: 2828.177505 | AX70: -4359.892979 | AY70: LPQTFGYXSDRUEQVJLOXBDJEIDNQFSTAGKOILFWXKBGDUWXOMJJMDXYBOSJRROTRPDHIOQDKQUAEONPHRTMDICAHAUXRXVADKRLLXLLEYYWEHHCIYURRIKHXXFAHNAFNMOGFKEFKARUAINUKKWXUKXWQAEQUSBFMIAHYTOLGKVCFYQPGUVMXWLVVAPTFDJRQOUHIMSSNUTJUUDINNGKRNOWURFGLRTSDCIXFHPLMUXUUMMSCGPYVGOQAAIPWUGJNANSOQQTUSTRQMJLUPOWRQKMOAKPXIHAXYGLNQFIIGLWYH
A71: LPITFLYXXDRIEPGJLKSBMJEQDNNGSMALFOIWFWQKBPDUMJXVJJODXUBQXJRAITWPDVIOGEKVHHDPNVHQXMOICAGAUTRXNACSRLJWLJEYLWONHCTYWKRIJHXOFAANYNMMOGEAEDQARWAISUKTWXNKLSQRIQUTBFZIACYTTLGSOCJYQPGUXMXIKVDYPUFQCRQXUHZMSMNUDJUUCITNGHRNWWUQFHSRRFVDNXFBPLKUXGUMFSZFPVOFNXZMKPXNIJMANLOQNTUTURRMJOUPIWRLKOOBKQYHMAXVGLZQHKIGNRQK | B71: 160 | C71: -133367.677 | E71: 558 | F71: 2781 | G71: -4368.872897 | H71: 520 | I71: 528.136742 | K71: 1202 | L71: 0 | M71: 692 | N71: 0 | O71: 2828.177505 | AX71: -4363.250093 | AY71: LPQTFGYXSDRUEQVJLOXBDJEIDNQFSTAGKOILFWXKBGDUWXOMJJMDXYBOSJRROTRPDHIOQDKQUAEONPHRTMDICAHAUXRXVADKRLLXLLEYYWEHHCIYURRIKHXXFAHNAFNMOGFKEFKARUAINUKKWXUKXWQAEQUSBFMIAHYTOLGKVCFYQPGUVMXWLVVAQTFDJRQOUHIMSSNUTJUUDINNGKRNOWURFGLRTSDCIXFHPLMUXUUMMSCGPYVGOQAAIPWUGJNANSOQQTUSTRQMJLUPOWRQKMOAKPXIHAXYGLNQFIIGLWYH
A72: LPCTFLYXXDRIEPGJLKSBMJEQDNNGSMALFOIWFWQKBPDUMJXVJJODXUBQXJRTITWPDVIOFEKVHHDPNVHQXMOTCAGAUTRXNACSRLJWLJEYLWONHCTYWKRIJHXOFAANYNMMOGFAEDQARWAISUKTWXNKXYQRIQUTBFZIACYTTLGSFCJYQPGUXMXIKVDAPUFPCRQXUHZMSMNUDJUUCITNGHRNWWUQFHSRRMVDNXFBPLKUXGUMFSZFPVOFNXZMCPXIIJMANLOQTTUUURRMJOUPIWRLKOOBKQYHMAXVGLUQHKIGNRQK | B72: 163 | C72: -131708.432 | E72: 559 | F72: 2815 | G72: -4368.872897 | H72: 554 | I72: 528.136742 | K72: 1302 | L72: 0 | M72: 692 | N72: 0 | O72: 2828.177505 | AX72: -4365.831412 | AY72: LPQTFGYXSDRUEQTJLOXBDJEIDNQFSTAGKOILFWXKBGDUWXOMJJMDXYBOSJRROTRPDHIOQDKQUAEONPHRTMDIDAHAUXRXVADKRLLXLLEYYWEHHCIYURRIMHXXFAHNAFNMOGFKEFKARUAHNUKKWXUKXWQAEQUSBFMIAHYTOLGKVCFYQPGUVMXWLVVAPTFDJRQOUHIMSSNUTJUUDINNGKRNOWURFGLRTSDCIXFHPLMUXUUMMSCGPYVGOQAAIPWTGJNANSOQQTUSTRQMJLUPOWRQKMOAKPXIHAXYGLNQFIIGLWYH
A73: LPCTFLYXXDRIEPGJLKSBMJEQDNNGSMALFOIWFWQKBPDUMJXVJJODXUBQXJRTETWPDVIOGEKVHHDPNVHQXMOTCAGAUTRXNACSRLJWLJEYLWONHCTYWKRIJHXOFAANYNMMOGEAEDQARWAISUKTWXNKXYQRIQUTBFZIACYTTLGSOCJYQPGUXMXIKVDAPUFPCRQXUHZMSMNUDJUUCITNGHRNWWUQFHSRRFVDNXFBPLKUXGUMFSZFPVOFNXZMCPXIIJMANLOQTTUTURRMJOUPIWRLKOOBKQYHMAXVGLUQHKIGNRQK | B73: 177 | C73: -126533.2754 | E73: 560 | F73: 2833 | G73: -4368.872897 | H73: 572 | I73: 528.136742 | K73: 1402 | L73: 0 | M73: 692 | N73: 0 | O73: 2828.177505 | AX73: -4369.944372 | AY73: LPQTFGYXSDRUEQTJLOXBDJEIDNQFSTAGKPILFWXKBGDUWXOMJJMDXYBOSJRROTRPDHIOQDKQUAEONPHRTMDICAHAUXRXVADKRLLXLLEYYWEHHCIYURRIMHXXFAHNAFNMOGFKEFKARUAINUKKWXUKXWQAEQUSBFMIAHYTOLGKVCFYQPGUVMXWLVVAPTFDJRQOUHIMSSNUTJUUDINNGKRNOWURFGLRTSDCIXFHPLMUXUUMMSCGPYVGOQAAIPWTGJNANSOQQTUSTRQMJLUPOWRQKMOAKPXIHAXYGLNQFIIGLWYH
A74: LPCTFLYXXDRIEPGJLKSBMJEQDNNGSMALFOIWFWQKBPDUMJXVJJODXUBQXJRTITWPDVIOGEKVHHDPNVHQXMOTCAGAURRXNACSRLJWLJEYLWONHCTYWKRIJHXOFAANYNMMOGEAEDQARWAISUKTWXNKXYQRIQUTBFZIACYTTLGSOCJYQPGUXMXIKVDAPUFPCRQXUHZMSMNUDJUUCITNGHRNWWUQFHSRRFVDNXFBPLKUXGUMFSZFPVOFNXZMCPXNIJMANLOQTTUTURRMJOUPIWRLKOOBKQYHMAXVGLUQHKIGNRQK | B74: 190 | C74: -126396.0334 | E74: 561 | F74: 2865 | G74: -4366.149419 | H74: 604 | I74: 530.8602193 | K74: 1502 | L74: 0 | M74: 692 | N74: 0 | O74: 2828.177505 | AX74: -4369.944372 | AY74: LPQTFGYXSDRUEQTJLOXBDJEIDNQFSTAGKOILFWXKBGDUWXOMJJMDXYBOSJRROTRPDHIOQDKQUAEONPHRTMDICAHAUXRXVADKRLLXLLEYYWEHHCIYURRIMHXXFAHNAFNMOGFKEFKARUAINUKKWXUKXWQAEQUSBFMIAHYTOLGKVCFYQPGUVMXWLVVAPTFDJRQOUHIMSSNUTJUUDINNGKRNOWURFGLRTSDCIXFHPLMUXUUMMSCGPYVGOQAAIPWTGJNANSOQQTUSTRQMJLUPOWRQKMOAKPXIHAXYGLNQFIIGLWYH
A75: LPCTFLYXXDRIEPGJLKSBMJEQDNNGSMALFOIWFWQKBYDUMJXVJJODXUBQXJRTITWRDVIOGEKVHHDPNVHQXMOTCAGAUTRXNACSRLJWLJEYLWONHCTYWKRIJHXOFACNYNMMOGEAEDQARWAISUKTWXNKXYQRIQUTBFZIACYTYLGSOCJYQPGUXMXIKVDAPUFPCRQXUHZMSMNUDJUUCITNGHRNWWUQFHSRRFVDNXFBPLKUXGUMFSZFPVOFNXZMCPXNIJMANLOQTTUTURRMJOUPIWRLKOOBKQYHSAXVGLUQGKIGORQK | B75: 200 | C75: -123981.1487 | E75: 562 | F75: 2881 | G75: -4368.107538 | H75: 620 | I75: 528.9021007 | K75: 1602 | L75: 0 | M75: 692 | N75: 0 | O75: 2828.177505 | AX75: -4415.8001 | AY75: LPQTFGYXSDRUEQTJLOXBDJEIDNQFSTAGKPILFWXKBGDUWXOMJJMDXYBOSJRROTRPDHIOQDKQUAEONPHRTMDICAHAUXRXVADKRLLXLLEYYWEHHCIYURRIKHXXFAHNAFNMOGFKEFKARUAHNUKKWXUKXWQAEQUSBFMIAHYTOLGKVCFYQPGUVMXWLVVAPTFDJRQOUHIMSSNUTJUUDINNGKRNOWURFGLRTSDCIXFHPLMUXUUMMSCGPYQGOQAAIPWTGJNANSOQQTUSTRQMJLUPOWRQKMOAKPXIHAXYGLNQFIIGLWYM
A76: LPCTFLYXXDRIEPGJLKSBMJEQDNNGSMALFOIVFWQKBYDUMJXVJJODXUBQXJRTITWRDVIOGEKVHHDPNVHQXMOTCAGAUTRXNACSRLJWLJEYLWONHCTYWKRIJHXOFACNYNMMOGEAEDQARWAISUKTWXNKXYQRIQUTBFZIACYTYLGSOCJYQPGUXMXIKVDAPUFPCRQXUHZMSMNUDJUUCITNGHRNWWUQFHSRRFVDNXFBPLKUXGUMFSZFJVOFNXZMCPXNIJMANLOQTTUTURRMJOUPIWRLKOOBKQYHSAXVGLUQGKIGORQK | B76: 204 | C76: -123954.489 | E76: 563 | F76: 2900 | G76: -4367.840528 | H76: 639 | I76: 529.1691108 | K76: 1702 | L76: 0 | M76: 692 | N76: 0 | O76: 2828.177505 | AX76: -4425.602716 | AY76: LPQTFGYXSDRUEQTJLOXBDJEIDNQFSTAGKPILFWXKBGDUWXOMJJMDXYBOSJRROTRPDHIONDKQUAEONPHRTMDIDAHAUXRXVADKRLLXLLEYYWEHHCIYURRIMHXXFAHNAFNMOGFKEFKARUAINUKKWXUKXWQAEQUSBFMIAHYTOLGKVCFYQPGUVMXWLVVAPTFDJRQOUHIMSSNUTJUVDINNGKRNOWURFGLRTSDCIXFHPLMUXUUMMSCGPYVGOQAAIPWTGJNANSOQQTUSTRQMJLUPOWRQKMOAKPXIHAXYGLNQFIIGLWYH
A77: LPCTFLYXXDRIEPGJLKSBMJEQDNNGSMALFOIWFWQKBPDUMJXVXJODXUBQXJRTETWPDVIOGEKVHHDPNVHQXMOTCAGAUTRXNACKRLJWLJEYLWONHCTYWKRIJHXOFAANYNMMOGEAEDIARWAISUKTWXNKLSQRIQUTBFZIACYTOLGSOCJYQPGUXMXIKVDAPUFQCRQXUHZMSMNUDJUUCITNGHRNWWUQFHSRRFVDNXFBPLKUXGUMFSZWPVOFNXZMCPXNIJMANLOQTTUUURRMJOUPIWRLKOOBKQYHMAXVGLUQHKIGNRQK | B77: 207 | C77: -120342.5239 | E77: 564 | F77: 2916 | G77: -4367.840528 | H77: 655 | I77: 529.1691108 | K77: 1802 | L77: 0 | M77: 692 | N77: 0 | O77: 2828.177505 | AX77: -4449.205305 | AY77: LPQTFGYXSDRUEQTJLOXBDJEIDNQFSTAGKOILFWXKBGDUWXOMJJMDXYBOSJRROTRPDHIOQDKQUAEONPHRTMDICAHAUXRXVADKRLLXLLEYYWEHHCIYURRIKHXXFAHNAFNMOGFKEFKARUAINUKKWXUKXWQAEQUZBFMIAHYTOLGKVCFYQPGUVMXWLVVAQTFDJRQOUHIMSSNUTJUUDINNGKRNOWURFGLRTSDCIXFHPLMUXUUMMSCGPYVGOQAAIPWUGJNANSOQQTUSTRQMJLUPOWRQKMOAKPXIHAXYGLNQFIIGLWYH
A78: LPQTFLYXXDRIEPGJLKSBMJEQDNNGSMALFOIWFWQKBPDUMJXVJJODXUBQXJRTITWPDVIOGEKVHHDPNVHQXMOTCAGAUTRXNACSRLJWLJEYLWONHCTYWKRIJHXOFAANANMMXGEAEFQARWAISUKTWXNKXYQRIQUTBFZIACYTOLGSFCJYQPGUXMXIKVDAPUFPCRQXUHOMSMNUDJUUCITNGHRNWWUQFHSRRMVDNXFBPLKUXGUMFSZFPVOFNXZMCPXIIJMANLOQTTUUURVMJOUPIWRLKHOBKQYHMAXVGLUQGKIGNRHK | B78: 212 | C78: -119336.2167 | E78: 565 | F78: 2920 | G78: -4367.840528 | H78: 659 | I78: 529.1691108 | K78: 1902 | L78: 0 | M78: =IF(L78=0,M77,L78-L77) -> 692 | N78: 0 | O78: 2828.177505 | AX78: -4526.17003 | AY78: LPQTFGYXSDRUEQQJLOXBDJEIDNQFSTAGKOILFWXKBGDUWXOMJJMDXYBOSJRROTRPDHIOQDKQUAEONIHRTMDICAHAUXRXVADKRLLXLLEYYWEHHCIYURRIKHXXFAHNAFNMOGFKEFKARUAHNUKKWXUKXWQAEQUSBFMIAHYTOLGKVCFYQPGUVMXWLVVAPTFDJRQOUHIMSSNUTJUUDINNGKRNOWURFGLRTSDCIXFHPLMUXUUMMSCGPYVGOQAAIPWTGJNANSOQQTUSTRQMJLUPOWRQKMOAKPXIHAXYGLNQFIIGLWYH
A79: LPQTFLYXXDRIEPGJLKSBMJEQDNNGSMALFOIWFWQKBPDUMJXVJJODXUBQXJRTITWPDVIOGEKVHHDPNVHQXMOTCAGAUTRXNACSRLJWLJEYLWONHCTYWKRIJHXOFAANANMMOGEAEFQARWAISUKTWXNKXYQRIQUTBFZIACYTOLGSFCJYQPGUXMXIKVDAPUFPCRQXUHOMSMNUDJUUCITNGNRNWWUQFHSRRMVDNXFBPLKUXGUMFSZFPVOFNXZMCPXIIJMANLOQTTUUURVMJOUPIWRLKOOBKQYHMAXVGLUQHKIGNRHK | B79: 213 | C79: -118230.1457 | E79: 566 | F79: 2925 | G79: -4354.180071 | H79: 664 | I79: 542.829568 | K79: 2002 | L79: 0 | M79: 692 | N79: 0 | O79: 2828.177505 | AX79: -4530.965776 | AY79: LPQTFGYXSDRUEQTJLOXBDJEIDNQFSTAGKPILFWXKBGDUWXOMJJMDXYBOSJRROTRPDHIOQDKQUAEONPHRTMDICAHAUXRXVADKRLLXLLEYYWEHHCIYURRIKHXXFAHNAFNMOGFKEFKARUAINUKKWXUKXWQAEQUSBFMIALYTOLGKVCFYQPGUVMXWLVVAPTFDJRQOUHIMSSNUTJUUDINNGKRNOWURFGLRTSDCIXFHPLMUXUUMMSCGPYVGOQAAIPWUGJNANSOQQTUSTRQMJLUPOWRQKMOAKPXIHAXYGLNQFIIGLWYH
A80: LPCTFLYXXDRIEPGJLKSBMJEQDNNGSMALFOIWFWQKBPDUMJXVJJODXUBQXJRTITWPDVIOGEKVHHDPNVHQXMOTCAGAUTRXNACSRLJWLJEYLWONHCTYWKRIJHXOFAANANMMXGEAEFQARWAIIUKTWXNKXYQRIQUTBFZIACYTYLGSOCJYQPGUXMXIKVDAPUFQCRQXUHOMSMNUDJUUCITNGHRNWWUQFHSPRFVDNXEBPLKUXGUMFSZFPVOFNXZMKPXIIJMANLOQTTUUURDMJOUPIWRLKOOBKQYHMAXVGLUQGKIGNRHK | B80: 219 | C80: -117276.9535 | E80: 567 | F80: 2950 | G80: -4353.913061 | H80: 689 | I80: 543.0965781 | K80: 2102 | L80: 0 | M80: 692 | N80: 0 | O80: 2828.177505 | AX80: -4531.23926 | AY80: LPQTFGYXSDRUEQTJLOXBDJEIDNQFSTAGKPILFWXKBGDUWXOMJJMDXYBOSJRROTRPDHIOQDKQUAEONPHRTMDIDAHAUXRXVADKRLLXLLEYYWEHHCIYURRIMHXXFAHNABNMOGFKEFKARUAINUKKWXUKXWQAEQUSBFMIAHYTOLGKVCFYQPGUVMXWLVVAPTFDJRQOUHIMSSNUTJUVDINNGKRNOWURFGLRTSDCIXFHPLMUXUUMMSCGPYVGOQAAIPWTGJNANSOQQTUSTRQMJLUPOWRQKMOAKPXIHAXYGLNQFIIGLWYH
A81: LPCTFLYXXDRIEPGJLKSBMJEQDNNGSMALFOIWFWQKBPDUMJXVJJODXUBQMJRTITWPDVIOGEKVVHDPNVHQXMOTCAGAUTRXNACSRLJWLJEYLWONHCTYWKRIJHXOFAANANMMXGEAEFQARWAISUKTWXNKXYQRIQUTBFZIACYTYLGSFCJYQPGUXMXIKVDAPUFQCRQXUHOMSMNUDJUUCITNGHRNWWUQFHSRRMVDNXEPPLKUXGUMFSZFPVOFNXZMCPXNIJMANLOQTTUTURRMJOUPIWRLKOOBKQYHSAXVGLUQGKIGNRQK | B81: 225 | C81: -110294.389 | E81: 568 | F81: 2951 | G81: -4350.671681 | H81: 690 | I81: 546.3379575 | K81: 2202 | L81: 0 | M81: 692 | N81: 0 | O81: 2828.177505 | AX81: -4533.087852 | AY81: LPQTFGYXSDRUEQTJLOXBDJEIDNQFSTAGKOILFWXKBGDUWXOMJJMDXRBOSJRROTRPDHIOQDKQUAEONPHRTMDIDAHAUXRXVADKRLLXLLEYYWEHHCIYURRIKHXXFAHNAFNMOGFKEFKARUAINUKKWXUKXWQAEQUSBFMIAHYTOLGKVCFYQPGUVMXWLVVAPTFDJRQOUHIMSSNUTJUUDINNGKRNOWURFGLRTSDCIXFHPLMUXUUMMSCGPYVGOQAAIPWUGJNANSOQQTUSTRQMJLUPOWRQKMOAKPXIHAXYGLNQFIIGLWYM
A82: LPQTFLYXXDRIEPGJLKSBMJEQDNNGSMALFOIWFWQKBPDUMJXVJJODXUBQXJRTITWPDVIOGEKVHHDPNVHQXMOTCAGAUTRXNACSRLJWLJEYLWONHCTYWKRIJHXOFAANANMMOGEAEFQARWAISUKTWXNKXYQRIQUTBFZIACYTYLGSFCJYQPGUXMXIKVDAPUFPCRQXUHOMSMNUDJUUCITNGHRNWWUQFHSRRMVDNXFBPLKUXGUMFSCFPVOFNXZMCPXYIJMANLOQTTUUURRMJOUPIWRLKOOBKQYHMAXVGLUQGKIGNRHK | B82: 240 | C82: -108261.1092 | E82: 569 | F82: 2971 | G82: -4348.442589 | H82: 710 | I82: 548.5670498 | K82: 2302 | L82: 0 | M82: 692 | N82: 0 | O82: 2828.177505 | AX82: -4599.698237 | AY82: LPQTFGYXSDRUEQTJLOXBDJEIDNQFRTAGKOILFWXKBGDUWXOMJJMDXYBOSJRROTRPDHIOQDKQUAEONPHRTMDICAHAUXRXVADKRLLXLLEYYWEHHCIYURRIKHXXFAHNAFNMOGFKEFKARUAINUKKWXUKXWQAEQUSBFMIAHYTOLGKVCFYQPGUVMXWLVVAPTFDJRQOUHIMSSNUTJUUDINNGKRNOWURFGLRTSDCIXFHPLMUXUUMMSCAPYVGOQAAIPWUGJNANSOQQTUSTRQMJLUPOWRQKMOAKPXIHAXYGLNQFIIGLWYH
A83: LPQTFLYXXDRIEPGJLKSBMJEQDNNGSMALFOIWFWQKBPDUTJXVJJODXUBQXJRTOTWPDVIOGEKVHHDPNVHQXMOTCAGAUTRXNACSRLJWLJEYLWONPCDYWKRIJHXOFAANYNMMOGEAEFQARWAIIUKTWXNKXYQRIQUTBFZIACYTOLGSFCJYQPGUXMXIKVDAPUFPCRQXUHOMSMNUDJUUCITNGNRNWWUQFHSRRMVDNXFBPLKUXGUMFSCFPYOFNXZMCPXYIJMANLOQTTUTURMMJOUPKWRLKOOBKQYHMAXVGLUQGKIGNRHK | B83: 244 | C83: -106112.403 | E83: 570 | F83: 2972 | G83: -4348.442589 | H83: 711 | I83: 548.5670498 | K83: 2402 | L83: 0 | M83: 692 | N83: 0 | O83: 2828.177505 | AX83: -4610.001447 | AY83: LPQTFGYXSDRUEQTJLOXBDJEIDNQFSTAGKOILFWXKBGDUWXOMJJMDXYBOSJRROTRPDHIOQDKQUAEONPHRTMDICAHAUXRXVADKRLLXLLEYYWEHHCIYURRIKHXXFAHNAFNMOGFKEFKARUAINUKKWXUKXWQAEQUSBFMIAHYTOLGKVCFYQPGUVMXWLVVAPTFDJRQOUHIMSSNUTJUUDINNGKRNOWURFGLRTSDCIXFHPLMUXUUMMSCAPYVGOQAAIPWTGJNANSOQQTUSTRQMJLUPOWRQKMOAKPXIHAXYGLNQFIIGLWYH
A84: LPQSFLYXXDRIEPGJLKSBMJEQDNNGSMALFOIWFWQKBPDUMJXVJJODXUBQXJRTITWPDVIOGEKVVHDPNOHQXMOTCAGAUTRXNACSRLJWLJEYLWONHCTYWKRIJHXOFAANANMMOGEAEFQARWAISUKTWXNKXYQRIQUTBFZIACYTOLGSFCJYQPGUXMXIKVDAPUFQCRQXUHOMSMNUDJUUCITNGHRNWWUQFHSRRMVDNXEPPLKUXGUMFSCFPVOFNXZMCPXYIJMANLOQTTUUURRMJOUPIWRLKOOBKQYHSAXVGLUQGBIGNVHK | B84: 247 | C84: -104992.5984 | E84: 571 | F84: 2982 | G84: -4348.442589 | H84: 721 | I84: 548.5670498 | K84: 2502 | L84: 0 | M84: 692 | N84: 0 | O84: 2828.177505 | AX84: -4610.001447 | AY84: LPQTFGYXSDRUEQTJLOXBDJEIDNQFSTAGKOILFWXKBGDUWXOMJJMDXYBOSJRROTRPDHIOQDKQUAEONPHRTMDICAHAUXRXVADKRLLXLLEYYWEHHCIYURRIKHXXFAHNAFNMOGFKEFKARUAINUKKWXUKXWQAEQUSBFMIAHYTOLGKVCFYQPGUVMXWLVVAPTFDJRQOUHIMSSNUTJUUDINNGKRNOWURFGLRTSDCIXFHPLMUXUUMMSCAPYVGOQAAIPWTGJNANSOQQTUSTRQMJLUPOWRQKMOAKPXIHAXYGLNQFIIGLWYH
A85: LPCTFLYXZDRIEPGJLKSBMJEQDNNGSMALFOIWFWQKBPDUMJXVJJODXUBQXJRTITWPDVIOGEKVVHDPNVHQXMOTCAGAUTRXNACKRLJWLJEYLWONHCTYWKRIJHXOFAANANMMOGEAEFQARWAIIUKTWXNKXYQRIQUTBFZIACYTOLGSFCJYQPGUXMXIKVDAPUFPCRQXUHOMSMNUDJUUCITNGHRNWWUQFHJRRMVDNXFBPLKUXGUMFSCFPYOFNXZMCPXYIJMANLOQTTUUURRMJOUPKWRLKOOBKQYHSAXVGLUQGKIGNRHK | B85: 250 | C85: -104704.1601 | E85: 572 | F85: 2995 | G85: -4348.442589 | H85: 734 | I85: 548.5670498 | K85: 2602 | L85: 0 | M85: 692 | N85: 0 | O85: 2828.177505 | AX85: -4696.002636 | AY85: LPQTFGYXSDRUEQTJLOXBDJEIDNQFSTAGKOILFWXKBGDUWXOMJJGDXYBOSJRROTRPDHIOQDKQUAEONPHRTMDIDAHAUXRXVADKRLLXLLEYYWEHHCIYURRIKHXXFAHNAFNMOGFKEFKARUAINUKKWXUKXWQAEQUSBFMIAHYTOLGKVCFYQPGUVMXWLVVAPTFDJRQOUHIMSSNUTJUUDINNGKRNOWURFGLRTSDCIXFHPLMUXUUMLSCGPYVGOQAAIPWTGJNANSOQQTUSTRQMJLUPOWRQKMOAKPXIHAXYGLNQFIIGLWYM
A86: LPQTFLYXXDRIEPGJLKSBMJEQDNNGSMALFOIWFWQKBPDUTJXVJJODXUBQXJRTOTWPDVIOGEKVHHDPNVHQXMOTCAGAUTRXNACSRLJWLJEYLWONHCTYWKRIJHXOFAANANMMOGEAEFQARWAISUKTWXNKXYQRIQUTBFZIACYTYLGSFCJYQPGUXMXIKVDAPUFQWRQXUHOMSMNUDJUUCITNGHRNWWUQFHSRRMVDNXFBPLKUXGUMFSCFPYOFNXZMCPXYIJMANLOQTTUTURMMJOUPIWRLKOOBKQYHSAXVGLUQGKIGNRHK | B86: 256 | C86: -100033.9066 | E86: 573 | F86: 3059 | G86: -4348.442589 | H86: 798 | I86: 548.5670498 | K86: 2702 | L86: 0 | M86: 692 | N86: 0 | O86: 2828.177505 | AX86: -4720.525427 | AY86: LPQTFJYXSDRUEQTJLOXBDJEIDNQFSTAGKPILFWXKBGDUWXOMJJMDXYBOSJRROTRPDHIOQDKQUAEONPHRTMDOCAHAUXRXVADKRLLXLLEYYWEHHCIYURRIKHXXFAHNAFNMOGFKEFKARUAHNUKKWXUKXWQAEQUSBFMIAHYTOLGKVCFYQPGUVMXWLVVAPTFDJRQOUHIMSSNUTJUUDINNGKRNOWURFGLRTSDCIXFHPLMUXUUMMSCGPYVGOQAAIPWTGJNANSOQQTUSTRQMJLUPOWRQKMOAKPXIHAXYGLNQFIIGLWYM
A87: LPQTFNYXXDRIEPGJLKSBMJEQDNNGSMALFOIWFWQKBPDUTJXVJJODXUBQXJRTOTWPDVIOGEKVVHDPNVHQXMOTCAGAUTRXNACSRLJWLJEYLWONHCTYWKRIJHXOFAANANMMOGEAEFQARWAISUKTWXNKXYQRIQUTBFZIACYTYLGSFCJYQPGUXMXIKVDAPUFQWRQXUHOMSMNUDJUUCITNGHRNWWUQFHSRRMVDNXFBPLKUXGUMFSCFPYOFNXZMCPXYIJMANLOQTTUTURRMJOUPIWRLKOOBKQYHSAXVGLUQGBIGNRHK | B87: 260 | C87: -97029.56489 | E87: 574 | F87: 3060 | G87: -4348.442589 | H87: 799 | I87: 548.5670498 | K87: 2802 | L87: 0 | M87: 692 | N87: 0 | O87: 2828.177505 | AX87: -4724.630857 | AY87: LPQTFGYXSDRUEQTJLAXBDJEIDNQFSTAGKOILFWXKBGDUWXOMJJMDXYBOSJRROTRPDHIOQDKQUAEONPHRTMDIDAHAUXRXVADKRLLXLLEYYWEHHCIYURRIKHXXFAHNAFNMOGFKEFKARUAHNUKKWXUKXWQAEQUSBFMIAHYTOLGKVCFYQPGUVMXWLVVAPTFDJRQOUHIMSSNUTJUUDINNGKRNOWURFGLRTSDCIXFHPLMUXUUMMSCGPYVGOQAAIPWUGJNANSOQQTUSTRQMJLUPOWRQKMOAKPXIHAXYGLNQFIIGLWYH
A88: LPCTFNYXZDRIEPGJLKSBMJEQDNNGSMALFOIWFWQKBPDUTJXVJJODXUBQXJRTOTWPDVIOGEKVVHDPNVHQXMOTCAGAUTRXNACKRLJWLJEYLWONHCTYWKRIJHXOFAANANMMOGEAEFQARWAISUKTWXNKXYQRIQUTBFZIACYTOLGSFCJYQPGUXMXIKVDAPUFQWRQXUHOMSMNUDJUUCITNGHRNWWUQFHJRRMVDNXFBPLKUXGUMFSCFPYOFNXZMCPXYIJMANLOQTTUUURRMJOUPKWRLKOOBKQYHSAXVGLUQGBIGNRHK | B88: 262 | C88: -96156.2881 | E88: 575 | F88: 3073 | G88: -4348.442589 | H88: 812 | I88: 548.5670498 | K88: 2902 | L88: 0 | M88: 692 | N88: 0 | O88: 2828.177505 | AX88: -4729.063279 | AY88: LPQTFGYXSDRUEQTJLOXBDJEIDNQFSTAGKOILFWXKBGDUWXOMJJGDXYBOSJRROTRPDHIOQDKQUAEONPHRTMDIDAHAUXRXVADKRLLXLLEYYWEHHCIYURRIIHXXFAHNAFNMOGFKEFKARUAINUKKWXUKXWQAEQUSBFMIAHYTOLGKVCFYQPGUVMXWLVVAPTFDJRQOUHIMSSNUTJUUDINNGKRNOWURFGLRTSDCIXFHPLMUXUUMLSCGPYVGOQAAIPWTGJNANSOQQTUSTRQMJLUPOWRQKMOAKPXIHAXYGLNQFIIGLWYM
A89: LPQTFNYXXDRIEPGJLKSBMJEQDNNGSMALSOIWFWQKBPDUMJXVJJODXUBQXJRTOTWPDVIOGEKVVHDPNVHQXMOTCAGAUTRXNACKRLJWLJEYLWONHCTYWKRIJHXOFAANANMMOGEAEFQARWAIIUKTWXNKXYQRIQUTBFZIACYTYLGSFCJYQPGUXMXIKVDAPUFQWRQXUHOMSMNUDJUUCITNGJRNWWUQFHJRRMVDNXEPPLKUXGUMFSCFPVOFNXZMCPXNIJMANLOQTTUTURRMJRUPIWRLKOOBKQYHSAXVGLUQGBIGNRHK | B89: 267 | C89: -95800.79598 | E89: 576 | F89: 3177 | G89: -4331.005015 | H89: 916 | I89: 566.0046241 | K89: 3002 | L89: 0 | M89: 692 | N89: 0 | O89: 2828.177505 | AX89: -4729.063279 | AY89: LPQTFGYXSDRUEQTJLOXBDJEIDNQFSTAGKOILFWXKBGDUWXOMJJGDXYBOSJRROTRPDHIOQDKQUAEONPHRTMDICAHAUXRXVADKRLLXLLEYYWEHHCIYURRIIHXXFAHNAFNMOGFKEFKARUAINUKKWXUKXWQAEQUSBFMIAHYTOLGKVCFYQPGUVMXWLVVAPTFDJRQOUHIMSSNUTJUUDINNGKRNOWURFGLRTSDCIXFHPLMUXUUMLSCGPYVGOQAAIPWTGJNANSOQQTUSTRQMJLUPOWRQKMOAKPXIHAXYGLNQFIIGLWYH
A90: LPQTFNYXXDRIEPGJLKSBMJEQDNNGSMALFOIWFWQKBPDUMJXVJJODXUBQXJRPOTWPDVIOGEKVVHDPNVHQXMOTCAGAUTRXNACKRLJWLJEYLWONHCTYWKRIJHXOFAANANMMOGEAEFQARWAIIUKTWXNKXYQRIQUTBFZIACYTYLGSFCJYQPGUXMXIKVDAPUFQWRQXUHOMSMNUDJUUCITNGJRNKWUQFHSRRMVDNXEPPLKUXGUMFSCFPVOFNXZMCPXYIJMANLOQTTUTURMMJOUPIWRLKOOBKQYHSAXVGLUQGKIGNRHK | B90: 268 | C90: -94739.94091 | E90: 577 | F90: 3204 | G90: -4326.892054 | H90: 943 | I90: 570.1175849 | K90: 3102 | L90: 0 | M90: 692 | N90: 0 | O90: 2828.177505
A91: LPQTFLYXZDRIEPGJLKSBMJEQDNNGSMALFOIWFWQKBPDUMJXVJJODXUBQXJRTOTWPDVIOGEKVVHDPNVHQXMOTCAGAUTRXNACKRLJXLJEYLWONHCTYWKRIJHXOFAANANMMOGEAEFQARWAISUKTWXNKXYQRIQUTBFZIACYTOLGSFCJYQPGUXMXIKVDAPUFQWRQXUHOMSMNUDJUUCITNGHRNWWUQFHSRRMVDNXFBPLKUXNUMFSCFPYOFNXZMCPXIIJMANLOQTTUTURVMJOUPIWRLKOOBKQYHSAXVGLUQGBIGNRHK | B91: 271 | C91: -94670.47231 | E91: 578 | F91: 3210 | G91: -4326.892054 | H91: 949 | I91: 570.1175849 | K91: 3202 | L91: =INDEX(B:B,K91) -> 0 | M91: 692 | N91: =INDEX(C:C,K91) -> 0 | O91: 2828.177505
A92: LPCTFNYXZDRIEPGJLKSBMJEQDNNGSMALFOIWFWQKBPDUTJXVJJODXUBQXJRTOTWPDVIOGEKVVHDPNVHQXMOTCAGAUTRXNACKRLJWLJEYLWONHCTYWKRIJHXOFAANANMMOGEAEFQARWAISUKTWXNKXYQAIQUTBFZIACYTOLGSFCJYQPGUXMXOKVDAPUFQWRQXUHOMSMNUDJUUCITNGHRNWWUQFHJRRMVDNXFBPLKUXGUMFSCFPYOFNXZMCPXYIJMANLOQTTUUURRMJOUPKWRLKOOBKQYHSAXVGLUQGBIGNRHK | B92: 273 | C92: -90772.14587 | E92: 579 | F92: 3213 | G92: -4320.701804 | H92: 952 | I92: 576.3078346 | K92: 3302 | L92: 0 | M92: 692 | N92: 0 | O92: 2828.177505
A93: LPQTFLYXZDRIEPGJLKSBMJEQDNNGSMALFOIWFWQKBPDUTJXVJJODXUBQXJRTOTWPDVIOGEKVVHDPNVHQXMOTCAGAUTRXNACKRLJWLJEYLWONHCTYWKRIJHXOFAANANMMOGEAEFQARWAIIUKTWXNKXYQAIQUTBFZIACYTOLGSFCJYQPGUXMXOKVDAPUFQWRQXUHOMSMNUDJUUCITNGHRNWWUQFHJRRMVDNXEPPLKUXGUMFSCFPYOFNXZMCPXIIJMANLOQTTUUURRMJOUPIWRLKOOBKQYHSAXVGLUQGBIGNRHK | B93: 274 | C93: -90757.95814 | E93: 580 | F93: 3219 | G93: -4320.701804 | H93: 958 | I93: 576.3078346 | K93: 3402 | L93: 0 | M93: 692 | N93: 0 | O93: 2828.177505
A94: LPQTFNYXZDRIEPGJLKSBMJEQDNNGSMALFOIWFWQKBPDUTJXVJJODXUBQXJRTOTWPDVIOGEKVVHDPNVHQXMOTCAGAUTRXNACKRLJWLJEYLWONHCTYWKRIJHXOFAANANMMOGEAEFQARWAIIUKTWXNKXYQAIQUTBFZIACYTOLGSFCJYQPGUXMXOKVDAPUFQWRQXUHOMSMNUDJUUCITNGJRNWWUQFHSRRMVDNXEPPLKUXGUMFSCFPYOFNXZMCPXYIJMANLOQTTUTURRMJOUPKWRLKOOBKQYHSAXVGLUQGBIGNRHK | B94: 279 | C94: -89547.26532 | E94: 581 | F94: 3222 | G94: -4316.588843 | H94: 961 | I94: 580.4207953 | K94: 3502 | L94: 0 | M94: 692 | N94: 0 | O94: 2828.177505
A95: LPQTFNYXXDRIEPGJLKSBMJEQDNNGSMALOOIWFWQKBPDUTJXVJJODXUBQXJRTOTWPDVIOGEKVVHDPNVHQXMETCAGAUTRXNACKRLJXLJEYLWONHCTYWKRIJHXOFAANANMMOGEAEFQARWAIIUKTWXNKXYQRIQUTBFZIACYTYLGSFCJYQPGUXMXIKVDAPUFQWRQXUHOMSMNUDJUUCITNGHRNWWUQFHSRRMVDNXEPPLKUXGUMFSCFPYOFNVZMCPXYIJMANLOQTTUTURMMJOUPIWRLKOOBKQYHSAXVGLUQGKIGNRHK | B95: 280 | C95: -88638.47944 | E95: 582 | F95: 3223 | G95: -4348.442589 | H95: 962 | I95: 548.5670498 | K95: 3602 | L95: 0 | M95: 692 | N95: 0 | O95: 2828.177505
A96: LPQTFLYXXDRZEPGJLKSBMJEQDNNGSMALFOIWFXQKBPDUTJXVJJODXUBQXJRPOTWPDVIOGEKVVHDPNVHQXMOTCAGAUTRXNACKRLJWLJEYLWONHCTYWKRIJHXOFAANANMMOMEAEFQARWAISUKTWXNKXYQAIQUTBFZIACYTYLGSFCJYQPGUXMXIKVDAPUFQWRQXUHOMSMNUDJUUCITNGJRNWWUQFHJRRMVDNXEPPLKUXGUMFSCFPYOFNXZMCPXYIJMANLOQTTUTURRMJOUPIWRLKOOBKQYHSAXVGLUQGBIGNRHK | B96: 281 | C96: -87506.16706 | E96: 583 | F96: 3228 | G96: -4348.442589 | H96: 967 | I96: 548.5670498 | K96: 3702 | L96: 0 | M96: 692 | N96: 0 | O96: 2828.177505
A97: LPQTFLYXZDRIEPGJLKSBMJEQDNNGSMALFOIWFWQKBPDUTJXVJJODXUBQXJRTOTWPDVIOGEKVVHDPNVHQXMOTCAGAUTRXNACSRLJXLJEYLWONHCTYWKRIJHXOFAANANMMOGEAEFQARWAISUKTWXNKXYQAIQUTBFZIACYTYLGSFCJYQPGUXMXOKVDAPUFQWRQXUHOMSMNUDJUUCITNGHRNWWUQFHSRRMVDNXEPPLKUXNUMFSCFPYOFNXZMCPXYIJMANLOQTTUUURVMJOUPIWRLKOOBKQYHSAXVGLUQGKIGNRHK | B97: 285 | C97: -86510.84667 | E97: 584 | F97: 3229 | G97: -4348.442589 | H97: 968 | I97: 548.5670498 | K97: 3802 | L97: 0 | M97: 692 | N97: 0 | O97: 2828.177505
A98: LPQTFLYXXDRIEPGJLKSBMJEQDNNGSMALOOIWFWQKBPDUTJXVJJODXUBQXJRTOTWPDVIOQEKVVHDPNVHQXMETCAGAUTRXNACKRLJXLJEYLWONHCTYWKRIJHXOFAANANMMOGEAEFQARWAISUKTWXNKXYQAIQUTBFZIACYTOLGSFCJYQPGUXMXIKVDAPUFQWRQXUHOMSMNUDJUUCITNGHRNKWUQFHSRRMVDNXEPPLKUXGUMFSCFPYOFNXZMCPXYIJMANLOQTTUUURVMJOUPKWRLKOOBKQYHSAXVGLUQGKIGNRHK | B98: 289 | C98: -83122.97692 | E98: 585 | F98: 3241 | G98: -4348.442589 | H98: 980 | I98: 548.5670498 | K98: 3902 | L98: 0 | M98: 692 | N98: 0 | O98: 2828.177505
A99: LPQTFLYXXDRIEPGJLKSBMJEQDNNGSMALOOIWFWQKBPDUTJXVJJODXUBQXJRTOTWPDVIOQEKVVHDPNVHQXMETCAGAUTRXNACKRLJXLJEYLWONHCTYWKRIJHXOFAANANMMOGEAEFQARWAIIUKTWXNKXYQAIQUTBFZIACYTOLGSFCJYQPGUXMXIKVDAPUFQWRQXUHOMSMNUDJUUCITNGHRNWWUQFHSRRMVDNXEPPLKUXNUMFSCFPYOFNXZMCPXYIJJANLOQTTUUURVMJOUPKWRLKOOBKQYHSAXVGLUQGKIGNRHK | B99: 297 | C99: -82485.46351 | E99: 586 | F99: 3243 | G99: -4348.442589 | H99: 982 | I99: 548.5670498 | K99: 4002 | L99: 0 | M99: 692 | N99: 0 | O99: 2828.177505
A100: LPQTFLYXXDRIEPGJLKSBMJEQDNNGSMALOOIWFWQKBPDUTJXVJJODXUBQXJRTOTWPDVIOQEKVVHDPNVHQXMETCAGAUTRXNACKRLJXLJEYLWONHCTYWKRIJHXOFAANANMMOGEAEFQARWAIIUKTWXNKXYQAIQUTBFZIACYTOLGSFCJYQPGUXMXIKVDAPUFQWRQXUHOMSMNUDJUUCITNGHRNWWUQFHSRRMVDNXEPPLKUXNUMMSCFPYOFNXZMCPXYIJJANLOQTTUUURVMJOUPKWRLKOOBKQYHSAXVGLUQGKIGNRHK | B100: 301 | C100: -82041.21738 | E100: 587 | F100: 3257 | G100: -4348.442589 | H100: 996 | I100: 548.5670498 | K100: 4102 | L100: 0 | M100: 692 | N100: 0 | O100: 2828.177505
A101: LPQTFNYXXDRIEPGJLKSBMJEQDNNGSMALOOIWFWQKBPDUTJXVJJODXUBQXJRTOTWPDVIOQEKVVHDPNVHQXMDTCAGAUTRXNACKRLJXLJEYLWONHCTYWKRIJHXOFAANANMMOGEAEFQARWAISUKTWXNKXYQAIQUTBFZIACYTOLGSFCJYQPGUXMXIKVDAPUFQWRQXUHOMSMNUDJUUCITNGHRNKWUQFHSRRMVDNXEPPLKUXGUMFSCFPYOFNXZMCPXYIJMANLOQTTUTURMMJOUPKWRLKOOBKQYHSAXVGLUQGKIGNRHK | B101: 303 | C101: -81208.14645 | E101: 588 | F101: 3260 | G101: -4347.903944 | H101: 999 | I101: 549.1056943 | K101: 4202 | L101: 0 | M101: 692 | N101: 0 | O101: 2828.177505
A102: LPQTFNYXXDRIEPGJLKSBMJEQDNNGSMALFOIWFWQKBPDUTJXVJJODXUBQXJRTOTWPDVIOQEKVVHDPNVHQXMETCAGAUTRXNACKRLJXLJEYLWONHCTYWKRIJHXOFAANANMMOGELEFQARWAIIUKTWXNKXYQAIQUTBFHIACYTOLGSFCJYQPGUXMXIKVDAPUFQWRQXUHOMSMNUDJUUCITNGHRNKWUQFHSRRMVDNXEPPLKUXNUMFSCFPYOFNXZMCPXYIJMANLOQTTUUURMMJOUPKWRLKOOBKQYHSAXVGLUQGKIGNRHK | B102: 307 | C102: -80251.80292 | K102: 4302 | L102: 0 | M102: 692 | N102: 0 | O102: 2828.177505
A103: LPQTFNYXXDROEPGJLKSBMJEQDNNGSMALFOIWFWQKBPDUTJXVJJODXUBQXJRTOTWPDVIOQEKVVHDPNVHQXMETCAGAUTRXNACKRLJXLJEYLWONHCTYWKRIJHXOFAANANMMOGELEFQARWAIIUKTWXNKXYQAIQUTBFHIACYTOLGSFCJYQPGUXMXIKVDAPUFQWRQXUHOMSMNUDJUUCITNGHRNKWUQFHSRRMVDNXEPPLKUXNUMFSCFPYOFNXZMCPXYIJMANLOQTTUUURMMJOUPKWRLKOOBKQYHSAXVGLUQGKIGNRHK | B103: 309 | C103: -79824.05659 | K103: 4402 | L103: 0 | M103: 692 | N103: 0 | O103: 2828.177505
A104: LPQTFLYXXDRIEPGJLKSBMJEQDNNGSMALSOIWFWQKBPDUTJXVJJODXUBQXJRTOTWPDDIOQEKVVHDPNVHQXMETCAGAUTRXNACKRLJXLJEYLWONHCTYWKRIJHXOFAANANMMOGEAEFQARWAIIUKMWXNKXYQAIQUTBFZIACYTOLGSFCJYQPGUXMXIKVDAPUFQWRQXUHOMSMNUSJUUCITNGHRNKWUQFHSRRMVDNXEPPLKUXNUMFSCFPYOFNXZMCPXYIJMANLOQTTUTURVMJOUPIWRLKOOBKQYHSAXVGLUQGDIGNRHK | B104: 310 | C104: -77880.54807 | K104: 4502 | L104: 0 | M104: 692 | N104: 0 | O104: 2828.177505
A105: LPQTFLYXXDRIEPGJLKSBMJEQDNNGSMALOOIWFWQKBPDUTJXVJJODXUBQXJRTOTWPDDIOQEKVVHDPNVHQXMETCAGAUTRXNACKRLJXLJEYLWONHCTYWKRIJHXOFAANANMMOGEAEFQARWAIIUKMWXNKXYQAAQUTBFZIACYTOLGSFCJYQPGUXMXIKVDAPUFQWRQXUHOMSMNUSJUUCITNGHRNKWUQFHSRRMVDNXEPPLKUXNUMFSCFPYOFNXZMCPXYIJMANLOQTTUTURVMJOUPKWRLKOOBKQYHSAXVGLUQGKIGNVHK | B105: 315 | C105: -77496.20469 | K105: 4602 | L105: 0 | M105: 692 | N105: 0 | O105: 2828.177505
A106: LPQTFLYXXDRIEPGJLKTBMJEQDNNGSMALSOIWFWQKBPDUTJXVJJODXUBQXJRVOTWPDDIOQEKVVHDPNVHQXMETCAGAUTRXNACKRLJXLJEYLWONHCTYWKRIJHXOFAANANMMOGELEFQARWAIIUKMWXNKXYQAIQUTBFZIACYTOLGSFCJYQPGUXMXIKVDAPUFQWRQXUHOMSMNUSJUUCITNGHRNKWUQFHSRRMVDNXEPPLKUXNUMFSCFPYOFNXZMCPWYIJMANLOQTTUUURMMJOUPIWRLKOOBKQYHSAXVGLUQGKIGNRHK | B106: 317 | C106: -76570.30548 | K106: 4702 | L106: 0 | M106: 692 | N106: 0 | O106: 2828.177505
A107: LPQTFNYXXDRIEPGJLKSBMJEQDNNGSMALOOIWFWQKBPDUTJXVJJODXUBQXJRTOTWPDDIOQEKVVHDPNVHQXMETCAGAUTRXNACKRLJXLJEYLWONHCTYWKRIJHXOFAANANMMOGEAEFQARWAIIUKTWXNKXYQAAQUTBFHIACYTOLGSFCJYQPGUXMXIKVDAPUFQWRQXUHOMSMNUSJUUCITNGHRNKWUQFHSRRMVDNXEPPLKUXNUMFSCFPYOFNXZMCPXYIJMANLOQTTUTURVMJOUPKWRLKOOBKQYHSAXVGLUQGKIGNRHK | B107: 318 | C107: -76437.53816 | K107: 4802 | L107: 0 | M107: 692 | N107: 0 | O107: 2828.177505
A108: LPQTFNYXXDRIEPGJLKSBMJEQDNNGSMALOOIWFWQKBPDUTJXVJJODXUBQXJRTOTWPDVIOQEKVVHDPNVHQXMDTCAGAUTRXNACKRLJXLJEYLWONHCTYWKRIJHXOFAANANMMOGEAEFQARWAIIUKMWXNKXYQAIQUTBFHIACYTOLGSFCJYQPGUXMXIKVDAPUFQWRQXUHOMSMNUSJUUCITNGHRNKWUQFHSRRMVDNXEPPLKUXNUMMSCFPYOFNXZMCPXYIJMANLOQTTUTURVMJOUPKWRLKOOBKQYHSAXVGLUQGKIGNRHK | B108: 322 | C108: -75208.40831 | K108: 4902 | L108: 0 | M108: 692 | N108: 0 | O108: 2828.177505
A109: LPQTFLYXXDRIEPGJLKTBMJEQDNNGSMALOOIWFWQKBPDUTJXVJJODXUBQXJRTOTWPDDIOQEKVVHDPNVHQXMETCAGAUTRXNACKRLJXLJEYLWONHCTYWKRIJHXOFAANANMMOGELEFQARWAIIUKMWXNKXYQAIQUTBFHIACYTOLGSFCJYQPGUXMXIKVDAPUFQWRQXUHOMSMNUSJUUCITNGHRNKWUQFHSRRMVDNXEPPLKUXNUMFSCFPYOFNXZMCPXYIJMANLOQTTUTURVMJOUPKWRLKOOBKQYHSAXVGLUQGKIGNRHK | B109: 346 | C109: -74544.16742 | K109: 5002 | L109: 0 | M109: 692 | N109: 0 | O109: 2828.177505
A110: LPQTFLYXXDRIEPGJLKSBMJEQDNNGSMALSOIWFWQKBPDUTJXVJJODXUBQXJRVOTWPDDIOQEKVVHDPNVHQXMDTCAGAUTRXNACKRLJXLJEYLWONHCTYWKRIJHXOFAANANMMOGELEFQARWAIIUKMWXNKJYQAIQUTBFHIACYTOLGSFCJYQPGUXMXIKVDAPUFQWRQXUHOMSFNUSJUOCITNGHRNKWUQFHSRRMVDNXEPPLKUXYUMMSCFPYOFNXZMCPWYIJMANLOQTTUTURVMJOUPKWRLKOOBKQYHSAXVGLUQFDIGNRHK | B110: 348 | C110: -73713.25638 | K110: 5102 | L110: 0 | M110: 692 | N110: 0 | O110: 2828.177505
A111: LPQTFNYXXDRIEPGJLKTBMJEQDNNGSMALSOIWFWQKBPDUTJXVJJODXUBQXJRTOTWPDDIOQEKVVHDPNVHQXMDTCAGAUTRXNACKRLJXLJEYLWONHCTYWKRIJHXOFAANANMMOGELEFQARWAIIUKMWXNKXYQAIQUTBFHIACYTOLGSFCJYQPGUXMXIKVDAPUFQWRQXUHOMSMNUSJUUCITNGHRNKWUQFHSRRMVDNXEPPLKUXNUMMSCFPYOFNXZMCPXYIJMANLOQTTUUURVMJOUPKWRLKOOBKQYHSAXVGLUQGKIGNVHK | B111: 349 | C111: -72300.3524 | K111: 5202 | L111: 0 | M111: 692 | N111: 0 | O111: 2828.177505
A112: LPQTFLYXXDRIEPGJLKTBMJEQDNNGSMALSOIWFWQKBPDUTJXVJJODXUBQXJRVOTWPDDIOQEKVVHDPNVHQXMDTCAGAUTRXNACKRLJXLJEYLWONHCTYWKRIJHXOFAMNANMMOGELEFQARWAIIUKMWXNKXYQAIQUTBFHIACYTOLGSFCJYQPGUXMXIKVDAPUFQWRQXUHOMSMNUSJUUCITNGHRNKWUQFHSRRMVDNXEPPLKUXNUMMSCFPYOFNSZMCPWYIJMANLOQTTUUURVMJOUPBWRLKMOBKQYHSAXVGLUQFDIGNRHK | B112: 359 | C112: -72255.26666 | K112: 5302 | L112: 0 | M112: 692 | N112: 0 | O112: 2828.177505
A113: LPQTFNYXXDRIEPGJLKTBMJEQDNNGSMALSOIWFWQKBPDUTJXVJJWDXUBQXJRTOTWPDDIOQEKVVHDPNVHQXMDTCAGAUTRXNACKRLJXLJEYLWONHCTYWKRIJHXOFAANANMMOGELEFQARWAIIUKMWXNKXYQAIQUTBFHIACYTOLGSFCJYQPGUXMXMKVDAPUFQWRQXUHOMSMNUSJUUCITNGHRNKWUQFHSRRMVDNXEPPLKUXNUMFSCFPYOFNXZMCPWYIJMANLOQTTUUURVMJOUPIWRLKOOBKQYHSAXVGLUQFDIGNRHK | B113: 364 | C113: -71656.10944 | K113: 5402 | L113: 0 | M113: 692 | N113: 0 | O113: 2828.177505
A114: LPQTFLYXXDRIEPGJLKTBMJEQDNNGSMALOOIWFWQKBPDUTJXVJJODXUBQXJRTOTWPDDIOQEKVVHDPNVHQXMDTCAGAUTRXNACKRLJXLJEYLWONHCTYWKRIJHXOFAMNANMMOGELEFQARWAIIUKMWXNKXYQAIQUTBFHIACYTOLGSFCJYQPGUXMXIKVDAPUFQWRQXUHOMSMNUSJUUCITNGHRNKWUQFHSRRMVDNXEPPLKUXNUMMSCFPYOFNSZMCPWYIJMANLOQTTUTURVMJOUPKWRLKMOBKQYHSAXVGLUQFDIGNRHK | B114: 367 | C114: -70933.3499
A115: LPQTFLYXXDRIEPGJLKTBMJEQDNNGSMALOOIWFWQKBPDUTJXVJJODXUBQXJRTOTWPDCIOQEKVVHDPNVHQXMDTCAGAUTRXNACKRLJXLJEYLWONHCTYWKRIJHXOFAMNAEMMOGELEFQARWAIIUKMWXNKXYQAIQUTBFHIACYTOLGSFCJYQPGUXMXIKVDAPUFQWRQXUHOMSMNUSJUOCITNGHRNKWUQFHSRRMVDNXEPPLKUXNUMMSCFPYOFNSZMCPWYIJMANLOQTTUTURVMJOUPKWRLKMOBKQYHSAXVGLUQFDIGNRHK | B115: 369 | C115: -70784.48268
A116: LPQTFLYXXDRIEPGJLKTBMJEQDNNGSMALOOIWFWQKBPDUTJXVJJODXUBQXJRTOTWPDDIOQEKVVHDPNVHQXMDTCAFAUTRXNACKRLJXLJEYLWONHCTYWKRIJHXOFAMNANMMOGELEFQARWAIIUKMWXNKXYQAIQUTBFHIACYTOLGSFCJYQPGUXMXIKVPAPUFQWRQXUHOMSMNUSJUUCITNGHRNKWUQFHSRRMVDNXEPPLKUXNUMMSCFPYOFNSZMPPWYIJMANLOQTTUTURVMJOUPKWRLKOQBKQYHSAXVGLUQGKIGNRHK | B116: 384 | C116: -70405.33589
A117: LPQTFNYXXDRIEPGJLKTBMJEQDNNGSMALOOIWFWQKBPDUTJXVJJODXUBQXJRTOTWPDDIOQEKVVHDPNVHQXMDTCAGAUTRXNACKRLJXLJEYLWONHCTYWKRIJHXOFAMNANMMOGELEFQARWAIIUKMWXNKXYQAIQUTBFHIACYTOLGSFCJYQPGUXMXIKVPAPUFQWRQXUHOMSMNUSJUUCITNGHRNKWUQFHSRRMVDNXEPPLKUXNUMMSCFPYOFNSZMPPWYIJMANLOQTTUTURVMJUUPKWRLKOQBKQYHSAXVGLUQFDIGNRHK | B117: 387 | C117: -70064.73013
A118: LPQTFLYXXDRIEPGJLKTBMJEQDNNGSMALOOIWFWQKBPDUTJXVJJODXUBQXJRTOTWPDDIOQEKVVHDPNVHQXMDTCAFAUTRXNACARLJXLJEYLWONHCTYWKRIJHXOFAMNANMMOGELEFQARWAIIUKMWXNKXYQAIQUTBFHIACYTOLGSFCJYQPGUXMXIKVRAPUFQWRQXUHOMSMNUSJUUCITNGHRNKWUQFHSRRMVDNXEPPLKUXNUMMSCPPYOFNXZMCPWYGJMANSOQTTUTURVMJOUPKWRLKMOBKQYHSAXVGLUQGKIGNRHK | B118: 389 | C118: -67956.00839
A119: LPQTFLYXXDRIEPGJLKTBMJEQDNNGSMALOOIWFWQKBPDUTJXVJJODXUBQXJRFOTWPDDIOQEKVVHDPNVHQXMDTCAFAUTRXYACARLJXLJEYLWONHCTYWKRIJHXOFAANAEMMOGELEFQARWAIIUKMWXNKXYQAIQUTBFHIACYTOLGSECJYQPGUXMXIKVDAPUFQWRQXUHOMSMNUSJUOCITNGHRNKWUKFHSRRMVDNXEPPLKUXNUMMSCFPYOFNXZMCPWYGJMANSOQTTUTURVMJOUPKWRLKMOBKQYHSAXVGLUQGKIGNRHK | B119: 394 | C119: -66194.30985
A120: LPQTFLYXXDRIEPGJLKTBMJEQDNNGSMALOOIWFWQKBPDUTJXVJJODXUBQXJRTOTWPDDIOQEKVVHDPNVHQXMDTCAGAUTRXNACKRLJXLJEYLWONHCTYWKRIJHXOFAANAEMMOGELEFQARWAIIUKMWXNKXYQAIQUTBFHIACYTOLGSFCJYQPGUXMXIKVRAPUFQWRQXUHOMSMNUSJUOCITNGHRNKWUQFHSRRMVDNXEPPLKUXNUMMSCFPYOFNSZMCPWYGJMANSOQTTUUURVMJOUPKWRLKMOBKQYHSAXVGLUQFDIGNRHK | B120: 399 | C120: -64972.90601
A121: LPQTFLYXXDRIEPGJLKBBMJEQDNNGSMALSOIWFWQKBPDUTJXVJJODXUBQXJRTOTWPDCIOQEKVVHDPNVHQXMDTCAFAUTRXNACARLTXLJEYLWOXHCTYWKRIJHXOFAFNAEMMOGELEFQARWAIIUKMWXNKXYQAIQUTBFHIACYTOLGSFCJYQPGUXMXIKVRAPUFQWRQXUHOMSMNUSJUUCITNGHRNKWUQFHSRRMVDNXEPPLKUXNUMMSCFPYOFNXZMCPXYGJMANLOQTTUTURVMJOUPKWRLKOQBKQYHSAXVGLUQFDIGNRHK | B121: 401 | C121: -64972.64875
A122: LPQTFLYXXDRIEPGJLKTBMJEQDNNGSMALOOIWFWQKBPDUTJXVJJODXUBQXJRTOTWPDDIOQEKVVHDPNVHQXMDTCAGAUTRXNACKRLJXLJEYLWONHCTYWKRIJHXOFAANANMMOGELEFQARWAIIUKMWXNKXYQAIQUTBFHIACYTOLGSECJYQPGUXMXIKVDAPUFQWRQXUHOMSMNUSJUUCITNGHRNKWUQFHSRRMVDNXEPPLKUXNUMMSCFPYOFNXZMCPWQGJMANLOQTTUTURVMJUUPKWRLKOQBKQYHSAXVGLUQFDIGNRHK | B122: 403 | C122: -64237.3668
A123: LPQTFNYXXDRIEPGJLKTBMJEQDNNGSMALOOIWFWQKBPDUTJXVJJODXUBQXJRTOTWPDDIOQEKVVHDPNVHQXMDTCAGAUTRXNACKRLJXLJEYLWONHCTYWKRIJHXOFAMNAEMMOGELEFQARWAIIUKEWXNKXYQAIQUTBFHIACYTOLGSECJYQPGUXMXIKVRAPUFQWRQXUHOMSMNUSJUUCITNGHRNKWUQFHSRRMVDNXEPPLKUXNUMMSCPPYOFNSZMCPWQGJMANLOQTTUTURVMJOUPKWRLKMOBKQYHSAXVGLUQFDIGNRHK | B123: 406 | C123: -62307.74519
A124: LPQTFLYXXDRIEPGJLKTBMJEQDNNGSMALOOIWFWQKBPDUTJXVJJODXUBQXJRTOTWPDDIOQEKVVHDPNVHQXMDTCAGAUTRXNACKRLJXLJEYLWONHCTYWKRIJHXOFAANANMMOGELEFQARWAIIUKMWXNKXYQAIQUTBFHIACYTOLGSECJYQPGUXMXIKVRAPUFQWRQXUHOMSMNUSJUUCITNGHRNKWUQFHSRRMVDNXEPPLKUXNUMMSCFPYOFNXZMCPWYGJMANLOQTTUTURVMJOUPKWRLKOQBKQYHSAXVGLUQFDIGNRHK | B124: 411 | C124: -62142.40129
A125: LPQTFLYXXDRIEPGJLKTBMJEQDNNGSMALOOIWFWQKBPDUTJXVJJKDXUBQXJRTOTWPDDIOQEKWVHDPNVHQXMDTCAGAUTRXYACKRLJXLJEYLWONHCTYWKRIJHXOFAMNAEMMOGELEFQARWAIIUKMWXNKXYQAIQUTBFHIACYTOLGSECJYQPGUXMXIKVRAPUFQWRQXUHOMSMNUSJUUCITNGHRNKWUQFHSRRMVDNXEPPLKUXNUMMSCFPYOFNSZMCPWYGJMANLOQTTUUURVMJKUPKWROKMOBKQYHSAXVGLUQGKIGNRHK | B125: 413 | C125: -61920.24829
A126: LPQTFNYXXDRIEPGJLKTBMJEQDNNGSMALOOIWFWQKBPDUTJXVJJODXUBQXJRTOTWPDDIOQEKVVHDPNVHQXMDNCAGAUTRXYACKRLJXLJEYUWONHCTYWKRIJHXOFAMNAEMMOGELEFQARWAIIUKEWXNKXYQAIQUTBFHIACYTOLGSECJYQPGUXMXIKVPAPUFQWRQXUHOMSMNUSJUUCITNGHRNKWUQFHSRRMVDNXEPPLKUXNUMMSCFPYOFNXZMCPWQGJMANLOQTTUTURVMJUUPKWRLKMOBKQYHSAXVGLUQGKIGNRHK | B126: 414 | C126: -61440.82406
A127: LPQTFLYXXDRIEPGJLKTBMJEEDNNGSMALOOIWFWQKBPDUTJXVJJODXUBQXJRTOTWPDDIOQEKWVHDPNVHQXMDTCAGAUTRXYACKRLJXLJEYLWONHCTYWKRIJHXOFAMNAEMMOGELEFQARWAIIUKMWXNKXYQAIQUTBFHIACYTOLGSECJYQPGUXMXIKVRAPUFQWRQXUHOMSMNUSJUUCITNGHRNKWUQFHSRRMVDNXEPPLKUXNUMMSCFPYOFNSZMCPWYGJMANSOQTTUUURVMJOUPKWROKMOBKQYHSAXVGLUQGKIGNRHK | B127: 416 | C127: -61402.80239
A128: LPQTFNYXXDRIEPGJLKTBMJEEDNNGSMALOOIWFWQKBPDUTJXVJJODXUBQXJRTOTWPDDIOQEKVVHDPNVHQXMDTCAGAUTRXYACKRLJXLJEYLWONHCTYWKRIJHXOFAMNAEMMOGELEFQARWAIIUKMWXNKXYQAIQUTBFHIACYTOLGSECJYQPGUXMXIKVRAPUFQWRQXUHOMSMNUSJUUCITNGHROKWUQFHSRRMVDNXEPPLKUXNUMMSCFPYOFNSZMCPWYGJMANSOQTTUUURVMJOUPKWRLKMOBKQYHSAXVGLUQFDIGNRHK | B128: 417 | C128: -60448.63157
A129: LPQTFLYXXDRIEPGJLKTBMJEQDNNGSMALOOIWFWQKBPDUTJXVJJODXUBQXJRTOTWPDDIOQEKWVHDPNVHQXMDNCAGAUTRXYACKRLJXLJEYUWONHCTYWKRIJHXOFAMNAEMMOGELEFQARWAIIUKMWXNKXYQAIQUTBFHIACYTOLGSECJYQPGUXMXIKVPAPUFQWRQXUHOMSMNUSJUUCITNGHRNKWUQFHSRRMVDNXEPPLKUXNUMMSCFPYOFNSZMCPWQGJMANSOQTTUTURVMJOUPKWRLKMOBKQYHSAXVGLUQGKIGNRHK | B129: 420 | C129: -59975.66802
A130: LPQTFLYXXDRIEPGJLKTBMJEQDNNGSMALOOIWFWQKBPDUTJXVJJODXUBQXJRTOTWPDDIOQEKVVHDPNVHQXMDNCAGAUTRXYACKRLJXLJEYUWONHCTYWKRIJHXOFAMNANMMOGELEFQARWAIIUKMWXNKXYQAIQUTBFHIACYTOLGSECJYQPGUXMXIKVPAPUFQWRQXUHOMSMNUSJUUCITNGHRNKWUQFHSRRMVDNXEPPLKUXNUMMSCFPYOFNSZMCPWYGJMANSOQTTUTURVMJOUPKWRLKOQBKQYHSAXVGLUQFDIGNRHK | B130: 421 | C130: -59498.48545
A131: LPQTFLYXXDRIEPGJLKTBMJEQDNNGSMALOOIWFWQKBPDUTJXVJJODXUBQXJRTOTWPDDIOQEKWVHDPNVHQXMDNCAGAUTRXYACKRLJXLJEYUWONHCTYWKRIJHXOFAMNANMMOGELEFQARWAIIUKMWXNKXYQAIQUTBFHIACYTOLGSECJYQPGUXMXIKVRAPUFQWRQXUHOMSMNUSJUUCITNGHRNKWUQFHSRRMVDNXEPPLKUXNUMMSCFPYOFNSZMCPWQGJMANSOQTTUTURVMJOUPKWRLKMOBKQYHSAXVGLUQFDIGNRHK | B131: 427 | C131: -59421.73964
A132: LPQTFLYXXDRIEPTJLKTBMJEQDNNGSMALOOIWFWQKBPDUTJOVJJODXUBQXJRTOTWPDCIOQEKVVHDPNVHQXMDNCAGAUTRXYACKRLJXLJEYUWONHCTYWKRIJHXOFAMNAEMMOGELEFQARWAIIUKMWXNKXYQAIQUTBFHIACYTOLGSECJYQPGUXMXIKVPAPUFQWRQXUHOMSMNUSJUOCITNGHRNKWUQFHSRRMVDNXEPPLKUXNUMMSCFPYOFNSZMCPWQGJMANLOQTTUUURVMJOUPKWRLKMOBKQYHSAXVGLUQFDIGNRHK | B132: 428 | C132: -59408.68468
A133: LPQTFLYXXDRIEPGJLKTBMJEQDNNGSMALOOIWFWQKBPDUTJXVJJODXUBQXJRTOTWPDDIOQEKWVHDPNVHQXMDNCAGAUTRXYACKRLJXLJEYUWONHCTYWKRIJHXOFAANAEMMOGELEFQARWAIIUKMWXNKXYQAIQUTBFHIACYTOLGSECJYQPGUXMXIKVPAPUFQWRQXUHOMSMNUSJUUCITNGHRNKWUQFHSRRMVDNXEPPLKUXNUMMSCFPYOFNSZMCPWQGJMANSOQTTUTURVMJOUPKWRLKOQBKQYHSAXVGLUQFDIGNRHK | B133: 430 | C133: -59105.75034
A134: LPQTFNYXXDRYEPGJLKTBMJEQDNNGSMALOOIWFWQKBPDUTJXVJJKDXUBQXJRTOTWPDDIOQEKVVHDPNVHQXMDNCAGAUTRXYACKRLJXLJEYUWONHCTYWKRIJHXOFAMNAEMMOGELEFQARWAIIUKMXXNKXYQAIQUTBFHIACYTOLGSECJYQPGUXMXIKVPAPUFQWRQXUHOMSMNUSJUUCITNGHRNKWUQFHSRRMVDNXEPPLKUXNUMMSCFPYOFNSZMCPWQGJMANSOQTTUTURVMJOUPKWRLKMOBKQYHSAXVGLUQFDIGNRHK | B134: 434 | C134: -58476.06742
A135: LPQTFLYXXDRIEPTJLKTBMJEQDNNGSMALOOIWFWQKBPDUTJOVJJODXUBQRJRTOTWPDDIOQEKVVHDPNVHQXMDNCAGAUTRXYACKRLJXLJEYUWONHCTYWKRIJHXOFAMNAEMMOGELEFQARWAIIUKMWXNKXYQAIQUTBFHIACYTOLGSECJYQPGUXMXIKVPAPUFQWRQXUHOMSMNUSJUUCITNGHRNKWUQFHSRRMVDNXEPPLKUXNUMMSCFPYOFNSZMCPWYGJMANSOQTTUUURVMJOUPKWRLKMOBKQYHSAXVGLUQFDIGNRHK | B135: 440 | C135: -58632.21421
A136: LPQTFLYXXDRIEPGJLKTBMJEQDNNGSMALOOIMFWQKBPDUTJXVJJODXUBQXJRTOTWPDDIOQEKVVHDPNVHQXMDNCAGAUTRXYACKRLJXLJEYUWONHCTYWKRIJHXOFAMNAEMMOGELEFQARWAIIUKMWXNKXYQAIQUTBFHIACYTOLGSECJYQPGUXMXIKVRAPUFQWRQXUHOMSMNUSJUUCITNGHRNKWUQFHSRRMVDNXEPPLKUXNUMMSCFPYOFNSZMCPWYGJMANOOQTTUUURVMJOUPKWRLKMOBKQYHSAXVGLUQFDIGNRHK | B136: 441 | C136: -58263.98921
A137: LPQTFLYXXDRIEPTJLKTBMJEQDNNGSVALOOIWFWQKBPDUTJXVJJODXUBQXJRTOTWPDDIOQEKVVHDPNVHQXMDNCAGAUTRXYACKRLJXLJEYUWONHCTYWKRIJHXOFAMNAEMMOGELEFQARWAIIUKMWXNKXYQAIQUTBFHIACYTOLGSECJYQPGUXMXIKVPAPUFQWRQXUHOMSMNUSJUUCITNGHRNKWUQFHSRRMVDNXEPPLKUXNUMMSCFPYOFNSZMJPWYGJMANSOQTTUUURVMJOUPKWRLKMOBKQYHSAXVGLUQFDIGNRHK | B137: 443 | C137: -58228.89739
A138: LPQTFLYXXDRIEPGJLKTBMJEQDNNGSMALOOIMFWQKBPDUTJXVJJODXUBQXJRTOTWPDDIOQEKVVHDPNVHQXMDNCAGAUTRXYACKRLJXLJEYUWONHCTYWKRIJHXOFAMNAEMMOGELEFQARWAIIUKMWXNKXYQAIQUTBFHIACYTOLGSECJYQPGUXMXIKVRAPUFQWRQXUHOMSMNUSJUUCITNGHRNKWUQFHSRRMVDNXEPPLKUXNUMMSCFPYOFNSZMCPWYGJMANSOQTTUUURVMJOUPKWRLKMOBKQYHSAXVGLUQFDIGNRHK | B138: 444 | C138: -58183.16638
A139: LPQTFLYXXDRIEPTJLKTBMJEQDNNGSMALOOIMFWQKBPDUTJOVJJODXUBQXJRTOTWPDCIOQEKVVHDPNVHQXMDNCAGAUURXYACKRLJXLJEYUWONHCTYWKRIJHXOFAMNAEMMOGELEFQARWAIIUKMWXNKXYQAIQUTBFHIACYTOLGSECJYQPGUXMXIKVPAPUFQWRQXUHOMSMNUSJUUCITNGHRNKWUQFHSRRMVDNXEPPLKUXNUMMSCFPYOFNSZMGPWYGJMANOOQTTUUURVMJOUPKWRLKOOBKQYHSAXVGLUQFDIGNRHK | B139: 445 | C139: -57982.44872
A140: LPQTFLYXXDRLEPGJLKTBMJEQDNNGSMALOOIMFWQKBPDUTJXVJJODXUBQXJRTOTWPDDIOQEKMVHDPNVHQXMDNCAGAUURXYACKRLJXLJEYUWONHCTYWKRIJHXOFAMNAEMMOGELEFQARWAIIUKMWXNKXYQAIQUTBFHIACYTOLGSECJYQPGUXMXIKVPAPUFQWRQXUHOMSMNUSJUUCITNGHRNKWUQFHSRRMVDNXEPPLKUXNUMMSCFPYOFNSZMCPWYGJMANOOQTTUUURVMJOUPKWRLKMOBKQYHSAXVGLUQFDIGNRHK | B140: 447 | C140: -57861.66658
A141: LPQTFLYXXDRIEPYJLKTBMJEQDNNGSMALOOIMFWQKBPDUTJXVJJODXUBQXJRTOTWPDDIOQEKVVHDPNVHQXMDNCAGAUTRXYACKRLJXLJEYUWONHCTYWKRIJHXOFAMNAENMOGELEFQARWAIIUKMWXNKXYQAIQUTBFHIACYTOLGSECJYQPGUXMXIKVRAPUFQWRQXUHOMSMNUSJUUCITNGHRNKWUQFHSRRMVDNXEPPLKUXNUMMSCFPYOFNSZMCPXYGJMANOOQTTUTURVMJOUPKWRLKMOBKQYHSAXVGLUQFDIGNRHK | B141: 452 | C141: -57738.31977
A142: LPQTFLYXXDRLEPYJLKTBMJECDNNGSMALOOIMFWQKBPDUTJXVJJODXUBQXJRTOTWPDDIOQEKVVHDPNVHQXMDNCAGAUURXYACKRLJXLJEYUWONHCTYWKRIJHXOFAMNAEMMOGELEFQARWAIIUKMWXNKXYQAIQUTBFHIACYTOLGSECJYQPGUXMXIKVPAPUFQWRQXUHOMSMNUSJUUCITNGHRNKWUQFHSRRMVDNXEPPLKUXNUMMSCFPYOFNSZMCPWYGJMANSOQTTUUURVMJOUPKWRLKMOBKQYHSAXVGLUQFDIGNRHK | B142: 453 | C142: -57660.92262
A143: LPQTFLYXXDRIEPTJLKTBMJEQDNNGSMALOOIMFWQKBPDUTJOVJJODXUBQXJRTOTWPDDIOQEKWVHDPNVHQXMDNCAGAUURXYACKRLJXLJEYYWONHCTYWKRIJHXOFAMNAEMMOGELEFQARWAIIUKMWXNKXYQAIQUTBFHIACYTOLGSECJYQPGUXMXIKVRAPUFQWRQXUHOMSMNUSJUUCITNGHRNTWUQFHSRRMVDNXEPPLKUXNUMMSCFPYOFNSZPJPWYGJMANSOQTTUUURVMJOUPKWRLKMOBKQYHSAXVGLUQFDIGNRHK | B143: 454 | C143: -57470.23545
A144: LPQTFLYXXDRLEPTJLKTBMJEQDNRGSMALOOIMFWQKBPDUTJOVJJODXUBQXJRTOTWPDDIOQEKWVHDPNVHQXMDNCAGAUURXYACKRLJXLJEYUWONHCTYWKRIJHXOFAMNAEMMOGELEFQARWAIIUKMWXNKXYQAIQUTBFHIACYTOLGSECJYQPGUXMXIKVPAPUFQWRQXUHOMSMNUSJUUCITNGHRNTWUQFHSRRMVDNXEPPLKUXNUMMSCFPYOFNSZPJPWYGJMANSOQTTUUURVMJOUPKWRLKMOBKQYHSAXVGLUQFDIGNRHK | B144: 456 | C144: -57328.75229
A145: LPQTFLYXXDRIEPGJLKTBMJEQDNNGSMALOOIMFWQKBPDUTJXBJJODXUBQXJRTOTWPDDIOQEKVVHDPNVHQXMDNCAGAUTRXYACKRLJXLJEYUWONHCTYWKRIJHXOFAMNAENMOGELEFQARWAIIUKMWXNKXYQAIQUTBFHIACYTOLGSECJYQPGUXMXIKVPAPUFQWRQXUHOMSMNUSJUUCITNGHRNKWUQFHSRRMVDNXEPPLKUXNUMMSCFPYOFNSZNCPWYGJMANSOQTTUUURVMJOUPKWRLKMOBKQYHSAXVGLNQFDIGNRHO | B145: 458 | C145: -54357.00575
A146: LPQTFLYXXDRLEPTJLKTBMJEQDNNGSWALOOIMFWQKBPDUTXOVJJODXUBQXJRTOTWPDDIOQEKVVHDPNVHQXMDNCAGAUTRXYACKRLJXLJEYUWONHCTYWKRIJHXNFAMNAEMMOGELEFQARWAIIUKMWXNKXYQAIQUTBFHIACYTOLGSECJYQPGUXMXIKVPAPUFQWRQXUHOMSMNUSJUUCITNGHRNKWUQFHSRRMVDNXEPPLKUXNUMMSCFPYOFNSZMJPWYGJMANSOQTTUUURVMJOUPKWRLKMOBKQYHSAXVGLUQFDIGNRHK | B146: 463 | C146: -53941.97854
A147: LPQTFLYXXDRLEPTJLKTBMJEQDNNGSMALOOIMFWQKBPDUTXOVJJODXUBQXJRTOTWPDDIOQEKVVHDPNVHQXMDNCAGAUTRXYACKRLJXLJEYYWONHCTYWKRIJHXOFAMNAEMMOGELEFQARWAIIUKMWXNKXYQAIQUTBFHIACYTOLGSECJYQPGUXMXIKVRAPUFQWRQXUHOMSMNUSJUUCITNGHRNKWUQFHSRRMVDNXEPPLKUXNUMMSCFPYOFNSZMCPWYGJMANOOQTTUUURVMJOUPKWRLKMOBKQYHSAXVGLNQFDIGNCHK | B147: 467 | C147: -53784.12519
A148: LPQTFLYXXDRLEPTJLKTBMJEQDNNGSMALOOIMFWQKBPDUTXOVJJODXUBQXJRTOTWPDDIOQEKVVHDPNVHQXMDNCAGAUTRXYACKRLJXLJEYYWONHCTYWKRIJHXOFAMNAEMMOGELEFQARWAIIUKMWXNKXYQAIQUTBFHIACYTOLGSECJYQPGUXMXIKVRAPUFQWRQXUHOMSQNUSJUUCITNGHRNKWUQFHSRRMVDNXEPPLKUXNUMMSCFPYOFNSZMCPWYGJMANOOQTTUUURVMJOUPKWRLKMOBKQYHSAXVGLNQFDIGNCHK | B148: 469 | C148: -53594.45839
A149: LPQTFLYXXDRLEPTJLKTBMJEQDNNGSMALOOIMFWQKBPDUTXOVJJODXUBQXJRTOTWPDDIOQEKWVHDPNVHQXMDNCAGAUTRXYACKRLJXLJEYUWONHCTYWKRIJHXNFAMNAEMMOGELEFQARWAIIUKMWXNKXYQAIQUTBFHIACYTOLGSECJYQPGUXMXIKVRAPUFQWRQXUHOMSMNUSJUUCITNGHRNKWUQFHSRRMVDNXEFPLKUXNUMMSCFPYOFNSZMJPWYGJMANSOQTTUUURVMJOUPKWRLKOQBKQYHSAXVGLUQFDIGNRHK | B149: 470 | C149: -53400.75077
A150: LPQTFLYXXDRLEPTJLKTBMJEQDNNGSMALOOIMFWQKBPDUTXOVJJODXUBQXJRTOTWPDDIOQEKWVHDPNVHQXMDNCAGAUTRXYACKRLJXLJEYUWBNHCTYWKRIJHXNFAMNAEMMOGELEFQARWAIIUKMWXNKXYQAIQUTBFHIACYTOLGSECJYQPGUXMXIKVRAPUFQWRQXUHOMSMNUSJUUCITNGHRNKWUQFHSRRMVDNXEFPLKUXNUMMSCFPYOFNSZMJPWYGJMANSOQTTUUURVMJOUPKWRLKOQBKQYHSAXVGLUQFDIGNRHK | B150: 472 | C150: -50911.71749
A151: LPQTFLYXXDRLEPTJLKTBMJEHDNNGSQALOOIMFWQKBPDUTXOVJJODXUBQXJRTOTWPDDIOQEKWVHDPNVHQXMDNCAGAUTRXYACKRLJXLJEYYWBNHCTYWKRIJHXNFAMNAEMMOGELEFQARWAIIUKMWXNKXYQAIQUTBFHIACYTOLGSECJYQPGUXMXIKVRAPUFQURQXUHOMSMNUSJUUCITNGHRNKWUQFHSRRMVDNXEFPLLUXNUMMSCFPYOFNSZMJPWYGJMANZOQTTUUURVMJOUPKWRLKOQBKQYHSAXVGLUQFDIGNRHK | B151: 485 | C151: -50831.70362
A152: LPQTFLYXXDRLEPTJLKTBMJEQDNNGSMALOOIMFWQKBPDUTXOVJJODXUBQXJRTOTWPDDIOQEKWVHDPNVHQXMDNCAGAUTRXYACKRLJXLJEYUWBNHCTYWKRIJHXOFAMNAEMMOGELEFQARWAIIUKMWXNKXYQAIQUTBFHIACYTOLGSECJYQPGUXMXIKVRAPUFQWRQXUHOMSMNUSJUUCITNGHRNKWUQFHSRRMVDNXEFPLKUXNUMMSCFPYOFNSZMJPWYGJMANSOQTTUUURVMJOUPKWRLKMOBKQYHSAXVGLNQFDIGNRHK | B152: 497 | C152: -50412.08412
A153: LPQTFLYXXDRLEPTJLKTBMJEQDNNGSQALOOIMFWQKBPDUTXOKJJODXUBQXJRTOTWPDDIOQEKVVHDPNVHQXMDNCAGAUTRXYACKRLJXLJEYYWBNHCTYWKRIJHXOFAMNAEMMOGELEFQARWAIIUKMWXNKXYQAIQUTBFHIACYTOLGSECJYQPGUXMXIKVRAPUFQWRQXUHOMSMNUSJUUCITNGHRNKWUQFHSRRMVDNXEFPLKUXNUMMSCFPYOFNSZMJPWYGJMANZOQTTUUURVMJOUPKWRLKOQBKQYHSAXVGLNQFDIGNRHK | B153: 498 | C153: -50365.80839
A154: LPQTFLYXXDRLEPTJLKTBMJEQDNNGSQALOOIMFWQKBPDUTXOKJJODXUBQXJRTOTWPDDIOQEKWVHDPNVHQXMDNCAGAUTRXYACKRLJXLJEYYWBNHCTYWKRIJHXOFAMNAEMMOGELEFQARWAIIUKMWXNKXYQAIQUTBFHIACYTOLGSECJYQPGUXMXIKVRAPUFQWRQXUHOMSMNUSJUUCITNGHRNKWUQFHSRRMVDNXEFPLKUXNUMMSCFPYOFNSZMJPWYGJMANSOQTTUUURVMJOUPKWRLKMOBKQYHSAXVGLNQFDIGNRHK | B154: 500 | C154: -49822.49183
A155: LPQTFLYXXDRLEPTJLKTBMJEHDNNGSQALOOIMFWQKBPDUTXOKJJODXUBQXJRTOTWPDDIOQEKWVHDPNVHQXMDNCAGAUTRXYACKRLJXLJEYYWBNHCTYWKRIJHXOFAMNAEMMOGELEFQARWAIIUKMWXNKXYQAIQUTBFHIACYTOLGSECJYQPGUXMXIKVRAPUFQURQXUHOMSMNUSJUUCITNGHRNKWUQFHSRRMVDNXEFPLMUXNUMMSCFPYOFNSZMJPWYGJMANSOQTTUUURVMJOUPKWRLKMOBKQYHSAXVGLQQFDIGNRHK | B155: 515 | C155: -49399.64998
A156: LPQTFLYXXDRLEPTJLKTBMJEHDNNGSMALOOIMFWQKBPDUTXOVJJODXUBQXJRTOTWPDDIOQEKWVHDPNVHQXMDNCAGAUTRXYACKRLJXLJEYYWBNHCTYWKRIJHXNFAMNAEMMOGELEFQARWAIIUKMWXNKXYQAIQUTBFMIACYTOLGSECJYQPGUXMXIKVRAPUFQURQXUHOMSMNUSJUUCITNGHRNKWUQFHSRRMDDNXEFPLLUXNUMMSCFPYOFNSZMJPWYGJMANSOQTTUUURVMJOUPKWRLKMOBKQYHSAXVGLQQFDIGNRHK | B156: 541 | C156: -48713.46934
A157: LPQTFLYXXDRLEPTJLKTBMJEHDNNGSMALOOIMFWQKBPDUTXOKJJODXUBQXJRTOTWPDJIOQEKVVHDPNVHQXMDNCAGAUTRXYACKRLJXLJEYYWBNHCHYWKRIJHXOFAMNAEMMOGELEFQARWAIIUKMWXNKXYQAIQUTBFMIACYTOLGSECJYQPGUXMXIKVRAPUFQURQXUHOMSMNUSJUUCITNGHRNKWUQFHSRRMDDNXEFPLLUXNUMMSCFPYOFNSZMJPWYGJMANSOQTTUUURVMJOUPKWRLKMOBKQYHSAXVGLQQFDIGNRHK | B157: 543 | C157: -47549.39694
A158: LPQTFLYXXDRLEPTJLKTBMJEHDNNGSQALOOIMFWQKBPDUTXOKJJODXUBQXJRTOTWPDDIOQEKVVHDPNVHQXMDNCAGAUTRXYACKRLJXLJEYYWBNHCHYWKRIJHXOFAMNAEMMOGELEFQARWAIIUKMWXNKXYQAIQUTBFMIACYTOLGSECJYQPGUXMXIKVRAPUFQURQXUHOMSMNUSJUUCITNGHRNKWUQFHSRRMDDNXEFPLMUXNUMMSCFPYOFNSZMJPWYGJMANSOQTTUUURVMJOUPKWRLKMOBKQYHSAXVGLQQFDIGNRHK | B158: 558 | C158: -47460.9875
A159: LPQTFLYXXDRLEPTJLKTBMJEHDNNGSQALOOIMFWQKBPDUTXOKJJODXUBQXJRTOTWPDJIOQEKWVHDPNVHQXMDNCAGAUTRXYACKRLJXLJEYYWBNHCTYWKRIJHXOFAMNAEMMOGELEFQARWAIIUKMWXNKXYQAIQUTBFMIACYTOLGSECJYQPGUXMXIKVRAPUFQURQXUHOMSMNUSJUUCITNGHRNKWUQFHSRRMDDNXEFPLKUXNUMMSCFPYOFNSZMJPWYGJMANSOQTTUUURVMJOUPKWRLKMOBKQYHHAXVGLQQFDIGNRHK | B159: 564 | C159: -47414.91273
A160: LPQTFLYXXDRLEPTJLKTBMJEHDNNGSMALOOIMFWQKBPDUTXOKJJODXUBQXJRTOTWPDJIOQEKVVHDPNVHQXMDNCAGAUTRXYACKRLJXLJEYYWBNHCHYWKRIJHXOFAMNAEMMOGELEFQARWAIIUKMWXNKXYQAIQUTBFMIACYTOLGSECJYQPGUXMXIKVRAPUFQURQXUHOMSMNUSJUUCITNGHRNKWUQFHSRRMDDNXEFPLKUXNUMMSCFPYOFNSZMJPWYGJMANSOQTTUUURVMJOUPKWRLKMOBKQYHHAXVGLQQFDIGNRHK | B160: 565 | C160: -46975.95421
A161: LPQTFLYXXDRLEPTJLKTBMJEHDNNGSMALOOIMFWQKBPDUTXOKJJODXUBQXJRTOTWPDJIOQEKVVHDPNVHQXMDNCAGAUTRXYACKRLJXLJEYYWBNHCHYWKRIJHXOFAMNAEMMOGELEFQARWAIIUKMWXNKXYQAIQUTBFMIACYTOLGSECJYQPGUXMXIKVRAPUFQURQXUHOMSMNUSJUUCITNGHRNKWUQFHSRRMDDNXEFPLLUXNUMMSCFPYOFNSZMJPWYGJMANSOQTTUUURVMJOUPKWRLKMOBKQYHHAXVGLQQFDIGNRHK | B161: 566 | C161: -46941.37989
A162: LPQTFLYXXDRLEPTJLKTBMJEHDNNGSQALOOIMFWQKBPDUTXOKJJMDXUBQXJRTOTWPDDIOQEKVVHDPNVHQXMDNCAGAUTRXYACKRLJXLJEYYWBNHCHYWKRIJHXOFAMNAEMMOGELEFQARWAIIUKMWXNKXYQAIQUTBFMIACYTOLGSECJYQPGUXMXIKVRAPPFQURQXUHOMSMNUSJUUCITNGHRNKWUUFHSRRMDDNXEFPLMUXNUMMSCFPYOFNSTMJPWYGJMANSOQTTUUURQMJOUPKWRLKMOBKQYHHAXVGLQQFDIGNRHK | B162: 577 | C162: -46949.54874
A163: LPQTFLYXXDRLEPTJLKTBMJEHDNNGSQALOOIMFWQKBPDUTXOKJJODXUBQXJRTOTWPDJIOQEKVVHDPNVHQXMDNCAGAUTRXYACKRLJXLJEYYWBNHCIYWKRIJHXOFAMNAEMMOGEHEFQARWAIIUKMWXNKXYQAIQUTBFMIACYTOLGSECJYQPGUXMXIKVRAPUFQURQXUHOMSMNUSJUUCITNGHRNKWUQFHSRRUDDNXEFPLMUXNUMMSCFPYOFNSGMJPWYGJMANSOQTTUUURVMJOUPKWRLKMOBKQYHHAXVGLOQFDIGNRHK | B163: 578 | C163: -46880.10549
A164: LPQTFLYXXDRLEPTJLKTBMJEHDNNGSQALOOIMFWQKBPDUTXOKJJODXUBQXJRTOTWPDJIOQEKVVHDPNVHQXMDNCAGAUTRXYACKRLJXLJEYYWBNHCIYWKRIJHXOFAMNAEMMOGELEFQARWAIIUKMWXNKXYQAIQUTBFMIACYTOLGSECJYQPGUXMXIKVRAPUFQURQXUHOMSMNUSJUUCITNGHRNKWUQFHSRRMDDNXEFPLMUXNUMMSCFPYOFNSZMJPWYGJMANSOQTTUUURVMJOUPKWRLKMOBKQYHHAXVGLOQFDIGNRHK | B164: 582 | C164: -46769.74137
A165: LPQTFLYXXDRQEPTJLKTBMJEHDNNGSQALOOIMFWQKBPDUTXOKJJODXUBQXJRTOTWPDJIOQEKWVHDPNVHQXMDNCAGAUTRXYACKRLJXLJEYYWBNHCHYWKRIJHXNFAMNAEMMOGELEFQARWAIIUKMWXNKXYQAIQUTBFMIACYTOLGSECJYQPGUXMXIKVRAPUFQURQXUHOMSMNUSJUUCITNGHRNKWUUFHSRRMDDNXEFPLKUXNUMMSCFPYOFNSZMJPWYGJMANSOQTTUUURVMJOUPKWRLKMOBKQYHHAXVGLQQFFIGNRHK | B165: 583 | C165: -46753.99728
A166: LPQTFLYXXDRLEPTJLKTBDJEHDNNGSQALOOIMFWQKBPDUTXOKJJODXUBQXJRTOTWPDJIOQEKVVHDPNVHQXMDNCAGAUTRXYACKRLJXLJEYYWBNHCHYWKRIJHXNFAMNAEMMOGELEFQARWAIIUKMWXNKXYQAIQUTBFHIACYTOLGSECJYQPGUXMXIKVRAPUFQURQXUHOMSMNUSJUUCITNGHRNKWUQFHSRRMDDNXEFPLKUXNUMMSCFPYOFNSZMJPWYGJMANSOQTTUUURVMJOUPKWRLKMOBKQYHHAXVGLQQFFIGNRHK | B166: 584 | C166: -46717.28873
A167: LPQTFLYXXDRLEPTJLRTBMJEHDNNGSQALOOIMFWQKBNDUTXOKJJODXUBQXJRTOTWPDJIOQEKVVHDPNVHQXMDNCAGAUTRXYACKRLJXLJEYYWBNHCHYWKRIJHXOFAMNAEMMPGELEFQARWAIIUKMWXNKXYQAIQUTBFMIACYTOLGSECJYQPGUXMXIKVRAPUFQURQXUHOMSMNUSJUUCITNGHRNKWUQFHSRRMDDNXEFPLMUXNUMMSCFPYOFNSZMJPWYGJMANSOQTTUUURVMJOUPKWRLKMOBKQYHHAXVGLOQFDIGNRHK | B167: 588 | C167: -46577.60767
A168: LPQTFLYXXDRLEPTJLKTBDJEHDNNGSQALOOIMFWQKBPDUTXOKJJODXUBQXJRTOTWPDJIOQEKVVHDPNVHQXMDNCAGAUTRXYACKRLJXLJEYYWBNHCHYWKRIJHXOFAMNAEMMOGELEFQARWAIIUKMWXNKXYQAIQUTBFHIACYTOLGSECJYQPGUXMXIKVRAPUFQURQXUHOMSMNUSJUUCITNGHRNKWUQFHSRRMDDNXEFPLKUXNUMMSCFPYOFNSZMJPWYGJMANSOQTTUUURVMJOUPKWRLKMOBKQYHHAXVGLQQFFIGNRHK | B168: 590 | C168: -46550.97363
A169: LPQTFLYXXDRLEPTJLKTBMJEHDNNGSQALOOIMFWQKBPDUTXOKJJODXUBQXJRTOTWPDJIOQEKVVHDPNVHQXMDNCAGAUTRXYACKRLDXLJEYYWBNHCIYWKRIJHXOFAMNAEMMOGELEFQARWAIIUKMWXNKXYQAIQUTBFMIACYTOLGSECJYQPGUXMXWKVRAPUFQURQXUHOMSMNUSJUUCITNGHRNKWUQFHARRMDDNXEFPLMUXNUMMSCFPYOFNSZMJPWYGJMANSOQTTUUURVMJOUPKWRLKMOBKQYHHAXVGLOQFDIGNRHK | B169: 591 | C169: -46198.64823
A170: LPQTFLYXXDRLEPTJLKTBMJEHDNNGSQALOOIMFWQKBPDUTXOKJJODXUBQXJRTOTWPDJIOQEKVVHDPNVHQXMDNCAGAUTRXYACKRLJXLJEYYWBNHCIYWKRIJHXOFAMNAEMMOGEHEFQARWAIIUKMWXNKXYQAIQUTBFMIACYTOLGSECJYQPGUXMXIKVRAPUFQURQXUHOMSMNUSJUUCITNGHRNTWUQFHSRRMDDNXEFPLMUXNUMMSCFPYQFNSGMJPWYGJMANSOQTTUUURVMJOUPKWRLKMOBKQYIHAXVGLOQFDIGNRHK | B170: 592 | C170: -45493.16586
A171: LPQTFLYXXDRLEPTJLRTBMJEHDNNGSQALOOIMFWQKBPDUTXOKJJODXUBQXJRTOTWPDJIOQEKVVHDPNVHQXMDNCAGAUTRXYACKRLLXLJEYYWBNHCIYWKRIJHXOFAMNAEMMOGEHEFQARWAIIUKMWXNKXYQAIQUTBFMIACYTOLGSECJYQPGUXMXIKVRAPUFQURQXUHOMSMNUSJUUCITNGHRNTWUQFHSRRMDDNXEFPLMUXNUMMSCFPYOFNSZMJPWYGJMANSOQTTUUURVMJOUPKWRLKMOBKQYIHAXVGLQQFDIGNRHK | B171: 595 | C171: -45421.97614
A172: LPQTFLYXXDRLEPTJLKTBMJEHDNNGSQALOOIMFWQKBPDUTXOKJJODXUBQXJRTOTWPDJIOQEKVVHDPNVHQXMDNCAGAUTRXYACKRLJXLJEYYWBNHCIYWKRIJHXOFAMNAEMMOGELEFQARWAIIUKMWXNKXYQAIQUTBFMIACYTOLGSECJYQPGUXMXIKVRAPUFQURQXUHOMSMNUSJUUCITNGHRNTWUQFHSRRMDDNXEFPLMUXNUMMSCFPYQFNSZMJPWYGJMANSOQTTUUURVMJOUPKWRLKMOBKQYIHAXVGLQQFDIGNRHK | B172: 596 | C172: -45386.7518
A173: LPQTFLYXXDRLEPTJLKTBMJEHDNNGSQALOOIMFWQKBPDUTXOKJJODXUBQXJRTOSWPDJIOQEKVVHDPNVHQXMDNCAGAUTRXYACKRLJXLJEYYWBNHCIYWKRIJHXOFAMNAEMMOGELEFQARWAIIUKMWXNKXYQAIQUTBFMIACYTOLGQECJYQPGUXMXIKVRAPUFQURQXUHOMSMNUSJUUCITNGHRNKWUQFHSRRMDDNXEFPLMUXNUMMSCFPYOFNSZMJPWYGJMANSOQTTUUURVMJOUPKWRLKMOBKQYIHAXVGLQQFDIGNRHK | B173: 598 | C173: -45138.69711
A174: LPQTFLYXXDRLEPTJLKTBMJEHDNNGSQALOOIMFWQKBPDUTXOKJJODXUBQXJRTOTWPDJIOQEKVVHDPNVHQXMDNCAGAUTRXYACKRLDXLJEYYWBNHCIYWKRIJHXOFAMNAEMMOGELEFQARWAIIUKMWXNKXYQAIQUTBFMIACYTOLGSECJYQPGUXMXWKVRAPUFQURQXUHOMSMNUSJUUCITNGHRNKWUQFHSRRMDDNXEFPLMUXNUMMSCFPYOFNSZAJPWYGJMANSOQTTUUURVMJOUPKWRLKMOBKQYHHAXVGLQQFDIGNRHK | B174: 600 | C174: -44670.29325
A175: LPQTFLYXXDRLEPTJLRTBMJEUDNNGSQALOOIMFWQKBPDUTXOKJJODXUBQXJRTOTWPDJIOQEKVVHDPNVHQPMDNCAGAUTRXYACKRLLXLJEYYWBNHCHYWKRIJHXOFAMNAEMMOGELEFQARWAIIUKMWXNKXYQAIQUTBFMIACYTOLGSECJYQPGUXMXWKVRAPUFQURQXUHOMSMNUSJUUCITNGHRNTWUQFHSRRMDDNXEFPLMUXNUMMSCFPYOFNSGMJPWYGJMANSOQTTUUURVMJOUPKWRLKMOBKQYIHAXVGLQQFDIGNRHK | B175: 603 | C175: -44602.98882
A176: LPQTFLYXXDRLEPTJLKTBMJEHDNNGSQALOOIMFWQKBPDUTXOKJJODXUBQXJRTOTWPDJIOQEKVVHDPNVHQXMDNCAGAUTRXYACKRLLXLJEYYWBNHCIYWKRIJHXOFAMNAEMMOGEHEFQARWAIIUKMWXNKXYQAIQUTBFMIACYTOLGSECJYQPGUXMXPKVRAPUFQURQXUHOMSMNUSJUUCITNGHRNTWUQFHSRRMDDNXEFPLMUXNUMMSCFPYOFNSZMJPWYGJMANSOQTTUUURVMJOUPKWRLKMOBKQYIHAXVGLQQFDIGNRHO | B176: 605 | C176: -44316.73635
A177: LPQTFLYXXDRLEPTJLKTBDJEHDNNGSQALOOIMFWQKBPDUTXOKJJMDXUBQXJRTOTLPDJIOQEKVVHRPNVHQXMDNCAGAUTRXYACKRLJXLJEYYWBNHCIYWKRIJHXOFAMNAEMMOGELEFQARWAIIUKMWXNKXYQAIQUTBFMIACYTOLGSECJYQPGUXMXWKVRAPUFQURQXUHOMSWNUSJUUCITNGHRNKWUQFHSRRUDDNXEFPLMUXNUMMSCFPYQFNSJMJPWYGJMANSOQTTUUURVMJOUPKWRQKMOBKQYIHAXVGLQQFDIGNRHK | B177: 607 | C177: -43432.82513
A178: LPQTFLYXXDRLEPTJLKTBMJEHDNNGSQALOOIMFWQKBPDUTXOKJJODXUBQXJRTOTLPDJIOQEKVVHDPNVHQXMDNCAGAUTRXYACKRLLXLJEYYWBNHCIYWKRIJHXOFAMNAEMMOGELEFQARWAIIUKMWXNKXYQAIQUTBFMIACYTOLGSECJYQPGUXMXWKVRAPUFQURQXUHOMSWNUSJUUCITNGHRNTWUQFHSRRUDDNXEFPLMUXNUMMSCFPYQFNSZAJPWYGJMANSOQTTUUURVMJOUPKWRQKMOBKQYIHAXVGLQQFDIGNRHK | B178: 612 | C178: -42747.60887
A179: LPQTFLYXXDRLEPTJLKTBMJEHDNNGSQALOOIMFWQKBPDUTXOKJJODXUBQXJRTOSWPDJIOQEKVVHDPNVHQXMDNCAGAUTRXYACKRLJXLJEYYWBNHCIYWKRIJHXOFAMNAEMMOGELEFQARWAIIUKMWXNKXYQAIQUTBFMIACYTOLGOECJYQPGUXMXWKVRAPUFQURQXUHOMSMNUSJUUCITNGHRNKWUQFHSRRUDDNXEFPLMUXNUMMSCFPYQFNSZAJPWYGJMANSOQTTUUURVMJOUPKWRLKMOBKQYIHAXVGLQQFDIGNRHK | B179: 618 | C179: -42530.33262
A180: LPQTFLYXXDRLEPTJLRTBDJEHDNNGSQALOOIMFWQKBPDUTXOKJJODXUBQXJRTOTWPDJIOQEKVVHDPNVHQXMDNCAGAUTRXYACKRLJXLJEYYWBNHCHYWKRIJHXOFAMNAEMMOGELEFQARWAIIUKMWXNKXYQAIQUTBFMIACYTOLGSECJYQPGUXMXWKVRAPUFQURQXUHOMSMNUSJUUCITNGHRNKWUQFHSRRUDDNXEFPLMUXNUMMSCFPYQFNSZAJPWYGJMANSOQTTUUURVMJOUPKWRLKMOBKQYIHAXVGLQQFDIGNRHK | B180: 619 | C180: -42522.87641
A181: LPQTFLYXXDRLEPTJLRTBDJEHDNNGSQALOOIMFWQKBPDUTXOKJJODXUBQXJRTOTWPDJIOQEKVVHDPNVHQXMDNCAGAUTRXYACKRLJXLJEYYWBNHCHYWKRIJHXOFAMNAEMMOGELEFQARWAIIUKMWXNKXYQAIQUTBFMIACYTOLGSECJYQPGUXMXWKVRAPUFQURQXUHOMSMNUSJUUCITNGHRNKWUQFHSRRUDDNXEFPLMUXNUMMSCFPYQFNSZAJPWYGJMANSOQTTUUURVMJOUPOWRLKMOBKQYIHAXVGLQQFDIGNRHK | B181: 623 | C181: -42393.77983
A182: LPQTFLYXXDRLEPTJLKTBDJEHDNNGSQALOOIMFWQKBPDUTXOKJJMDXUBQXJRTOTLPDJIOQEKVVHDPNVHQXMDNCAGAUTRXYACKRLJXLJEYYWBNHCHYWKRIJHXOFAMNAEMMOGEHEFQARWAIIUKMWXNKXYQAIQUTBFMIACYTOLGSECJYQPGUXMXWKVRAPUFQURQXUHOMSWNUSJUUCITNGHRNKWUQFHSRRMDDNXEFPLMUXNUMMSCFPYOFNSZCJPWYGJMANSOQTTUUURVMJOUPKWRQKMOBKQYIHAXVGLQQFDIGNJHK | B182: 625 | C182: -42347.7075
A183: LPQTFLYXXDRLEPTJLKTBDJEHDNNGSQALOOIMFWQKBPDUTXOKJJODXUBQXJRTOTLPDJIOQEKVVHDPNVHQXMDNCAGAUTRXYACKRLJXLJEYYWBNHCHYWKRIJHXOFAMNAEMMOGEHEFQARWAIIUKMWXNKXYQAIQUTBFMIACYTOLGOECJYQPGUXMXWKVRAPUFQURQXUHOMSWNUSJUUCITNGHRNKWUQFHSRRUDDNXEFPLMUXNUMMSCFPYOFNSZCJPWYGJMANSOQTTUUURVMJOUPKWRQKMOBKQYIHAXVGLQQFDIGNJHK | B183: 628 | C183: -42059.16371
A184: LPQTFLYXXDRLEPTJLKTBDJEHDNNGSQALOOIMFWQKBPDUTXOKJJODXUBQXJRTOTWPDJIOQEKVVHDPNVHQXMDNCAGAUTRXYACKRLLXLJEYYWBNHCHYWKRIJHXOFAMNAEMMOGEHEFQARWAIIUKMWXNKXYQAIQUTBFMIACYTOLGOECJYQPGUXMXWKVRAPUFQURQXUHOMSWNUSJUUCITNGHRNKWUQFHSRRUDDNXEFPLMUXNUMMSCFPYOFNSZCJPWYGJMANSOQTTUUURVMJOUPKWRLKMOBKQYIHAXVGLQQFDIGNRHK | B184: 633 | C184: -42127.62823
A185: LPQTFLYXXDRLEPTJLKTBDJEHDNNGSQALOOIMFWQKBPDUTXOKJJODXUBQXJRTOTLPDJIOQEKVVHDPNVHQXMDNCAGAUTRXYACKRLLXLJEYYWBNHCHYWKRIJHXOFAMNAEMMOGELEFQARWAIIUKMWXNKXYQAIQUTBFMIACYTOLGOECJYQPGUXMXWKVRAPUFQURQXTHOMSWNUSJUUCITNGHRNKWUPFHSRRMDDNXEFPLMUXNUMMSCFPYQFNSZAJPWYGJMANSOQTTUUURVMJOUPKWRQKMOBKQYIHAXVGLQQFDIGNRHO | B185: 634 | C185: -42125.86162
A186: LPQTFLYXXDRLEPTJLKTBDJEHDNNGSQALOOIMFWQKBPDUTXOKJJODXUBQXJRTOTLPDJIOQEKVVHDPNVHQXMDNCAGAUTRXYACKRLJXLJEYYWBNHCHYWKRIJHXOFAMNAEMMOGELEFQARWAIIUKMWXNKXYQAIQUTBFMIACYTOLGSECJYQPGUXMXWKVRAPUFQURQXUHIMSWNUSJUUCITNGHRNKWUPFHSRRUDDNXEFPLMUXNUMMSCFPYQFNSZAJPWYGJMANSOQTTUUURVMJOUPOWRLKMOBKQYIHAXVGLQQFDIGNRHK | B186: 635 | C186: -42110.82753
A187: LPQTFLYXXDRLEPTJLKTBDJEHDNNGSQALOOIMFWQKBPDUTXOKJJMDXUBQXJRTOTWPDJIOQEKVVHDPNVHQXMDNCAGAUTRXYACKRLLXLJEYYWBNHCHYWKRIJHXOFAMNAEMMOGEHEFQARWAIIUKMWXNKXYQAIQUTBFMIACYTOLGOECJYQPGUXMXWKVRAPUFQURQXUHOMSWNUSJUUCITNGHRNKWUQFHSRRUDDNXEFPLMUXNUMMSCFPYQFNSZCJPWYGJMANSOQTTUUURVMJOUPKWRLKMOBKQYIHAXVGLQQFDIGNRHO | B187: 636 | C187: -42024.57631
A188: LPQTFLYXXDRLEPTJLKTBDJEHDNNGSQALOOIMFWQKBPDUTXOKJJODXUBQXJRTOTWPDJIOQEKVVHDPNVHQXMDNCAGAUTRXYACKRLLXLJEYYWBNHCHYWKRIJHXOFAMNAEMMOGEHEFQARWAIIUKMWXNKXYQAIQUTBFMIACYTOLGOECJYQPGUXMXWKVRAPUFQURQXUHOMSWNUSJUUCITNGHRNKWUQFHSRRMDDNXEFPLMUXNUMMSCFPYQFNSZCJPWYGJMANSOQTTUUURVMJOUPKWRQKMOBKQYIHAXVGLQQFDIGNRHK | B188: 639 | C188: -41936.16727
A189: LPQTFLYXXDRLEPTJLKTBDJEHDNNGSQALOOIMFWQKBPDUTXOKJJMDXUBQXJRTOTWPDJIOQEKVVHDPNVHQXMDNCAGAUTRXYACKRLLXLJEYYWBNHCHYWKRIJHXOFAMNAEMMOGEHEFQARWAIIUKMWXNKXYQAIQUTBFMIACYTOLGOECJYQPGUXMXWKVRAPUFQURQXUHOMSWNUSJUUCITNGHRNKWUQFHSRRUDDNXEFPLMUXNUMMSCFPYQFNSZCJPWYGJMANSOQTTUUURVMJOUPKWRLKMOBKQYIHAXVGLQQFDIGNRHO | B189: 641 | C189: -42024.57631
A190: LPQTFLYXXDRLEPTJLKTBDJEHDNNGSQALOOIMFWQKBPDUTXOKJJODXUBQXJRTOTWPDJIOQEKVVHDPNVHQXMDNCAGAUTRXVACKRLLXLJEYYWBNHCHYWKRIJHXOFAMNAEMMOGELDFQARWAIIUKMWXNKXYQAIQUTBFMIACYTOLGOECJYQPGUXMXWKVRAPUFQURQXUHOMSMNUSJUUCITNGHRNKWUQFHSRRUDDNXEFPLMUXNUMLSCFPYQFNSZAJPWYGJMANSOQTTUUURVMJOUPKWRQKMOBKQYIHAXVGLQQFDIGNRHK | B190: 645 | C190: -41945.0483
A191: LPQTFLYXXDRLEPTJLKTBDJEHDNNGSQALOOIMFWQKBPDUTXOKJJODXUBQXJRTOTLPDJIOQEKVVHDPNVHQXMDNCAGAUTRXYACKRLLXLJEYYWBNHCHYWKRIJHXOFAMNAEMMOGELEFQARWAIIUKMWXNKXYQAIQUTBFMIACYTOLGOECJYQPGUXMXWKVRAPUFQURQXUHIMSWNUSJUUCITNGHRNKWUQFHSRRUDDNXEFPLMUXNUMMSCFPYQFNSZAJPWYGJMANSOQTTUUURVMJOUPKWRLKMOBKQYIHAXVGLQQFDIGNRHK | B191: 648 | C191: -41893.17645
A192: LPQTFLYXXDRLEPTJLKTBDJEHDNNGSQALOOIMFWQKBPDUTXOKJJODXUBQXJRTOTLPDJIOQEKVVHDPNVHQXMDNCAGAUTRXYACKRLLXLJEYYWBNHCHYWKRIJHXOFAMNAEMMOGELEFQARWAIIUKMWXNKXYQAIQUTBFMIACYTOLGOECJYQPGUXMXWKVRAPUFQURQXUHIMSWNUSJUUCITNGHRNKWUQFHSRRUDDNXEFPLMUXNUMMSCFPYQFNSZAJPWYGJMANSOQTTUUURVMJOUPKWRQKMOBKQYIHAXVGLQQFDIGNRHK | B192: 653 | C192: -41760.21569
A193: LPQTFLYXXDRLEPTJLKTBDJEHDNNGSQALOOIMFWQKBPDUTXOKJJODXUBQXJRTOTWPDJIOQEKVVHDPNVHQXMDNCAGAUTRXVACKRLJXLJEYYWBNHCHYWKRIJHXOFAMNAEMMOGEHEFQARWAIIUKMWXNKXYQAIQUTBFMIACYTOLGOECJYQPGUXMXWKVRAPUFQURQXUHIMSWNUSJUUCITNGHRNKWUQFHSRRUDDNXEFPLMUXNUMMSCFPYOFNSZAJPWYGJMANSOQTTUUURVMJOUPKWRQKMOBKQYIHAXVGLQQFDIGNRHO | B193: 661 | C193: -41742.22322
A194: LPQTFLYXXDRLEPTJLKTBDJEHDNNGSQALOOIMFWQKBPDUTXOKJJODXUBQXJRTOTLPDJIOQEKVVHDPNVHQXMDNCAGAUTRXYACKRLLXLJEYYWBNHCHYWKRIJHXOFAMNAEMMOGELEFQARWAIIUKMWXNKXYQAIQUTBFMIACYTOLGOECJYQPGUXMXWKVRAPUFQURQXUHIMSWNUSJUUCITNGHRNKWUQFHSRRUDDNXEFPLMUXNUMMSCFPYQFNSZAJPWYGJMANSOQTTUUURVMJOUPOWRQKMOBKQYIHAXVGLQQFDIGNRHK | B194: 669 | C194: -41631.11911
A195: LPQTFLYXXDRLEPTJLWTBDJEHDNNGSQALOOIMFWQKBPDUTXOKJJODXUBQXJRTOTLPDJIOQEKVVHDPNVHQXMDNCAGAUTRXYACKRLJXLJEYYWBNHCHYWPRIJHXOFAGNAEMMOGEHEFQARWAIIUKMWXNKXYQAIQUTBFMIACYTOLGOECJYQPGUXMXWKVRAPUFQURQXUHIMSWNUSJUUCITNGHRNKWUQFHSRRUDDNXEFPLMUXNUMMSCFPYQFNSZAJPWYGJMANQOQTTUUURVMJOUPKWRQKMOBKQYIHAXVGLQQFDIGNRHK | B195: 670 | C195: -41496.711
A196: LPQTFLYXXDRLEPTJLKTBDJEHDNNGSQALOOIMFWQKBPDUTXOKJJODXUBQXJRTOTLPDJIOQEKVVHDPNVHQXMDNCAGAUTRXYACKRLJXLJEYYWBNHCHYWPRIJHXOFAGNAEMMOGEHEFQARWAIIUKMWXNKXYQAIQUTBFMIACYTOLGOECJYQPGUXMXWKVRAPUFQURQXUHIMSWNUSJUUCITNGHRNKWUSFHSRRUDDNXEFPLMUXNUMMSCFPYQFNSZAJPWYGJMANSOQTTUUURVMJOUPKWRQKMOBKQYIHAXVGLQQFDIGNRHK | B196: 680 | C196: -41409.68841
A197: LPQTFLYXXDRLEPTJLWTBDJEHDNNGSQALOOIMFWQKBPDUTXOKJJODXUBQXJRTOTLPDJIOQEKVVHDPNVHQXMDNCAGAUTRXYACKRLJXLJEYYWBNHCHYWPRIJHXOFAGNAEMMOGELEFQARWAIIUKMWXNKXYQAIQUTBFMIACYTOLGOECJYQPGUXMXWKVRAPUFQURQXUHIMSWNUSJUUCITNGHRNKWUQFHSRRUDDNXEFPLMUXNUMMSCFPYQFNSZAJPWYGJMANQOQTTUUURVMJOUPOWRQKMOBKQYIHAXVGLQQFDIGNRHK | B197: 683 | C197: -41363.33486
A198: LPQTFLYXXDRLEPTJLKTBDJEHDNNGSQALOOIMFWQKBPDUTXOKJJODXUBQXJRTOTLPDJIOQEKVVHDPNVHQXMDNCAGAUTRXYACKRLJXLJEYYWBKHCHYWPRIJHXOFAGNAEMMOGEHEFQARWAIIUKMWXNKXYQAIQUTBFMIACYTOLGOECJYQPGUXMXWKVRAPUFQURQXUHIMSWNUSJUUCITNGHRNKWUSFHIRRUDDNXEFPLMUXNUMMSCFPYQFNSZAJPWYGJMANSOQTTUUURVMJOUPKWRQKMOBKQYIHAXVGLQQFDIGNRHK | B198: 685 | C198: -40804.06759
A199: LPQTFLYXXDRLEPTJLKTBDJEHDNNGSQALOOIMFWQKBPDUTXOKJJODXUBQXJRTOTLPDJIOQEKVVHDPNVHQXMDNCAGAUTRXYACKRLJXLJEYYWBKHCHYWPRIJHXOFAGNAEMMOGEHEFQARWAIIUKMWXNKXYQAIQUTBFMIACYTOLGOECJYQPGUXMXWKVRAPUFQURQXUHIMSWNUSJUUCITNGHRNKWUQFHIRRUDDNXEFPLMUXNUMMSCFPYQFNSZAJPWYGJMANSOQTTUUURVMJOUPOWRQKMOBKQYIHAXVGLQQFDIGNRHK | B199: 699 | C199: -40675.33248
A200: LPQTFLYXXDRIEPTJLKTBDJEHDNNGSQALOOIMFWQKBPDUTXOKJJODXVBQXJRTOTLPDJIOQEKVVHDOOVHQXMDNCAGAUTRXYACKRLLXLJEYYWBKHCIYWKRIJHXOFAGNAEMMOGEHEFQARWAIIUKMWXNKXYQAIQUTBFMIACYTOLGOECJYQPGUXMXWKVRAPUFQURQXUHIMSWNUSJUUCITNGHRNKWUQFHSRRUDDNXEFPLMUXNUMMSCFPYQFNSZAJPWYGJMANQOQTTUUURVMJOUPOWRQKMOBKQYIHAXVGLQQFDIGNRHK | B200: 706 | C200: -36187.19452
... 388 more rows

Sheet Aide
A1: Code aide xlstore | B1: A | C1: B | D1: B1 | E1: B2 | F1: d3 | G1: C | H1: D | I1: dd | J1: D | L1: A1 | P1: E | Q1: F
A2: entête | B2: Utilisation d'un algorithme génétique pour recopier une image | C2: Le problème | D2: La fonction d'évaluation le calcul | E2: La fonction d'évaluation calcul de la note finale | F2: La fonction mariage | G2: L'initialisation | H2: La boucle | I2: Le suivi 1 | J2: Le suivi 2 | K2: Conclusion | L2: Annexe : les différents paramètres et options | M2: Les fonctions | N2: L'initialisation | P2: Référence à xlstore | Q2: Référence
A3: Icone | B3: ! | C3: ü | D3: v | E3: ! | F3: J | G3: & | I3: 1 | J3: # | P3: ? | Q3: &
A4: texte | B4: L'objectif de ce classeur est de vous montrer un exemple de l'utilisation de l'outil xlstore pour utiliser un algorithme génétique. Pour cela, excel-store doit être installée et le programme doit y faire référence. Pour poser le problème, on doit coder une solution sous forme de texte dont on doit déterminer la taille et l'alphabet. Un algorithme génétique doit contenir une fonction d'évaluation pour pouvoir choisir les meilleures solutions. Enfin, il faut déterminer une population de départ et la procédure d'évolution, c'est pour cette partie qu'on utilisera la macro complémentaire. | C4: Il s'agit dans cet exemple de créer une image qui restitue le plus fidèlement un tableau de 26*26 avec un dégradé de 26 valeurs. Pour cela, on va dans notre toile de 26*26 mettre 100 carreaux de 3*3 unis un peu à la manière impressioniste. 26 permet de coder sur un alphabet de A à Z. On va mettre les valeurs dans chaque cellule et utiliser une plage de cellule qui va faire la différence. C'est la somme de ces écarts qui va être notre fonction à optimiser. La fonction d'évaluation d'un individu va consister à le dessiner et à récupérer le résultat de la cellule. pour dessiner un rectangle de 3*3, on va partir d'un texte de 3 caractères : ligne/colonne/valeur. Chaque valeur étant trouvée par la place de la lettre dans l'alphabet. | D4: Chaque image est un ensemble de valeurs entre 1 et 26. En faisant la soustraction avec l'image originale on obtient un écart (on prend uniquement la valeur absolue). la somme de ces écarts donne le résultat à optimiser. Comme on veut diminuer les écarts et que l'outil est conçu pour augmenter un résultat, on va multiplier par -1 pour compenser. Le tableau des écarts met en orange les zones où l'écart est le plus fort. Pour dessiner un point on prend son code sur trois caractères et on utilise la procédure suivante : Sub dessine_points(ByVal point) Dim ligne, colonne, valeur ligne = InStr(1, "ABCDEFGHIJKLMNOPQRSTUVWXYZ", Mid(point, 1, 1)) colonne = InStr(1, "ABCDEFGHIJKLMNOPQRSTUVWXYZ", Mid(point, 2, 1)) valeur = InStr(1, "ABCDEFGHIJKLMNOPQRSTUVWXYZ", Mid(point, 3, 1)) Range("image").Cells(ligne, colonne).Resize(3, 3).Value = valeur End Sub | E4: Pour trouver le résultat, on va dessiner toute l'image et récupérer le résultat qui aura été calculé : Function peint_individu(Optional ByVal texte) Dim longueur longueur = Int(Len(texte) / 3) Application.ScreenUpdating = False Range("image").ClearContents Dim i For i = 1 To longueur - 1 dessine_points Mid(texte, (i - 1) * 3 + 1, 3) Next Application.ScreenUpdating = True ActiveSheet.Calculate peint_individu = Range("ecarts").Value End Function | F4: Notre fonction mariage par défaut consiste à prendre un caractère de l'un ou l'autre des parents pour créer un nouvel individu. Dans notre cas cela peut avoir comme conséquence de prendre la couleur d'un carré situé à un endroit pour la mettre dans un carré situé à un autre endroit par exemple. Cela ne correspond pas bien à ce que l'on peut concevoir. On peut préférer une fonction qui prenne soit un carré d'un parent soit celui de l'autre parent. Donc au lieu d'échanger 1 caractère, on va en échanger 3. Ce qui donne la fonction suivante : Function Enfant_personnalise(parentA, parentB) Dim longueur, Texte Texte = parentA longueur = Int(Len(Texte) / 3) Dim i For i = 1 To longueur If Rnd > 0.5 Then Mid(Texte, (i - 1) * 3 + 1, 3) = Mid(parentB, (i - 1) * 3 + 1, 3) End If Next Enfant_personnalise = Texte End Function | G4: Pour initialiser la population, on utilise des outils de xlstore.xlam en particulier l'objet algorithme_genetique auquel on a accès grâce à la référence que l'on a faite en vba. L'initialisation des paramètres se fait via la fonction initialise_parametres où l'on indique 3 informations : la fonction d'évaluation ici "valeur_peint_individu" les caractères autorisés ici l'alphabet : AZERTYUIOPQSDFGHJKLMWXCVBN le nombre de chromosomes ici ça va être la longueur du parcours ici on va prendre 10 carrés par ligne et par colonne soit 100 carrés chacun définis chacun par 3 paramètres soit 300 caractères. Le nombre d'individus ici est changé à 60 par rapport à la valeur par défaut qui est 40. Sub initialise_image() Dim ag As XLSTORE.Algorithme_genetique Set ag = XLSTORE.New_Algorithme_genetique ag.initialise_parametres Fonction_d_evaluation:="'" & ActiveWorkbook.Name & "'!peint_individu" ag.initialise_parametres lettres_possibles:="AZERTYUIOPQSDFGHJKLMWXCVBN", nombre_de_chromosomes:=3 * 100, Nombre_d_individus:=60 ag.Initialise_Population Range("ax30").Resize(60, 2).Value = ag.Population peint_individu Range("ay30").Value End Sub | H4: Nous ajoutons notre fonction personnalisée : ag.initialise_parametres fonction_mariage:="'" & ActiveWorkbook.Name & "'!Enfant_personnalise" La boucle a besoin des paramètres de la population : inscrits dans cette ligne : ag.initialise_parametres , , 60, 15, 30, 5, 0 60 individus / 15 enfants / 30 mutants / taux mutation 5% / 0 génération spontanée On utilise importe population pour récupérer des individus sur la feuille, la plage indiquée doit avoir le nombre de lignes correspondant au nombre d'individus de la population et les individus doivent être valables. Dans ce cas, la fonction renvoie "Récupération OK pour 60 individus. Sub copie_image() Dim ag As XLSTORE.Algorithme_genetique, reponse Set ag = XLSTORE.New_Algorithme_genetique ag.initialise_parametres Fonction_d_evaluation:="'" & ActiveWorkbook.Name & "'!peint_individu" ag.initialise_parametres fonction_mariage:="'" & ActiveWorkbook.Name & "'!Enfant_personnalise" ag.initialise_parametres , , 60, 15, 30, 5, 0 ag.initialise_parametres lettres_possibles:="AZERTYUIOPQSDFGHJKLMWXCVBN", nombre_de_chromosomes:=3 * 100 reponse = ag.Importe_population(Range("ay30").Resize(60, 1)) If Not reponse Like "*OK*" Then MsgBox reponse, vbCritical, "Fin": Exit Sub ag.Boucle_n_generations Range("nb_boucle_parcours").Value Range("ax30").Resize(60, 2) = ag.Population peint_individu Range("ay30").Value End Sub | I4: Les algorithmes génétiques peuvent durer longtemps suivant le nombre de boucles choisi. Pour gérer cela le programme a ce que l'on a vu depuis le début c'est à dire la sauvegarde de la population sur la feuille pour pouvoir reprendre plus tard. Il y a aussi la barre de progression dans la barre d'état d'excel. | J4: Deux autres outils peuvent être utiles. En premier on peut indiquer une limite au temps de travail. C'est à dire ici, le programme sortira au bout de 10 minutes de boucle même si le nombre de boucles prévu n'est pas atteint. ag.Boucle_n_generations Range("nb_tours").Value, , , 10 Autre outil de suivi, la copie des variations : ag.Boucle_n_generations Range("nb_tours").Value, , , 10, "mesures_peinture" 'Mesures_peinture' est le nom d'une feuille dans laquelle sont répertoriées colonnes A,B et C toutes les meilleures valeurs trouvées ainsi que la génération où elles ont été trouvées. Cela peut vous permettre d'estimer ce que l'on peut attendre comme résultat. | K4: Une troisième application des algorithmes génétiques via l'outil xlstore.xlam Toujours la même simplicité de programmation avec en plus la possibilité de personnaliser la fonction de mariage, la limitation dans le temps de la procédure et le suivi de l'amélioration du résultat sur une feuille. | L4: Les premières options sont modifiées via l'appel à la procédure initialise_parametres Les options concernant les paramètres "génétiques" l'alphabet "lettres_possibles" par exemple "01" "gdhb" "abcdefghijklmnopqrstuvwxyz " la longueur du chromosome "nombre_de_chromosomes" Les options concernant la population : Nombre d'individus nombre d'enfants nombre de mutants taux de mutation (% de chance qu'un caractère change) nombre de génération spontané (individus créés au hasard comme dans l'initialisation) | M4: Il faut définir les fonctions à utiliser : une fonction obligatoire l'évaluation d'une population deux fonctions facultatives une fonction de mutation qui reçoit 2 arguments l'individu à traiter et le taux de mutation à utiliser une fonction de mariage qui reçoit 2 arguments parent A et parent B Liste de tous les paramètres de la procédure : initialise_parametres On peut l'appeler plusieurs fois pour changer la valeur d'un ou plusieurs paramètre Fonction_d_evaluation, nombre_de_chromosomes, Nombre_d_individus, nombre_d_enfants, nombre_de_mutations, taux_de_mutation, nombre_de_generation_spontanee, lettres_possibles, fonction_mariage, fonction_mutation | N4: L'initialisation se fait de deux façons différentes au hasard via la fonction initialise_population en récupérant une ancienne population qui est dans une plage de cellules d'une colonne et n lignes n=population. on utilise pour cela la fonction recupere_population. cette fonction fait le travail en récupérant et évaluant la population de départ et renvoie Ok | P4: Dans l'éditeur visual basic, vous choisissez votre projet qui n'a pas encore la référence puis vous allez dans le menu outils/références. | Q4: Il vous suffit maintenant de cocher xlstore dans la liste des références disponibles. Si la macro complémentaire est installée, la référence sera dans la liste.
A5: Labels1 | B5: Comment faire la référence à xlstore.xlam | I5: Pour télécharger xlstore ou les autres exemples http://sn1.chez-alice.fr/xlstore/index_ag.html | K5: Annexe les paramètres | P5: Retour | Q5: Retour
A6: Labels2 | B6: Les différents paramètres des fonctions
A7: Labels3
A8: Labels4
A9: Labels5
A10: Type 1 | B10: lien aide | I10: lien aide | K10: lien aide | P10: lien aide | Q10: lien aide
A11: Type 2 | B11: lien aide
A12: Type 3
A13: Type 4
A14: Type 5
A15: Code Aide liée 1 | B15: E | I15: http://sn1.chez-alice.fr/xlstore/index_ag.html | K15: A1 | P15: A | Q15: A
A16: Code Aide liée 2 | B16: A1
A17: Code Aide liée 3
A18: Code Aide liée 4
A19: Code Aide liée 5
A20: Affichage modal | B20: Oui | C20: Oui | D20: Oui | E20: Oui | F20: Oui | G20: Oui | H20: Oui | I20: Oui | J20: Oui | K20: Oui | L20: Oui | M20: Oui | N20: Oui | P20: Oui | Q20: Oui
A21: Utilisation croix rouge pour fermer autorisée | B21: Oui | C21: Oui | D21: Oui | E21: Oui | F21: Oui | G21: Oui | H21: Oui | I21: Oui | J21: Oui | K21: Oui | L21: Oui | M21: Oui | N21: Oui | P21: Oui | Q21: Oui
A22: Bouton 1
A23: Bouton 2 | C23: Précédant | D23: Précédant | E23: Précédant | F23: Précédant | G23: Précédant | H23: Précédant | J23: Précédant | K23: Précédant | L23: Précédant | M23: Précédant
A24: Bouton 3 | B24: Suivant | C24: Suivant | D24: Suivant | E24: Suivant | F24: Suivant | G24: Suivant | H24: Suivant | I24: Fermer | J24: Suivant | L24: Suivant | M24: Suivant | N24: Fermer | P24: Suivant | Q24: Précédant
A25: Bouton 4 | B25: Fermer | C25: Fermer | D25: Fermer | E25: Fermer | F25: Fermer | G25: Fermer | H25: Fermer | J25: Fermer | K25: Fermer | L25: Fermer | M25: Fermer
A26: Bouton 5
A27: Zone saisie texte | B27: Non | C27: Non | D27: Non | E27: Non | F27: Non | G27: Non | H27: Non | I27: Non | J27: Non | K27: Non | L27: Non | M27: Non | N27: Oui | P27: Non | Q27: Non
A28: cliquez dans la colonne pour afficher le formulaire | B28: Oui | C28: Oui | D28: Oui | E28: Oui | F28: Non | G28: Non | H28: Oui | I28: Oui | J28: Oui | K28: Non | L28: Non | M28: Non | N28: Non | P28: Oui | Q28: Oui
A29: cliquez dans la colonne pour afficher le formulaire de saisie | C29: peinture!$X$2:$CB$27 | D29: peinture!$BC$2:$DE$27 | E29: peinture!$CF$2:$DE$29 | H29: peinture!$AX$29:$BM$33 | I29: Aide!$M$57:$N$59 | J29: mesures_peinture!$A$1:$C$11 | Q29: Aide!$m$38:$m$52
A30: Réponse
A31: bouton | B31: Fermer
A32: choix 1 | B32: FALSE
A33: choix 2 | B33: FALSE
A34: choix 3 | B34: FALSE
A35: choix 4 | B35: FALSE
A36: choix 5 | B36: FALSE
A37: colonne | B37: 14
A38: Texte entré
